Ref No,Fund Type,Dept,Cost Centre Description    ,Description    ,Creditor Name    ,GL Code Net Amount,Payment date        
2,Revenue,CCHD,Bed purchasing - Under 65s PWLD - North,Residential Homes,.,6873.04, 02-Oct-2012
3,Revenue,CCHD,Bed purchasing - Under 65s PWLD - North,Residential Homes,.,6873.04, 30-Oct-2012
4,Revenue,CCHD,Supporting People Programme,Grants to Voluntary Bodies,1625 Independent People,17214.75, 01-Oct-2012
5,Revenue,CCHD,Bed purchasing - Phys Dis - North,Nursing Homes,26 Severn Road,7692.28, 02-Oct-2012
6,Revenue,CCHD,Bed purchasing - Phys Dis - North,Nursing Homes,26 Severn Road,549.45, 30-Oct-2012
7,Revenue,CCHD,Home Care - Elderly - North,Other Small Contracts,3 Trees Community Support Ltd,47.28, 01-Oct-2012
8,Revenue,CCHD,Day Care - North,Private & Voluntary Day Care,3 Trees Community Support Ltd,90.62, 01-Oct-2012
9,Revenue,CCHD,Home Care - LD Under 65 - South,Private & Voluntary Home Care,3 Trees Community Support Ltd,110.32, 01-Oct-2012
10,Revenue,CCHD,PWLD Home Care - Under 65 - KH,Private & Voluntary Home Care,3 Trees Community Support Ltd,267.92, 01-Oct-2012
11,Revenue,CCHD,Home Care - Elderly - South,Other Small Contracts,3 Trees Community Support Ltd,94.56, 03-Oct-2012
12,Revenue,CCHD,Home Care - Elderly - North,Other Small Contracts,3 Trees Community Support Ltd,756.48, 03-Oct-2012
13,Revenue,CCHD,Day Care - North,Private & Voluntary Day Care,3 Trees Community Support Ltd,94.56, 03-Oct-2012
14,Revenue,CCHD,Home Care - LD Under 65 - South,Private & Voluntary Home Care,3 Trees Community Support Ltd,110.32, 03-Oct-2012
15,Revenue,CCHD,PWLD Home Care - Under 65 - KH,Private & Voluntary Home Care,3 Trees Community Support Ltd,267.92, 03-Oct-2012
16,Revenue,CCHD,Home Care - Elderly - South,Other Small Contracts,3 Trees Community Support Ltd,94.56, 11-Oct-2012
17,Revenue,CCHD,Home Care - Elderly - North,Other Small Contracts,3 Trees Community Support Ltd,1174.12, 11-Oct-2012
18,Revenue,CCHD,Day Care - North,Private & Voluntary Day Care,3 Trees Community Support Ltd,86.68, 11-Oct-2012
19,Revenue,CCHD,Home Care - LD Under 65 - South,Private & Voluntary Home Care,3 Trees Community Support Ltd,110.32, 11-Oct-2012
20,Revenue,CCHD,PWLD Home Care - Under 65 - KH,Private & Voluntary Home Care,3 Trees Community Support Ltd,267.92, 11-Oct-2012
21,Revenue,CCHD,Home Care - Elderly - South,Other Small Contracts,3 Trees Community Support Ltd,94.56, 15-Oct-2012
22,Revenue,CCHD,Home Care - Elderly - North,Other Small Contracts,3 Trees Community Support Ltd,1512.96, 15-Oct-2012
23,Revenue,CCHD,Day Care - North,Private & Voluntary Day Care,3 Trees Community Support Ltd,90.62, 15-Oct-2012
24,Revenue,CCHD,Home Care - LD Under 65 - South,Private & Voluntary Home Care,3 Trees Community Support Ltd,110.32, 15-Oct-2012
25,Revenue,CCHD,PWLD Home Care - Under 65 - KH,Private & Voluntary Home Care,3 Trees Community Support Ltd,267.92, 15-Oct-2012
26,Revenue,CCHD,Home Care - Elderly - South,Other Small Contracts,3 Trees Community Support Ltd,94.56, 17-Oct-2012
27,Revenue,CCHD,Home Care - Elderly - North,Other Small Contracts,3 Trees Community Support Ltd,1623.28, 17-Oct-2012
28,Revenue,CCHD,Day Care - North,Private & Voluntary Day Care,3 Trees Community Support Ltd,86.68, 17-Oct-2012
29,Revenue,CCHD,Home Care - LD Under 65 - South,Private & Voluntary Home Care,3 Trees Community Support Ltd,110.32, 17-Oct-2012
30,Revenue,CCHD,PWLD Home Care - Under 65 - KH,Private & Voluntary Home Care,3 Trees Community Support Ltd,263.98, 17-Oct-2012
31,Revenue,CCHD,Home Care - Elderly - South,Other Small Contracts,3 Trees Community Support Ltd,94.56, 30-Oct-2012
32,Revenue,CCHD,Home Care - Elderly - North,Other Small Contracts,3 Trees Community Support Ltd,1623.28, 30-Oct-2012
33,Revenue,CCHD,Day Care - North,Private & Voluntary Day Care,3 Trees Community Support Ltd,82.74, 30-Oct-2012
34,Revenue,CCHD,Home Care - LD Under 65 - South,Private & Voluntary Home Care,3 Trees Community Support Ltd,106.38, 30-Oct-2012
35,Revenue,CCHD,PWLD Home Care - Under 65 - KH,Private & Voluntary Home Care,3 Trees Community Support Ltd,256.1, 30-Oct-2012
36,Revenue,CCHD,Home Care - Elderly - South,Other Small Contracts,3 Trees Community Support Ltd,94.56, 30-Oct-2012
37,Revenue,CCHD,Home Care - Elderly - North,Other Small Contracts,3 Trees Community Support Ltd,1623.28, 30-Oct-2012
38,Revenue,CCHD,Day Care - North,Private & Voluntary Day Care,3 Trees Community Support Ltd,86.68, 30-Oct-2012
39,Revenue,CCHD,Home Care - LD Under 65 - South,Private & Voluntary Home Care,3 Trees Community Support Ltd,110.32, 30-Oct-2012
40,Revenue,CCHD,PWLD Home Care - Under 65 - KH,Private & Voluntary Home Care,3 Trees Community Support Ltd,283.68, 30-Oct-2012
41,Revenue,CCHD,Supported Living - PS,Private & Voluntary Home Care,3 Trees Community Support Ltd,629.46, 08-Oct-2012
42,Revenue,CCHD,Supported Living - PS,Private & Voluntary Home Care,3 Trees Community Support Ltd,1252.36, 03-Oct-2012
43,Revenue,CCHD,Supported Living - PS,Private & Voluntary Home Care,3 Trees Community Support Ltd,2379.36, 01-Oct-2012
44,Revenue,CCHD,Purchase of Non-Res Care - PS,Private & Voluntary Day Care,3 Trees Community Support Ltd,652.72, 03-Oct-2012
45,Revenue,CCHD,Purchase of Non-Res Care - PS,Private & Voluntary Day Care,3 Trees Community Support Ltd,3765.98, 08-Oct-2012
46,Revenue,CCHD,Supported Living - KD,Private & Voluntary Home Care,3 Trees Community Support Ltd,32299.52, 09-Oct-2012
47,Revenue,CCHD,Supported Living - PS,Private & Voluntary Home Care,3 Trees Community Support Ltd,586.95, 24-Oct-2012
48,Revenue,CCHD,Supported Living - PS,Private & Voluntary Home Care,3 Trees Community Support Ltd,1290.73, 24-Oct-2012
49,Revenue,CCHD,Purchase of Non-Res Care - KD,Private & Voluntary Day Care,3 Trees Community Support Ltd,4670.76, 17-Oct-2012
50,Revenue,CCHD,Supported Living - KD,Private & Voluntary Home Care,3 Trees Community Support Ltd,2939.96, 24-Oct-2012
51,Revenue,CCHD,Supported Living - PS,Private & Voluntary Home Care,3 Trees Community Support Ltd,2002.8, 24-Oct-2012
52,Revenue,CCHD,Purchase of Non-Res Care - PS,Private & Voluntary Day Care,3 Trees Community Support Ltd,757.07, 29-Oct-2012
53,Revenue,CCHD,Purchase of Non-Res Care - KD,Private & Voluntary Day Care,3 Trees Community Support Ltd,1701.28, 17-Oct-2012
54,Revenue,CCHD,Purchase of Non-Res Care - KD,Private & Voluntary Day Care,3 Trees Community Support Ltd,1689.36, 24-Oct-2012
55,Revenue,CCHD,Purchase of Non-Res Care - KD,Private & Voluntary Day Care,3 Trees Community Support Ltd,1355.53, 17-Oct-2012
56,Revenue,CCHD,Purchase of Non-Res Care - KD,Private & Voluntary Day Care,3 Trees Community Support Ltd,3189.94, 23-Oct-2012
57,Revenue,CCHD,Purchase of Non-Res Care - PS,Private & Voluntary Day Care,3 Trees Community Support Ltd,3134.92, 24-Oct-2012
58,Revenue,CCHD,Supported Living - KD,Private & Voluntary Home Care,3 Trees Community Support Ltd,9835, 17-Oct-2012
59,Revenue,CCHD,Bed Purchasing - Elderly S117- North,Residential Homes,3Rd Floor Westbury House,1716, 02-Oct-2012
60,Revenue,CCHD,Bed Purchasing - Elderly S117- North,Residential Homes,3Rd Floor Westbury House,1716, 30-Oct-2012
61,Revenue,CCHD,Direct Payments - Phys Dis - North,Grants to Voluntary Bodies,A4E Management Limited,22857.93, 19-Oct-2012
62,Revenue,CCHD,Day Care - South,Private & Voluntary Day Care,About Me Care and Support Limited,2023.87, 08-Oct-2012
63,Revenue,CCHD,Day Care - North,Private & Voluntary Day Care,About Me Care and Support Limited,1292.86, 08-Oct-2012
64,Revenue,CCHD,Day Care - North,Private & Voluntary Day Care,About Me Care and Support Limited,535.6, 08-Oct-2012
65,Revenue,CCHD,Day Care - South,Private & Voluntary Day Care,About Me Care and Support Limited,1323.4, 08-Oct-2012
66,Revenue,CCHD,Day Care - North,Private & Voluntary Day Care,Action on Hearing Loss,1029.56, 08-Oct-2012
67,Revenue,CCHD,Day Care - North,Private & Voluntary Day Care,Action on Hearing Loss,702.9, 01-Oct-2012
68,Revenue,CCHD,Day Care - North,Private & Voluntary Day Care,Age UK South Gloucestershire,1192.52, 01-Oct-2012
69,Revenue,CCHD,Day Care - North,Private & Voluntary Day Care,Age UK South Gloucestershire,851.8, 01-Oct-2012
70,Revenue,CCHD,Day Care - South,Private & Voluntary Day Care,Age UK South Gloucestershire,625.92, 29-Oct-2012
71,Revenue,CCHD,Elderly MH Day Care North,Private & Voluntary Day Care,Age UK South Gloucestershire,127.77, 05-Oct-2012
72,Revenue,CCHD,Elderly MH Day Care South,Private & Voluntary Day Care,Age UK South Gloucestershire,851.8, 05-Oct-2012
73,Revenue,CCHD,Day Care - South,Private & Voluntary Day Care,Age UK South Gloucestershire,663.88, 04-Oct-2012
74,Revenue,CCHD,Day Care - South,Private & Voluntary Day Care,Age UK South Gloucestershire,1172.34, 04-Oct-2012
75,Revenue,CCHD,Elderly MH Day Care South,Private & Voluntary Day Care,Age UK South Gloucestershire,851.8, 05-Oct-2012
76,Revenue,CCHD,Day Care - South,Private & Voluntary Day Care,Age UK South Gloucestershire,1064.75, 04-Oct-2012
77,Revenue,CCHD,Home Care - Elderly - South,Other Small Contracts,Agincare Chippenham,820.44, 10-Oct-2012
78,Revenue,CCHD,Home Care - Elderly - South,Other Small Contracts,Agincare Chippenham,839.79, 10-Oct-2012
79,Revenue,CCHD,Home Care - Elderly - South,Other Small Contracts,Agincare Chippenham,940.41, 19-Oct-2012
80,Revenue,CCHD,Home Care - Elderly - South,Other Small Contracts,Agincare Chippenham,774, 29-Oct-2012
81,Revenue,CCHD,Home Care - Elderly - South,Other Small Contracts,Agincare Chippenham,801.09, 03-Oct-2012
82,Revenue,CCHD,Home Care - Elderly - South,Other Small Contracts,Agincare UK Limited,917.19, 03-Oct-2012
83,Revenue,CCHD,Home Care - Elderly - North,Other Small Contracts,Agincare UK Limited,54.18, 03-Oct-2012
84,Revenue,CCHD,Day Care - South,Private & Voluntary Day Care,Agincare UK Limited,193.5, 03-Oct-2012
85,Revenue,CCHD,Elderly MH Day Care North,Private & Voluntary Day Care,Agincare UK Limited,108.36, 03-Oct-2012
86,Revenue,CCHD,Home Care - Elderly - South,Other Small Contracts,Agincare UK Limited,731.43, 03-Oct-2012
87,Revenue,CCHD,Home Care - Elderly - North,Other Small Contracts,Agincare UK Limited,54.18, 03-Oct-2012
88,Revenue,CCHD,Day Care - South,Private & Voluntary Day Care,Agincare UK Limited,112.23, 03-Oct-2012
89,Revenue,CCHD,Elderly MH Day Care North,Private & Voluntary Day Care,Agincare UK Limited,108.36, 03-Oct-2012
90,Revenue,CCHD,Home Care - Elderly - South,Other Small Contracts,Agincare UK Limited,812.7, 19-Oct-2012
91,Revenue,CCHD,Home Care - Elderly - North,Other Small Contracts,Agincare UK Limited,46.44, 19-Oct-2012
92,Revenue,CCHD,Day Care - South,Private & Voluntary Day Care,Agincare UK Limited,193.5, 19-Oct-2012
93,Revenue,CCHD,Elderly MH Day Care North,Private & Voluntary Day Care,Agincare UK Limited,112.23, 19-Oct-2012
94,Revenue,CCHD,Home Care - Elderly - South,Other Small Contracts,Agincare UK Limited,828.18, 19-Oct-2012
95,Revenue,CCHD,Home Care - Elderly - North,Other Small Contracts,Agincare UK Limited,38.7, 19-Oct-2012
96,Revenue,CCHD,Day Care - South,Private & Voluntary Day Care,Agincare UK Limited,166.41, 19-Oct-2012
97,Revenue,CCHD,Elderly MH Day Care North,Private & Voluntary Day Care,Agincare UK Limited,96.75, 19-Oct-2012
98,Revenue,CCHD,Home Care - Elderly - South,Other Small Contracts,Agincare UK Limited,955.89, 01-Oct-2012
99,Revenue,CCHD,Home Care - Elderly - North,Other Small Contracts,Agincare UK Limited,61.92, 01-Oct-2012
100,Revenue,CCHD,Day Care - South,Private & Voluntary Day Care,Agincare UK Limited,119.97, 01-Oct-2012
101,Revenue,CCHD,Elderly MH Day Care North,Private & Voluntary Day Care,Agincare UK Limited,89.01, 01-Oct-2012
102,Revenue,CCHD,S117 Placements PCT,Residential Homes,Alexandra House,13620.56, 02-Oct-2012
103,Revenue,CCHD,S117 Placements PCT,Residential Homes,Alexandra House,6810.28, 30-Oct-2012
104,Revenue,CCHD,Section 117 Placements MH Younger,Residential Homes,Alexandra House,19020, 02-Oct-2012
105,Revenue,CCHD,Section 117 Placements MH Younger,Residential Homes,Alexandra House,6340, 30-Oct-2012
106,Revenue,CCHD,Home Care - Elderly - South,Other Small Contracts,Allied Healthcare Group,556.26, 25-Oct-2012
107,Revenue,CCHD,Home Care - Elderly - North,Other Small Contracts,Allied Healthcare Group,1752.3, 25-Oct-2012
108,Revenue,CCHD,Day Care - North,Private & Voluntary Day Care,Allied Healthcare Group,41.91, 25-Oct-2012
109,Revenue,CCHD,Home Care - Elderly - South,Other Small Contracts,Allied Healthcare Group,621.03, 09-Oct-2012
110,Revenue,CCHD,Home Care - Elderly - North,Other Small Contracts,Allied Healthcare Group,1848.21, 09-Oct-2012
111,Revenue,CCHD,Day Care - North,Private & Voluntary Day Care,Allied Healthcare Group,45.71, 09-Oct-2012
112,Revenue,CCHD,Home Care - Elderly - South,Other Small Contracts,Allied Healthcare Group,502.92, 19-Oct-2012
113,Revenue,CCHD,Home Care - Elderly - North,Other Small Contracts,Allied Healthcare Group,1566.28, 19-Oct-2012
114,Revenue,CCHD,Day Care - North,Private & Voluntary Day Care,Allied Healthcare Group,45.72, 19-Oct-2012
115,Revenue,CCHD,Home Care - Elderly - South,Other Small Contracts,Allied Healthcare Group,605.79, 19-Oct-2012
116,Revenue,CCHD,Home Care - Elderly - North,Other Small Contracts,Allied Healthcare Group,911.11, 19-Oct-2012
117,Revenue,CCHD,Home Care - Elderly - South,Other Small Contracts,Allied Healthcare Group,514.35, 19-Oct-2012
118,Revenue,CCHD,Home Care - Elderly - North,Other Small Contracts,Allied Healthcare Group,1546.56, 19-Oct-2012
119,Revenue,CCHD,Home Care - Elderly - South,Other Small Contracts,Allied Healthcare Group,525.78, 19-Oct-2012
120,Revenue,CCHD,Home Care - Elderly - North,Other Small Contracts,Allied Healthcare Group,1588.47, 19-Oct-2012
121,Revenue,CCHD,Day Care - North,Private & Voluntary Day Care,Allied Healthcare Group,22.86, 19-Oct-2012
122,Revenue,CCHD,Home Care - Elderly - South,Other Small Contracts,Allied Healthcare Group,537.21, 19-Oct-2012
123,Revenue,CCHD,Home Care - Elderly - North,Other Small Contracts,Allied Healthcare Group,1352.25, 19-Oct-2012
124,Revenue,CCHD,Day Care - North,Private & Voluntary Day Care,Allied Healthcare Group,45.72, 19-Oct-2012
125,Revenue,CCHD,Home Care - Elderly - South,Other Small Contracts,Allied Healthcare Group,453.39, 25-Oct-2012
126,Revenue,CCHD,Home Care - Elderly - North,Other Small Contracts,Allied Healthcare Group,1466.55, 25-Oct-2012
127,Revenue,CCHD,Day Care - North,Private & Voluntary Day Care,Allied Healthcare Group,22.86, 25-Oct-2012
128,Revenue,CCHD,Home Care - Elderly - South,Other Small Contracts,Allied Healthcare Group,552.45, 25-Oct-2012
129,Revenue,CCHD,Home Care - Elderly - North,Other Small Contracts,Allied Healthcare Group,1679.91, 25-Oct-2012
130,Revenue,CCHD,Day Care - North,Private & Voluntary Day Care,Allied Healthcare Group,45.72, 25-Oct-2012
131,Revenue,CCHD,Home Care - Elderly - South,Other Small Contracts,Allied Healthcare Group,499.11, 25-Oct-2012
132,Revenue,CCHD,Home Care - Elderly - North,Other Small Contracts,Allied Healthcare Group,1546.56, 25-Oct-2012
133,Revenue,CCHD,Day Care - North,Private & Voluntary Day Care,Allied Healthcare Group,45.72, 25-Oct-2012
134,Revenue,CCHD,Day Care - South,Private & Voluntary Day Care,Alzheimer`s Society Bristol,715.2, 04-Oct-2012
135,Revenue,CCHD,Elderly MH Day Care North,Private & Voluntary Day Care,Alzheimer`s Society Bristol,572.16, 30-Oct-2012
136,Revenue,CCHD,Elderly MH Day Care North,Private & Voluntary Day Care,Alzheimer`s Society Bristol,572.16, 30-Oct-2012
137,Revenue,CCHD,Elderly MH Day Care North,Private & Voluntary Day Care,Alzheimer`s Society Bristol,858.24, 30-Oct-2012
138,Revenue,CCHD,Day Care - South,Private & Voluntary Day Care,Alzheimer`s Society Bristol,572.16, 30-Oct-2012
139,Revenue,CCHD,Elderly MH Day Care South,Private & Voluntary Day Care,Alzheimer`s Society Bristol,572.16, 30-Oct-2012
140,Revenue,CCHD,Bed Purchasing - Elderly S117- North,Private & Voluntary Day Care,Alzheimer`s Society Bristol,572.16, 30-Oct-2012
141,Revenue,CCHD,Frenchay Hospital Purchasing,Residential Homes,Amber Care Ltd,2580.4, 02-Oct-2012
142,Revenue,CCHD,Frenchay Hospital Purchasing,Residential Homes,Amber Care Ltd,1290.2, 30-Oct-2012
143,Revenue,CCHD,Southmead Hospital Purchasing,Nursing Homes,Ambleside Nusing Ho!,1416.4, 02-Oct-2012
144,Revenue,CCHD,Frenchay Hospital Purchasing,Residential Homes,Anbridge Care Home,828.88, 02-Oct-2012
145,Revenue,CCHD,Frenchay Hospital Purchasing,Residential Homes,Anbridge Care Home,828.88, 30-Oct-2012
146,Revenue,CCHD,Private Sector Housing,Conference Expenses,APP User Group,475, 19-Oct-2012
147,Revenue,CCHD,Charlton,Other Supplies & Services,Apre Surfacing Limited,1885.3, 23-Oct-2012
148,Revenue,CCHD,Bed purchasing - Under 65s PWLD - North,Residential Homes,Ark Care Homes Ltd,10505.24, 02-Oct-2012
149,Revenue,CCHD,Bed purchasing - Under 65s PWLD - North,Residential Homes,Ark Care Homes Ltd,8896.53, 30-Oct-2012
150,Revenue,CCHD,Bed Purchasing - Elderly - South,Residential Homes,Ashbourne House Care Home Limited,1102.96, 02-Oct-2012
151,Revenue,CCHD,Bed and Breakfast,Bed & Breakfast,Ashley Guest Houses Ltd,670, 19-Oct-2012
152,Revenue,CCHD,Bed and Breakfast,Bed & Breakfast,Ashley Guest Houses Ltd,1078, 30-Oct-2012
153,Revenue,CCHD,Bed and Breakfast,Bed & Breakfast,Ashley Guest Houses Ltd,504, 05-Oct-2012
154,Revenue,CCHD,Bed and Breakfast,Bed & Breakfast,Ashley Guest Houses Ltd,504, 12-Oct-2012
155,Revenue,CCHD,Bed Purchasing - S28A - Over 65- North,Residential Homes,Aspects &  Milestones Trust,3882.32, 02-Oct-2012
156,Revenue,CCHD,Bed Purchasing - S28A - Over 65- North,Residential Homes,Aspects &  Milestones Trust,3882.32, 30-Oct-2012
157,Revenue,CCHD,Bed Purchasing - Elderly - South,Residential Homes,Aspects &  Milestones Trust,1398.4, 02-Oct-2012
158,Revenue,CCHD,Bed Purchasing - Elderly - South,Residential Homes,Aspects &  Milestones Trust,1398.4, 30-Oct-2012
159,Revenue,CCHD,Bed Purchasing - Under 65s PWLD - South,Residential Homes,Aspects &  Milestones Trust,6090.6, 02-Oct-2012
160,Revenue,CCHD,Bed Purchasing - Under 65s PWLD - South,Residential Homes,Aspects &  Milestones Trust,6090.6, 30-Oct-2012
161,Revenue,CCHD,Bed Purchasing - Elderly S117- North,Residential Homes,Aspects &  Milestones Trust,1325.92, 02-Oct-2012
162,Revenue,CCHD,Bed Purchasing - Elderly S117- North,Residential Homes,Aspects &  Milestones Trust,1325.92, 30-Oct-2012
163,Revenue,CCHD,Bed Purchasing - Elderly S117- North,Nursing Homes,Aspects &  Milestones Trust,1944.08, 02-Oct-2012
164,Revenue,CCHD,Bed Purchasing - Elderly S117- North,Nursing Homes,Aspects &  Milestones Trust,1944.08, 30-Oct-2012
165,Revenue,CCHD,Bed purchasing - Elderly MH - North,Nursing Homes,Aspects &  Milestones Trust,2318.24, 02-Oct-2012
166,Revenue,CCHD,Bed purchasing - Elderly MH - North,Nursing Homes,Aspects &  Milestones Trust,2318.24, 30-Oct-2012
167,Revenue,CCHD,Bed Purchasing - Elderly - South,Residential Homes,Aspects &  Milestones Trust,705.8, 02-Oct-2012
168,Revenue,CCHD,Bed Purchasing - Elderly - South,Residential Homes,Aspects &  Milestones Trust,705.8, 30-Oct-2012
169,Revenue,CCHD,MH Purchasing - Younger,Residential Homes,Aspects &  Milestones Trust,804.87, 30-Oct-2012
170,Revenue,CCHD,Bed purchasing - Elderly PWLD - North,Residential Homes,Aspects &  Milestones Trust,3554.88, 02-Oct-2012
171,Revenue,CCHD,Bed purchasing - Elderly PWLD - North,Residential Homes,Aspects &  Milestones Trust,3554.88, 30-Oct-2012
172,Revenue,CCHD,Bed Purchasing - Under 65s PWLD - South,Residential Homes,Aspects &  Milestones Trust,5227.12, 02-Oct-2012
173,Revenue,CCHD,Bed Purchasing - Under 65s PWLD - South,Residential Homes,Aspects &  Milestones Trust,5227.12, 30-Oct-2012
174,Revenue,CCHD,Bed Purchasing - Under 65s PWLD - South,Residential Homes,Aspects &  Milestones Trust,5683.72, 02-Oct-2012
175,Revenue,CCHD,Bed Purchasing - Under 65s PWLD - South,Residential Homes,Aspects &  Milestones Trust,5683.72, 30-Oct-2012
176,Revenue,CCHD,Bed Purchasing - Under 65s PWLD - South,Nursing Homes,Aspects &  Milestones Trust,2766.32, 02-Oct-2012
177,Revenue,CCHD,Bed Purchasing - Under 65s PWLD - South,Nursing Homes,Aspects &  Milestones Trust,2766.32, 30-Oct-2012
178,Revenue,CCHD,Bed Purchasing - Elderly S117- North,Nursing Homes,Aspects &  Milestones Trust,1944, 02-Oct-2012
179,Revenue,CCHD,Bed Purchasing - Elderly S117- North,Nursing Homes,Aspects &  Milestones Trust,1944, 30-Oct-2012
180,Revenue,CCHD,Bed purchasing - Elderly MH - North,Nursing Homes,Aspects &  Milestones Trust,1430.08, 02-Oct-2012
181,Revenue,CCHD,Bed purchasing - Elderly MH - North,Nursing Homes,Aspects &  Milestones Trust,1430.08, 30-Oct-2012
182,Revenue,CCHD,Section 117 Placements MH Younger,Nursing Homes,Aspects &  Milestones Trust,1416, 02-Oct-2012
183,Revenue,CCHD,Section 117 Placements MH Younger,Nursing Homes,Aspects &  Milestones Trust,1416, 30-Oct-2012
184,Revenue,CCHD,Bed purchasing - Elderly PWLD - South,Residential Homes,Aspects &  Milestones Trust,3199.56, 02-Oct-2012
185,Revenue,CCHD,Bed purchasing - Elderly PWLD - South,Residential Homes,Aspects &  Milestones Trust,3199.56, 30-Oct-2012
186,Revenue,CCHD,Bed purchasing - Elderly PWLD - South,Residential Homes,Aspects &  Milestones Trust,4357.8, 02-Oct-2012
187,Revenue,CCHD,Bed purchasing - Elderly PWLD - South,Residential Homes,Aspects &  Milestones Trust,4357.8, 30-Oct-2012
188,Revenue,CCHD,Bed purchasing -S28A  Under 65 - North,Nursing Homes,Aspects &  Milestones Trust,5800.72, 02-Oct-2012
189,Revenue,CCHD,Bed purchasing -S28A  Under 65 - North,Nursing Homes,Aspects &  Milestones Trust,5800.72, 30-Oct-2012
190,Revenue,CCHD,Bed purchasing -S28A  Under 65 - North,Residential Homes,Aspects &  Milestones Trust,5183.96, 02-Oct-2012
191,Revenue,CCHD,Bed purchasing -S28A  Under 65 - North,Residential Homes,Aspects &  Milestones Trust,5183.96, 30-Oct-2012
192,Revenue,CCHD,Bed Purchasing - Under 65s PWLD - South,Residential Homes,Aspects &  Milestones Trust,3495.32, 02-Oct-2012
193,Revenue,CCHD,Bed Purchasing - Under 65s PWLD - South,Residential Homes,Aspects &  Milestones Trust,3495.32, 30-Oct-2012
194,Revenue,CCHD,Bed purchasing - S28A Under 65 - South,Residential Homes,Aspects &  Milestones Trust,5327.8, 02-Oct-2012
195,Revenue,CCHD,Bed purchasing - S28A Under 65 - South,Residential Homes,Aspects &  Milestones Trust,5327.8, 30-Oct-2012
196,Revenue,CCHD,Bed Purchasing - Under 65s PWLD - South,Residential Homes,Aspects &  Milestones Trust,5721.6, 02-Oct-2012
197,Revenue,CCHD,Bed Purchasing - Under 65s PWLD - South,Residential Homes,Aspects &  Milestones Trust,5721.6, 30-Oct-2012
198,Revenue,CCHD,Bed purchasing - Under 65s PWLD - North,Residential Homes,Aspects &  Milestones Trust,3843.72, 02-Oct-2012
199,Revenue,CCHD,Bed purchasing - Under 65s PWLD - North,Residential Homes,Aspects &  Milestones Trust,3843.72, 30-Oct-2012
200,Revenue,CCHD,Bed purchasing - S28A Under 65 - South,Nursing Homes,Aspects &  Milestones Trust,7576.08, 02-Oct-2012
201,Revenue,CCHD,Bed purchasing - S28A Under 65 - South,Nursing Homes,Aspects &  Milestones Trust,7576.08, 30-Oct-2012
202,Revenue,CCHD,MH Purchasing - Younger,Residential Homes,Aspects &  Milestones Trust,847.2, 02-Oct-2012
203,Revenue,CCHD,MH Purchasing - Younger,Residential Homes,Aspects &  Milestones Trust,847.2, 30-Oct-2012
204,Revenue,CCHD,Bed purchasing - Elderly PWLD - South,Residential Homes,Aspects &  Milestones Trust,5276.32, 02-Oct-2012
205,Revenue,CCHD,Bed purchasing - Elderly PWLD - South,Residential Homes,Aspects &  Milestones Trust,5276.32, 30-Oct-2012
206,Revenue,CCHD,Bed purchasing - Elderly PWLD - South,Residential Homes,Aspects &  Milestones Trust,3791.92, 02-Oct-2012
207,Revenue,CCHD,Bed purchasing - Elderly PWLD - South,Residential Homes,Aspects &  Milestones Trust,3791.92, 30-Oct-2012
208,Revenue,CCHD,Bed purchasing - Elderly PWLD - North,Residential Homes,Aspects &  Milestones Trust,4732.52, 02-Oct-2012
209,Revenue,CCHD,Bed purchasing - Elderly PWLD - North,Residential Homes,Aspects &  Milestones Trust,4732.52, 30-Oct-2012
210,Revenue,CCHD,Bed purchasing -S28A  Under 65 - North,Residential Homes,Aspects &  Milestones Trust,5268.68, 02-Oct-2012
211,Revenue,CCHD,Bed purchasing -S28A  Under 65 - North,Residential Homes,Aspects &  Milestones Trust,5268.68, 30-Oct-2012
212,Revenue,CCHD,Bed purchasing -S28A  Under 65 - North,Residential Homes,Aspects &  Milestones Trust,6125.96, 02-Oct-2012
213,Revenue,CCHD,Bed purchasing -S28A  Under 65 - North,Residential Homes,Aspects &  Milestones Trust,6125.96, 30-Oct-2012
214,Revenue,CCHD,Bed purchasing -S28A  Under 65 - North,Nursing Homes,Aspects &  Milestones Trust,6213.88, 02-Oct-2012
215,Revenue,CCHD,Bed purchasing -S28A  Under 65 - North,Nursing Homes,Aspects &  Milestones Trust,6213.88, 30-Oct-2012
216,Revenue,CCHD,Bed Purchasing - Under 65s PWLD - South,Residential Homes,Aspects &  Milestones Trust,3699.6, 02-Oct-2012
217,Revenue,CCHD,Bed Purchasing - Under 65s PWLD - South,Residential Homes,Aspects &  Milestones Trust,3699.6, 30-Oct-2012
218,Revenue,CCHD,Bed purchasing -S28A  Under 65 - North,Residential Homes,Aspects &  Milestones Trust,6125.96, 02-Oct-2012
219,Revenue,CCHD,Bed purchasing -S28A  Under 65 - North,Residential Homes,Aspects &  Milestones Trust,6125.96, 30-Oct-2012
220,Revenue,CCHD,Bed purchasing - S28A Under 65 - South,Residential Homes,Aspects &  Milestones Trust,4856.92, 02-Oct-2012
221,Revenue,CCHD,Bed purchasing - S28A Under 65 - South,Residential Homes,Aspects &  Milestones Trust,4856.92, 30-Oct-2012
222,Revenue,CCHD,Bed Purchasing - S28A - Over 65- North,Residential Homes,Aspects &  Milestones Trust,4732.76, 02-Oct-2012
223,Revenue,CCHD,Bed Purchasing - S28A - Over 65- North,Residential Homes,Aspects &  Milestones Trust,4732.76, 30-Oct-2012
224,Revenue,CCHD,Bed Purchasing - LD S28A- Over 65- South,Residential Homes,Aspects &  Milestones Trust,4015.52, 02-Oct-2012
225,Revenue,CCHD,Bed Purchasing - LD S28A- Over 65- South,Residential Homes,Aspects &  Milestones Trust,4015.52, 30-Oct-2012
226,Revenue,CCHD,Bed purchasing -S28A  Under 65 - North,Residential Homes,Aspects &  Milestones Trust,6125.96, 02-Oct-2012
227,Revenue,CCHD,Bed purchasing -S28A  Under 65 - North,Residential Homes,Aspects &  Milestones Trust,6125.96, 30-Oct-2012
228,Revenue,CCHD,Bed Purchasing - S28A - Over 65- North,Residential Homes,Aspects &  Milestones Trust,4239.2, 02-Oct-2012
229,Revenue,CCHD,Bed Purchasing - S28A - Over 65- North,Residential Homes,Aspects &  Milestones Trust,4239.2, 30-Oct-2012
230,Revenue,CCHD,Bed purchasing -S28A  Under 65 - North,Residential Homes,Aspects &  Milestones Trust,6125.96, 02-Oct-2012
231,Revenue,CCHD,Bed purchasing -S28A  Under 65 - North,Residential Homes,Aspects &  Milestones Trust,6125.96, 30-Oct-2012
232,Revenue,CCHD,Bed Purchasing - LD S28A- Over 65- South,Residential Homes,Aspects &  Milestones Trust,3905.44, 02-Oct-2012
233,Revenue,CCHD,Bed Purchasing - LD S28A- Over 65- South,Residential Homes,Aspects &  Milestones Trust,3905.44, 30-Oct-2012
234,Revenue,CCHD,Bed purchasing - S28A Under 65 - South,Residential Homes,Aspects &  Milestones Trust,5052.2, 02-Oct-2012
235,Revenue,CCHD,Bed purchasing - S28A Under 65 - South,Residential Homes,Aspects &  Milestones Trust,5052.2, 30-Oct-2012
236,Revenue,CCHD,Bed purchasing - S28A Under 65 - South,Residential Homes,Aspects &  Milestones Trust,6626.28, 02-Oct-2012
237,Revenue,CCHD,Bed purchasing - S28A Under 65 - South,Residential Homes,Aspects &  Milestones Trust,6626.28, 30-Oct-2012
238,Revenue,CCHD,Bed purchasing - S28A Under 65 - South,Residential Homes,Aspects &  Milestones Trust,4047.8, 02-Oct-2012
239,Revenue,CCHD,Bed purchasing - S28A Under 65 - South,Residential Homes,Aspects &  Milestones Trust,4047.8, 30-Oct-2012
240,Revenue,CCHD,Bed Purchasing - LD S28A- Over 65- South,Residential Homes,Aspects &  Milestones Trust,5824.28, 02-Oct-2012
241,Revenue,CCHD,Bed Purchasing - LD S28A- Over 65- South,Residential Homes,Aspects &  Milestones Trust,5824.28, 30-Oct-2012
242,Revenue,CCHD,Bed Purchasing - S28A - Over 65- North,Residential Homes,Aspects &  Milestones Trust,3397.72, 02-Oct-2012
243,Revenue,CCHD,Bed Purchasing - S28A - Over 65- North,Residential Homes,Aspects &  Milestones Trust,3397.72, 30-Oct-2012
244,Revenue,CCHD,Bed Purchasing - LD S28A- Over 65- South,Residential Homes,Aspects &  Milestones Trust,4760.52, 02-Oct-2012
245,Revenue,CCHD,Bed Purchasing - LD S28A- Over 65- South,Residential Homes,Aspects &  Milestones Trust,4760.52, 30-Oct-2012
246,Revenue,CCHD,Bed Purchasing - LD S28A- Over 65- South,Residential Homes,Aspects &  Milestones Trust,4908.2, 02-Oct-2012
247,Revenue,CCHD,Bed Purchasing - LD S28A- Over 65- South,Residential Homes,Aspects &  Milestones Trust,4908.2, 30-Oct-2012
248,Revenue,CCHD,Bed Purchasing - LD S28A- Over 65- South,Residential Homes,Aspects &  Milestones Trust,4622.6, 02-Oct-2012
249,Revenue,CCHD,Bed Purchasing - LD S28A- Over 65- South,Residential Homes,Aspects &  Milestones Trust,4622.6, 30-Oct-2012
250,Revenue,CCHD,Bed Purchasing - LD S28A- Over 65- South,Residential Homes,Aspects &  Milestones Trust,5383.48, 02-Oct-2012
251,Revenue,CCHD,Bed Purchasing - LD S28A- Over 65- South,Residential Homes,Aspects &  Milestones Trust,5383.48, 30-Oct-2012
252,Revenue,CCHD,Bed purchasing -S28A  Under 65 - North,Residential Homes,Aspects &  Milestones Trust,7309.52, 02-Oct-2012
253,Revenue,CCHD,Bed purchasing -S28A  Under 65 - North,Residential Homes,Aspects &  Milestones Trust,7309.52, 30-Oct-2012
254,Revenue,CCHD,Bed purchasing -S28A  Under 65 - North,Nursing Homes,Aspects &  Milestones Trust,6296.44, 02-Oct-2012
255,Revenue,CCHD,Bed purchasing -S28A  Under 65 - North,Nursing Homes,Aspects &  Milestones Trust,6296.44, 30-Oct-2012
256,Revenue,CCHD,Bed Purchasing - LD S28A- Over 65- South,Residential Homes,Aspects &  Milestones Trust,3492.92, 02-Oct-2012
257,Revenue,CCHD,Bed Purchasing - LD S28A- Over 65- South,Residential Homes,Aspects &  Milestones Trust,3492.92, 30-Oct-2012
258,Revenue,CCHD,Bed Purchasing - LD S28A- Over 65- South,Residential Homes,Aspects &  Milestones Trust,3251.48, 02-Oct-2012
259,Revenue,CCHD,Bed Purchasing - LD S28A- Over 65- South,Residential Homes,Aspects &  Milestones Trust,3251.48, 30-Oct-2012
260,Revenue,CCHD,Bed Purchasing - S28A - Over 65- North,Residential Homes,Aspects &  Milestones Trust,3308.72, 02-Oct-2012
261,Revenue,CCHD,Bed Purchasing - S28A - Over 65- North,Residential Homes,Aspects &  Milestones Trust,3308.72, 30-Oct-2012
262,Revenue,CCHD,Bed Purchasing - LD S28A- Over 65- South,Residential Homes,Aspects &  Milestones Trust,4720.44, 02-Oct-2012
263,Revenue,CCHD,Bed Purchasing - LD S28A- Over 65- South,Residential Homes,Aspects &  Milestones Trust,4720.44, 30-Oct-2012
264,Revenue,CCHD,Section 117 Placements MH Younger,Residential Homes,Aspects &  Milestones Trust,1324, 02-Oct-2012
265,Revenue,CCHD,Section 117 Placements MH Younger,Residential Homes,Aspects &  Milestones Trust,1324, 30-Oct-2012
266,Revenue,CCHD,Bed purchasing - Elderly MH - North,Residential Homes,Aspects &  Milestones Trust,849.48, 02-Oct-2012
267,Revenue,CCHD,Bed purchasing - Elderly MH - North,Residential Homes,Aspects &  Milestones Trust,849.48, 30-Oct-2012
268,Revenue,CCHD,Bed purchasing - S28A Under 65 - South,Residential Homes,Aspects &  Milestones Trust,4790.96, 02-Oct-2012
269,Revenue,CCHD,Bed purchasing - S28A Under 65 - South,Residential Homes,Aspects &  Milestones Trust,4790.96, 30-Oct-2012
270,Revenue,CCHD,Bed purchasing - Elderly PWLD - North,Residential Homes,Aspects &  Milestones Trust,5424.04, 02-Oct-2012
271,Revenue,CCHD,Bed purchasing - Elderly PWLD - North,Residential Homes,Aspects &  Milestones Trust,5424.04, 30-Oct-2012
272,Revenue,CCHD,Bed purchasing - Under 65s PWLD - North,Residential Homes,Aspects &  Milestones Trust,5511.12, 02-Oct-2012
273,Revenue,CCHD,Bed purchasing - Under 65s PWLD - North,Residential Homes,Aspects &  Milestones Trust,5511.12, 30-Oct-2012
274,Revenue,CCHD,Bed purchasing - Elderly MH - North,Nursing Homes,Aspects &  Milestones Trust,1096.68, 02-Oct-2012
275,Revenue,CCHD,Bed purchasing - Elderly MH - North,Nursing Homes,Aspects &  Milestones Trust,1096.68, 30-Oct-2012
276,Revenue,CCHD,Bed Purchasing - Under 65s PWLD - South,Residential Homes,Aspects &  Milestones Trust,3849.4, 02-Oct-2012
277,Revenue,CCHD,Bed Purchasing - Under 65s PWLD - South,Residential Homes,Aspects &  Milestones Trust,3849.4, 30-Oct-2012
278,Revenue,CCHD,Bed purchasing -S28A  Under 65 - North,Residential Homes,Aspects &  Milestones Trust,5771.6, 02-Oct-2012
279,Revenue,CCHD,Bed purchasing -S28A  Under 65 - North,Residential Homes,Aspects &  Milestones Trust,5771.6, 30-Oct-2012
280,Revenue,CCHD,Bed Purchasing - S28A - Over 65- North,Residential Homes,Aspects &  Milestones Trust,3271.48, 02-Oct-2012
281,Revenue,CCHD,Bed Purchasing - S28A - Over 65- North,Residential Homes,Aspects &  Milestones Trust,3271.48, 30-Oct-2012
282,Revenue,CCHD,Section 117 Placements MH Younger,Residential Homes,Aspects &  Milestones Trust,1716, 02-Oct-2012
283,Revenue,CCHD,Section 117 Placements MH Younger,Residential Homes,Aspects &  Milestones Trust,1716, 30-Oct-2012
284,Revenue,CCHD,MH Purchasing - Younger,Residential Homes,Aspects &  Milestones Trust,1012.6, 02-Oct-2012
285,Revenue,CCHD,MH Purchasing - Younger,Residential Homes,Aspects &  Milestones Trust,1012.6, 30-Oct-2012
286,Revenue,CCHD,Bed Purchasing - S28A - Over 65- North,Residential Homes,Aspects &  Milestones Trust,3511.28, 02-Oct-2012
287,Revenue,CCHD,Bed Purchasing - S28A - Over 65- North,Residential Homes,Aspects &  Milestones Trust,3511.28, 30-Oct-2012
288,Revenue,CCHD,Bed purchasing - S28A Under 65 - South,Residential Homes,Aspects &  Milestones Trust,3563.92, 02-Oct-2012
289,Revenue,CCHD,Bed purchasing - S28A Under 65 - South,Residential Homes,Aspects &  Milestones Trust,3563.92, 30-Oct-2012
290,Revenue,CCHD,Bed purchasing - S28A Under 65 - South,Residential Homes,Aspects &  Milestones Trust,5052.2, 02-Oct-2012
291,Revenue,CCHD,Bed purchasing - S28A Under 65 - South,Residential Homes,Aspects &  Milestones Trust,5052.2, 30-Oct-2012
292,Revenue,CCHD,Bed purchasing - S28A Under 65 - South,Residential Homes,Aspects &  Milestones Trust,6024.64, 02-Oct-2012
293,Revenue,CCHD,Bed purchasing - S28A Under 65 - South,Residential Homes,Aspects &  Milestones Trust,6024.64, 30-Oct-2012
294,Revenue,CCHD,Bed Purchasing - LD S28A- Over 65- South,Residential Homes,Aspects &  Milestones Trust,5898.16, 02-Oct-2012
295,Revenue,CCHD,Bed Purchasing - LD S28A- Over 65- South,Residential Homes,Aspects &  Milestones Trust,5898.16, 30-Oct-2012
296,Revenue,CCHD,Bed Purchasing - LD S28A- Over 65- South,Residential Homes,Aspects &  Milestones Trust,4164.96, 02-Oct-2012
297,Revenue,CCHD,Bed Purchasing - LD S28A- Over 65- South,Residential Homes,Aspects &  Milestones Trust,4164.96, 30-Oct-2012
298,Revenue,CCHD,Bed Purchasing - LD S28A- Over 65- South,Residential Homes,Aspects &  Milestones Trust,4720.44, 02-Oct-2012
299,Revenue,CCHD,Bed Purchasing - LD S28A- Over 65- South,Residential Homes,Aspects &  Milestones Trust,4720.44, 30-Oct-2012
300,Revenue,CCHD,Bed Purchasing - S28A - Over 65- North,Residential Homes,Aspects &  Milestones Trust,4762.64, 02-Oct-2012
301,Revenue,CCHD,Bed Purchasing - LD S28A- Over 65- South,Residential Homes,Aspects &  Milestones Trust,5607.6, 02-Oct-2012
302,Revenue,CCHD,Bed Purchasing - LD S28A- Over 65- South,Residential Homes,Aspects &  Milestones Trust,5607.6, 30-Oct-2012
303,Revenue,CCHD,Bed purchasing - S28A Under 65 - South,Residential Homes,Aspects &  Milestones Trust,7738.32, 02-Oct-2012
304,Revenue,CCHD,Bed purchasing - S28A Under 65 - South,Residential Homes,Aspects &  Milestones Trust,7572.92, 30-Oct-2012
305,Revenue,CCHD,Bed Purchasing - LD S28A- Over 65- South,Residential Homes,Aspects &  Milestones Trust,4902.32, 02-Oct-2012
306,Revenue,CCHD,Bed Purchasing - LD S28A- Over 65- South,Residential Homes,Aspects &  Milestones Trust,4902.32, 30-Oct-2012
307,Revenue,CCHD,Bed purchasing -S28A  Under 65 - North,Residential Homes,Aspects &  Milestones Trust,4743.92, 02-Oct-2012
308,Revenue,CCHD,Bed purchasing -S28A  Under 65 - North,Residential Homes,Aspects &  Milestones Trust,4743.92, 30-Oct-2012
309,Revenue,CCHD,Bed Purchasing - S28A - Over 65- North,Residential Homes,Aspects &  Milestones Trust,4885.4, 02-Oct-2012
310,Revenue,CCHD,Bed Purchasing - S28A - Over 65- North,Residential Homes,Aspects &  Milestones Trust,4885.4, 30-Oct-2012
311,Revenue,CCHD,Bed Purchasing - S28A - Over 65- North,Residential Homes,Aspects &  Milestones Trust,5473.64, 02-Oct-2012
312,Revenue,CCHD,Bed Purchasing - S28A - Over 65- North,Residential Homes,Aspects &  Milestones Trust,5473.64, 30-Oct-2012
313,Revenue,CCHD,Bed purchasing - S28A Under 65 - South,Residential Homes,Aspects &  Milestones Trust,4611.44, 02-Oct-2012
314,Revenue,CCHD,Bed purchasing - S28A Under 65 - South,Residential Homes,Aspects &  Milestones Trust,4611.44, 30-Oct-2012
315,Revenue,CCHD,Bed Purchasing - S28A - Over 65- North,Residential Homes,Aspects &  Milestones Trust,4885.4, 02-Oct-2012
316,Revenue,CCHD,Bed Purchasing - S28A - Over 65- North,Residential Homes,Aspects &  Milestones Trust,4885.4, 30-Oct-2012
317,Revenue,CCHD,Bed Purchasing - S28A - Over 65- North,Residential Homes,Aspects &  Milestones Trust,5277.28, 02-Oct-2012
318,Revenue,CCHD,Bed Purchasing - S28A - Over 65- North,Residential Homes,Aspects &  Milestones Trust,5277.28, 30-Oct-2012
319,Revenue,CCHD,Bed purchasing - S28A Under 65 - South,Residential Homes,Aspects &  Milestones Trust,4610.35, 02-Oct-2012
320,Revenue,CCHD,Bed purchasing - S28A Under 65 - South,Residential Homes,Aspects &  Milestones Trust,4569, 30-Oct-2012
321,Revenue,CCHD,Bed purchasing -S28A  Under 65 - North,Residential Homes,Aspects &  Milestones Trust,6125.96, 02-Oct-2012
322,Revenue,CCHD,Bed purchasing -S28A  Under 65 - North,Residential Homes,Aspects &  Milestones Trust,6125.96, 30-Oct-2012
323,Revenue,CCHD,Bed Purchasing - S28A - Over 65- North,Residential Homes,Aspects &  Milestones Trust,5621.68, 02-Oct-2012
324,Revenue,CCHD,Bed Purchasing - S28A - Over 65- North,Residential Homes,Aspects &  Milestones Trust,5621.68, 30-Oct-2012
325,Revenue,CCHD,Bed purchasing -S28A  Under 65 - North,Residential Homes,Aspects &  Milestones Trust,3468.84, 02-Oct-2012
326,Revenue,CCHD,Bed purchasing -S28A  Under 65 - North,Residential Homes,Aspects &  Milestones Trust,3468.84, 30-Oct-2012
327,Revenue,CCHD,Bed Purchasing - S28A - Over 65- North,Residential Homes,Aspects &  Milestones Trust,3275.16, 02-Oct-2012
328,Revenue,CCHD,Bed Purchasing - S28A - Over 65- North,Residential Homes,Aspects &  Milestones Trust,3275.16, 30-Oct-2012
329,Revenue,CCHD,Bed Purchasing - S28A - Over 65- North,Residential Homes,Aspects &  Milestones Trust,3412.88, 02-Oct-2012
330,Revenue,CCHD,Bed Purchasing - S28A - Over 65- North,Residential Homes,Aspects &  Milestones Trust,3412.88, 30-Oct-2012
331,Revenue,CCHD,Bed Purchasing - LD S28A- Over 65- South,Residential Homes,Aspects &  Milestones Trust,3204.2, 02-Oct-2012
332,Revenue,CCHD,Bed Purchasing - LD S28A- Over 65- South,Residential Homes,Aspects &  Milestones Trust,3204.2, 30-Oct-2012
333,Revenue,CCHD,Bed purchasing - Elderly S117 - South,Nursing Homes,Aspects &  Milestones Trust,1945.16, 02-Oct-2012
334,Revenue,CCHD,Bed purchasing - Elderly S117 - South,Nursing Homes,Aspects &  Milestones Trust,1945.16, 30-Oct-2012
335,Revenue,CCHD,Bed Purchasing - Elderly - South,Nursing Homes,Aspects &  Milestones Trust,2592.64, 02-Oct-2012
336,Revenue,CCHD,Bed Purchasing - Elderly - South,Nursing Homes,Aspects &  Milestones Trust,17500.32, 30-Oct-2012
337,Revenue,CCHD,Bed Purchasing - Elderly - South,Nursing Homes,Aspects &  Milestones Trust,1456.88, 30-Oct-2012
338,Revenue,CCHD,Bed purchasing - Under 65s PWLD - North,Residential Homes,Aspects &  Milestones Trust,6125.96, 02-Oct-2012
339,Revenue,CCHD,Bed purchasing - Under 65s PWLD - North,Residential Homes,Aspects &  Milestones Trust,6125.96, 30-Oct-2012
340,Revenue,CCHD,MH Purchasing - Younger,Nursing Homes,Aspects &  Milestones Trust,920.56, 02-Oct-2012
341,Revenue,CCHD,MH Purchasing - Younger,Nursing Homes,Aspects &  Milestones Trust,920.56, 30-Oct-2012
342,Revenue,CCHD,MH Purchasing - Younger,Nursing Homes,Aspects &  Milestones Trust,939.2, 02-Oct-2012
343,Revenue,CCHD,MH Purchasing - Younger,Nursing Homes,Aspects &  Milestones Trust,939.2, 30-Oct-2012
344,Revenue,CCHD,MH Purchasing - Younger,Residential Homes,Aspects &  Milestones Trust,1012.6, 02-Oct-2012
345,Revenue,CCHD,MH Purchasing - Younger,Residential Homes,Aspects &  Milestones Trust,1012.6, 30-Oct-2012
346,Revenue,CCHD,Bed purchasing - Elderly PWLD - South,Residential Homes,Aspects &  Milestones Trust,3399.76, 02-Oct-2012
347,Revenue,CCHD,Bed purchasing - Elderly PWLD - South,Residential Homes,Aspects &  Milestones Trust,3399.76, 30-Oct-2012
348,Revenue,CCHD,Bed purchasing - S28A Under 65 - South,Residential Homes,Aspects &  Milestones Trust,7168.2, 02-Oct-2012
349,Revenue,CCHD,Bed purchasing - S28A Under 65 - South,Residential Homes,Aspects &  Milestones Trust,7168.2, 30-Oct-2012
350,Revenue,CCHD,Bed purchasing - S28A Under 65 - South,Residential Homes,Aspects &  Milestones Trust,4866.72, 02-Oct-2012
351,Revenue,CCHD,Bed purchasing - S28A Under 65 - South,Residential Homes,Aspects &  Milestones Trust,4866.72, 30-Oct-2012
352,Revenue,CCHD,Bed Purchasing - LD S28A- Over 65- South,Residential Homes,Aspects &  Milestones Trust,4628.68, 02-Oct-2012
353,Revenue,CCHD,Bed Purchasing - LD S28A- Over 65- South,Residential Homes,Aspects &  Milestones Trust,4628.68, 30-Oct-2012
354,Revenue,CCHD,Bed Purchasing - Under 65s PWLD - South,Residential Homes,Aspects &  Milestones Trust,4173.08, 02-Oct-2012
355,Revenue,CCHD,Bed Purchasing - Under 65s PWLD - South,Residential Homes,Aspects &  Milestones Trust,4173.08, 30-Oct-2012
356,Revenue,CCHD,Bed Purchasing - LD S28A- Over 65- South,Residential Homes,Aspects &  Milestones Trust,5898.16, 02-Oct-2012
357,Revenue,CCHD,Bed Purchasing - LD S28A- Over 65- South,Residential Homes,Aspects &  Milestones Trust,5898.16, 30-Oct-2012
358,Revenue,CCHD,Bed Purchasing - LD S28A- Over 65- South,Residential Homes,Aspects &  Milestones Trust,3973.08, 02-Oct-2012
359,Revenue,CCHD,Bed Purchasing - LD S28A- Over 65- South,Residential Homes,Aspects &  Milestones Trust,3973.08, 30-Oct-2012
360,Revenue,CCHD,Bed Purchasing - LD S28A- Over 65- South,Residential Homes,Aspects &  Milestones Trust,4406.8, 02-Oct-2012
361,Revenue,CCHD,Bed Purchasing - LD S28A- Over 65- South,Residential Homes,Aspects &  Milestones Trust,4406.8, 30-Oct-2012
362,Revenue,CCHD,Bed Purchasing - LD S28A- Over 65- South,Residential Homes,Aspects &  Milestones Trust,5155.88, 02-Oct-2012
363,Revenue,CCHD,Bed Purchasing - LD S28A- Over 65- South,Residential Homes,Aspects &  Milestones Trust,5155.88, 30-Oct-2012
364,Revenue,CCHD,Bed Purchasing - Elderly MH - South,Residential Homes,Aspects &  Milestones Trust,1206.56, 02-Oct-2012
365,Revenue,CCHD,Bed Purchasing - Elderly MH - South,Residential Homes,Aspects &  Milestones Trust,1206.56, 30-Oct-2012
366,Revenue,CCHD,Bed Purchasing - S28A - Over 65- North,Residential Homes,Aspects &  Milestones Trust,4762.64, 02-Oct-2012
367,Revenue,CCHD,Bed Purchasing - S28A - Over 65- North,Residential Homes,Aspects &  Milestones Trust,4762.64, 30-Oct-2012
368,Revenue,CCHD,Bed Purchasing - Elderly S117- North,Nursing Homes,Aspects &  Milestones Trust,1944, 02-Oct-2012
369,Revenue,CCHD,Bed Purchasing - Elderly S117- North,Nursing Homes,Aspects &  Milestones Trust,1944, 30-Oct-2012
370,Revenue,CCHD,Bed Purchasing - Elderly S117- North,Nursing Homes,Aspects &  Milestones Trust,1944, 02-Oct-2012
371,Revenue,CCHD,Bed Purchasing - Elderly S117- North,Nursing Homes,Aspects &  Milestones Trust,1944, 30-Oct-2012
372,Revenue,CCHD,Bed Purchasing - Elderly S117- North,Residential Homes,Aspects &  Milestones Trust,1324, 02-Oct-2012
373,Revenue,CCHD,Bed Purchasing - Elderly S117- North,Residential Homes,Aspects &  Milestones Trust,1324, 30-Oct-2012
374,Revenue,CCHD,Bed purchasing - Under 65s PWLD - North,Residential Homes,Aspects & Milestones Trust,8841.64, 02-Oct-2012
375,Revenue,CCHD,Bed purchasing - Under 65s PWLD - North,Residential Homes,Aspects & Milestones Trust,8841.64, 30-Oct-2012
376,Revenue,CCHD,Supporting People Programme,Grants to Voluntary Bodies,Aspects and Milestones Trust,2391.34, 01-Oct-2012
377,Revenue,CCHD,Supporting People Programme,Grants to Voluntary Bodies,Aspects and Milestones Trust,1575.46, 01-Oct-2012
378,Revenue,CCHD,Supporting People Programme,Grants to Voluntary Bodies,Aspects and Milestones Trust,3142.43, 01-Oct-2012
379,Revenue,CCHD,Supporting People Programme,Grants to Voluntary Bodies,Aspects and Milestones Trust,1918.88, 01-Oct-2012
380,Revenue,CCHD,Purchase of Non-Res Care - PS,Private & Voluntary Day Care,Aspirations Support Bristol Limited,3094.65, 01-Oct-2012
381,Revenue,CCHD,Purchase of Non-Res Care - PS,Private & Voluntary Day Care,Aspirations Support Bristol Limited,2475.72, 16-Oct-2012
382,Revenue,CCHD,Bed Purchasing - Under 65s PWLD - South,Residential Homes,Autism Specialised Care Homes,5515.04, 02-Oct-2012
383,Revenue,CCHD,Bed Purchasing - Under 65s PWLD - South,Residential Homes,Autism Specialised Care Homes,5515.04, 30-Oct-2012
384,Revenue,CCHD,Younger Adult Mental Health,Management Contract - Unisys,Avon & Wiltshire Mental Health,5000, 31-Oct-2012
385,Revenue,CCHD,Purchase of Non-Res Care - KD,Private & Voluntary Day Care,Avon Autistic Foundation Limited,3345.92, 15-Oct-2012
386,Revenue,CCHD,Purchase of Non-Res Care - KD,Private & Voluntary Day Care,Avon Autistic Foundation Limited,2279.76, 15-Oct-2012
387,Revenue,CCHD,Purchase of Non-Res Care - KD,Private & Voluntary Day Care,Avon Autistic Foundation Limited,3345.92, 19-Oct-2012
388,Revenue,CCHD,Purchase of Non-Res Care - KD,Private & Voluntary Day Care,Avon Autistic Foundation Limited,2279.76, 19-Oct-2012
389,Revenue,CCHD,Better Support for Older People,Other Supplies & Services,Barberry,750, 22-Oct-2012
390,Revenue,CCHD,Frenchay Hospital Purchasing,Residential Homes,Beaufort House,661.44, 02-Oct-2012
391,Revenue,CCHD,Frenchay Hospital Purchasing,Residential Homes,Beaufort House,661.44, 30-Oct-2012
392,Revenue,CCHD,Bed purchasing - Elderly MH - North,Residential Homes,Beaufort House,1418.36, 02-Oct-2012
393,Revenue,CCHD,Bed purchasing - Elderly MH - North,Residential Homes,Beaufort House,1418.36, 30-Oct-2012
394,Revenue,CCHD,Bed Purchasing - Elderly - South,Residential Homes,Beaufort House,1383.07, 02-Oct-2012
395,Revenue,CCHD,Bed Purchasing - Elderly - South,Residential Homes,Beaufort House,631.49, 02-Oct-2012
396,Revenue,CCHD,Southmead Hospital Purchasing,Residential Homes,Beaufort House,1723.2, 02-Oct-2012
397,Revenue,CCHD,Southmead Hospital Purchasing,Residential Homes,Beaufort House,1723.2, 30-Oct-2012
398,Revenue,CCHD,Frenchay Hospital Purchasing,Residential Homes,Beaufort House,1276.24, 02-Oct-2012
399,Revenue,CCHD,Frenchay Hospital Purchasing,Residential Homes,Beaufort House,1276.24, 30-Oct-2012
400,Revenue,CCHD,Bed purchasing - Elderly MH - North,Residential Homes,Beaufort House,1831.49, 30-Oct-2012
401,Revenue,CCHD,Bed purchasing - Elderly MH - North,Residential Homes,Beaufort House,1318.88, 02-Oct-2012
402,Revenue,CCHD,Bed purchasing - Elderly MH - North,Residential Homes,Beaufort House,1318.88, 30-Oct-2012
403,Revenue,CCHD,Swift Dump Code,Residential Homes,Beaufort House,3092, 30-Oct-2012
404,Revenue,CCHD,Bed Purchasing - Elderly - North,Residential Homes,Beaufort House,1697.4, 02-Oct-2012
405,Revenue,CCHD,Bed Purchasing - Elderly - North,Residential Homes,Beaufort House,1697.4, 30-Oct-2012
406,Revenue,CCHD,Bed purchasing - Elderly MH - North,Residential Homes,Beaufort House,875.84, 02-Oct-2012
407,Revenue,CCHD,Bed purchasing - Elderly MH - North,Residential Homes,Beaufort House,875.84, 30-Oct-2012
408,Revenue,CCHD,Bed purchasing - Elderly MH - North,Residential Homes,Beaufort House,1011.32, 02-Oct-2012
409,Revenue,CCHD,Bed purchasing - Elderly MH - North,Residential Homes,Beaufort House,1011.32, 30-Oct-2012
410,Revenue,CCHD,Bed purchasing - Elderly MH - North,Residential Homes,Beaufort House,1672.68, 02-Oct-2012
411,Revenue,CCHD,Bed purchasing - Elderly MH - North,Residential Homes,Beaufort House,1672.68, 30-Oct-2012
412,Revenue,CCHD,Bed Purchasing - Elderly - North,Residential Homes,Beaufort House,3293.2, 02-Oct-2012
413,Revenue,CCHD,Bed Purchasing - Elderly - North,Residential Homes,Beaufort House,1509.12, 30-Oct-2012
414,Revenue,CCHD,Bed purchasing - Elderly PWLD - South,Residential Homes,Bedrock Lodge,2858.6, 02-Oct-2012
415,Revenue,CCHD,Bed purchasing - Elderly PWLD - South,Residential Homes,Bedrock Lodge,2858.6, 30-Oct-2012
416,Revenue,CCHD,Section 117 Placements MH Younger,Residential Homes,Bedrock Lodge,1820.2, 02-Oct-2012
417,Revenue,CCHD,Section 117 Placements MH Younger,Residential Homes,Bedrock Lodge,1820.2, 30-Oct-2012
418,Revenue,CCHD,Frenchay Hospital Purchasing,Nursing Homes,Beech House,1295.2, 30-Oct-2012
419,Revenue,CCHD,Frenchay Hospital Purchasing,Nursing Homes,Beech House,508.83, 30-Oct-2012
420,Revenue,CCHD,Frenchay Hospital Purchasing,Nursing Homes,Beech House,1975.14, 30-Oct-2012
421,Revenue,CCHD,South Glos Users in South Glos Homes,Nursing Homes,Beech House,3431.81, 30-Oct-2012
422,Revenue,CCHD,South Glos Users in South Glos Homes,Nursing Homes,Beech House,2236.11, 30-Oct-2012
423,Revenue,CCHD,Frenchay Hospital Purchasing,Nursing Homes,Beech House,4102.24, 30-Oct-2012
424,Revenue,CCHD,Frenchay Hospital Purchasing,Nursing Homes,Beech House,2945.2, 30-Oct-2012
425,Revenue,CCHD,South Glos Users in South Glos Homes,Nursing Homes,Beech House,605.61, 30-Oct-2012
426,Revenue,CCHD,Bed Purchasing - Elderly - North,Nursing Homes,Beech House,1948.96, 02-Oct-2012
427,Revenue,CCHD,South Glos Users in South Glos Homes,Nursing Homes,Beech House,1257.81, 02-Oct-2012
428,Revenue,CCHD,Bed Purchasing - Elderly - North,Residential Homes,Beech House,1100, 30-Oct-2012
429,Revenue,CCHD,South Glos Users in South Glos Homes,Nursing Homes,Beech House,978.3, 30-Oct-2012
430,Revenue,CCHD,South Glos Users in South Glos Homes,Nursing Homes,Beech House,931.71, 30-Oct-2012
431,Revenue,CCHD,Bed Purchasing - Elderly - South,Nursing Homes,Beech House,925.14, 30-Oct-2012
432,Revenue,CCHD,Bed Purchasing - Elderly - North,Nursing Homes,Beech House,2202.92, 02-Oct-2012
433,Revenue,CCHD,Bed Purchasing - Elderly - North,Nursing Homes,Beech House,2202.92, 30-Oct-2012
434,Revenue,CCHD,Bed Purchasing - Under 65s PWLD - South,Residential Homes,Beechwood Residential College,30239.46, 30-Oct-2012
435,Revenue,CCHD,Bed purchasing - Under 65s PWLD - North,Residential Homes,Beechwood Residential College,32394.08, 30-Oct-2012
436,Revenue,CCHD,Emersons Green Offices,Conference Expenses,Best Western Lansdowne Hotel,1260, 03-Oct-2012
437,Revenue,CCHD,Swift Dump Code,Residential Homes,Bloomfield Care Centre,791.3, 12-Oct-2012
438,Revenue,CCHD,Bed Purchasing - Elderly - North,Nursing Homes,Bloomfield Care Centre,791.3, 30-Oct-2012
439,Revenue,CCHD,Bed Purchasing - Elderly - South,Nursing Homes,Blossom Field,1998.36, 02-Oct-2012
440,Revenue,CCHD,Bed Purchasing - Elderly - South,Nursing Homes,Blossom Field,913.48, 02-Oct-2012
441,Revenue,CCHD,South Glos Users in South Glos Homes,Nursing Homes,Blossom Field,512.44, 02-Oct-2012
442,Revenue,CCHD,South Glos Users in South Glos Homes,Nursing Homes,Blossom Field,1475.21, 02-Oct-2012
443,Revenue,CCHD,South Glos Users in South Glos Homes,Nursing Homes,Blossom Field,745.37, 30-Oct-2012
444,Revenue,CCHD,Bed Purchasing - Elderly - North,Residential Homes,Blossom Field,950, 30-Oct-2012
445,Revenue,CCHD,Bed purchasing - Elderly MH - North,Nursing Homes,Blossom Field,1588.5, 02-Oct-2012
446,Revenue,CCHD,South Glos Users in South Glos Homes,Nursing Homes,Blossom Field,869.6, 30-Oct-2012
447,Revenue,CCHD,Southmead Hospital Purchasing,Nursing Homes,Blossom Field,895, 02-Oct-2012
448,Revenue,CCHD,Bed purchasing - Elderly MH - North,Nursing Homes,Blossom Field,1391.16, 02-Oct-2012
449,Revenue,CCHD,Bed purchasing - Elderly MH - North,Nursing Homes,Blossom Field,1391.16, 30-Oct-2012
450,Revenue,CCHD,Bed Purchasing - Elderly - North,Nursing Homes,Blossom Field,3706.5, 02-Oct-2012
451,Revenue,CCHD,Bed Purchasing - Elderly - North,Nursing Homes,Blossom Field,741.3, 02-Oct-2012
452,Revenue,CCHD,South Glos Users in South Glos Homes,Nursing Homes,Blossom Field,652.2, 30-Oct-2012
453,Revenue,CCHD,Bed Purchasing - Elderly - South,Nursing Homes,Blossom Field,1867.2, 02-Oct-2012
454,Revenue,CCHD,Bed Purchasing - Elderly - South,Nursing Homes,Blossom Field,1867.2, 30-Oct-2012
455,Revenue,CCHD,Bed Purchasing - Elderly - South,Nursing Homes,Blossom Fields,3960.93, 12-Oct-2012
456,Revenue,CCHD,Bed Purchasing - Elderly - North,Nursing Homes,Blossom Fields,4418.04, 12-Oct-2012
457,Revenue,CCHD,South Glos Users in South Glos Homes,Nursing Homes,Blossom Fields,1024.89, 12-Oct-2012
458,Revenue,CCHD,Bed purchasing - Elderly MH - North,Nursing Homes,Blossom Fields,1536.23, 12-Oct-2012
459,Revenue,CCHD,Frenchay Hospital Purchasing,Nursing Homes,Bradbury House,1366.76, 02-Oct-2012
460,Revenue,CCHD,Frenchay Hospital Purchasing,Nursing Homes,Bradbury House,1366.76, 30-Oct-2012
461,Revenue,CCHD,Bed Purchasing - Elderly - North,Nursing Homes,Bradbury House,975.84, 02-Oct-2012
462,Revenue,CCHD,Bed Purchasing - Elderly - North,Nursing Homes,Bradbury House,975.84, 30-Oct-2012
463,Revenue,CCHD,Bed Purchasing - Elderly - North,Residential Homes,Bradley House,1239.2, 02-Oct-2012
464,Revenue,CCHD,Bed Purchasing - Elderly - North,Residential Homes,Bradley House,1239.2, 30-Oct-2012
465,Revenue,CCHD,Home Care - Elderly - South,Other Small Contracts,Bradley House Home Care Services,150.12, 01-Oct-2012
466,Revenue,CCHD,Home Care - Elderly - North,Other Small Contracts,Bradley House Home Care Services,1772.25, 01-Oct-2012
467,Revenue,CCHD,Day Care - South,Private & Voluntary Day Care,Bradley House Home Care Services,29.19, 01-Oct-2012
468,Revenue,CCHD,Day Care - North,Private & Voluntary Day Care,Bradley House Home Care Services,120.93, 01-Oct-2012
469,Revenue,CCHD,Younger MH non-res purchasing,Private & Voluntary Day Care,Bradley House Home Care Services,66.72, 01-Oct-2012
470,Revenue,CCHD,Home Care - Elderly - South,Other Small Contracts,Bradley House Home Care Services,158.46, 31-Oct-2012
471,Revenue,CCHD,Home Care - Elderly - North,Other Small Contracts,Bradley House Home Care Services,1572.09, 31-Oct-2012
472,Revenue,CCHD,Day Care - North,Private & Voluntary Day Care,Bradley House Home Care Services,129.27, 31-Oct-2012
473,Revenue,CCHD,Home Care - Elderly - South,Other Small Contracts,Bradley House Home Care Services,154.29, 01-Oct-2012
474,Revenue,CCHD,Home Care - Elderly - North,Other Small Contracts,Bradley House Home Care Services,1705.53, 01-Oct-2012
475,Revenue,CCHD,Day Care - South,Private & Voluntary Day Care,Bradley House Home Care Services,29.19, 01-Oct-2012
476,Revenue,CCHD,Day Care - North,Private & Voluntary Day Care,Bradley House Home Care Services,129.27, 01-Oct-2012
477,Revenue,CCHD,Younger MH non-res purchasing,Private & Voluntary Day Care,Bradley House Home Care Services,75.06, 01-Oct-2012
478,Revenue,CCHD,Home Care - Elderly - South,Other Small Contracts,Bradley House Home Care Services,154.29, 01-Oct-2012
479,Revenue,CCHD,Home Care - Elderly - North,Other Small Contracts,Bradley House Home Care Services,1722.21, 01-Oct-2012
480,Revenue,CCHD,Day Care - North,Private & Voluntary Day Care,Bradley House Home Care Services,129.27, 01-Oct-2012
481,Revenue,CCHD,Home Care - Elderly - South,Other Small Contracts,Bradley House Home Care Services,154.29, 30-Oct-2012
482,Revenue,CCHD,Home Care - Elderly - North,Other Small Contracts,Bradley House Home Care Services,1688.85, 30-Oct-2012
483,Revenue,CCHD,Day Care - North,Private & Voluntary Day Care,Bradley House Home Care Services,129.27, 30-Oct-2012
484,Revenue,CCHD,Woodleaze,"Provisions (Food, etc)",Brake Bros,763.05, 10-Oct-2012
485,Revenue,CCHD,Woodleaze,"Provisions (Food, etc)",Brake Bros,753.8, 26-Oct-2012
486,Revenue,CCHD,Alexandra Way,"Provisions (Food, etc)",Brake Bros,490.89, 03-Oct-2012
487,Revenue,CCHD,Woodleaze,"Provisions (Food, etc)",Brake Bros,501.48, 23-Oct-2012
488,Revenue,CCHD,Alexandra Way,"Provisions (Food, etc)",Brake Bros,569.89, 24-Oct-2012
489,Revenue,CCHD,Woodleaze,"Provisions (Food, etc)",Brake Bros,592.91, 26-Oct-2012
490,Revenue,CCHD,Newton House,"Provisions (Food, etc)",Brake Bros,576.35, 22-Oct-2012
491,Revenue,CCHD,Bed Purchasing - Elderly - North,Residential Homes,Bridge House Care Home,1227.08, 02-Oct-2012
492,Revenue,CCHD,Bed Purchasing - Elderly - North,Residential Homes,Bridge House Care Home,1227.08, 30-Oct-2012
493,Revenue,CCHD,Bed Purchasing - Elderly - North,Residential Homes,Bridge House Care Home,1503.04, 02-Oct-2012
494,Revenue,CCHD,Bed Purchasing - Elderly - North,Residential Homes,Bridge House Care Home,1503.04, 30-Oct-2012
495,Revenue,CCHD,Bed Purchasing - Elderly - North,Residential Homes,Bridge House Care Home,1072.84, 02-Oct-2012
496,Revenue,CCHD,Bed Purchasing - Elderly - North,Residential Homes,Bridge House Care Home,1072.84, 30-Oct-2012
497,Revenue,CCHD,Bed Purchasing - Elderly - North,Residential Homes,Bridge House Care Home,1074, 02-Oct-2012
498,Revenue,CCHD,Bed Purchasing - Elderly - North,Residential Homes,Bridge House Care Home,1074, 30-Oct-2012
499,Revenue,CCHD,Bed Purchasing - Elderly - North,Residential Homes,Bridge House Care Home,1322.96, 02-Oct-2012
500,Revenue,CCHD,Bed Purchasing - Elderly - North,Residential Homes,Bridge House Care Home,1322.96, 30-Oct-2012
501,Revenue,CCHD,Bed Purchasing - Elderly MH - South,Residential Homes,Brightbow,2529, 02-Oct-2012
502,Revenue,CCHD,Bed Purchasing - Elderly MH - South,Residential Homes,Brightbow,2529, 30-Oct-2012
503,Revenue,CCHD,MH Purchasing - Younger,Residential Homes,Brightbow,922.36, 02-Oct-2012
504,Revenue,CCHD,MH Purchasing - Younger,Residential Homes,Brightbow,922.36, 30-Oct-2012
505,Revenue,CCHD,Training - Adult Services,Training Expenses,Bristol City Council,5500, 09-Oct-2012
506,Revenue,CCHD,Purchase of Day Centre places,Other L.A.'s - General,Bristol City Council,584.95, 08-Oct-2012
507,Revenue,CCHD,Purchase of RAC places,Other L.A.'s - General,Bristol City Council,8982.05, 24-Oct-2012
508,Revenue,CCHD,Purchase of RAC places,Other L.A.'s - General,Bristol City Council,46435.39, 03-Oct-2012
509,Revenue,CCHD,Supported Living - KD,Private & Voluntary Home Care,Bristol Houses UK Ltd,1290.56, 17-Oct-2012
510,Revenue,CCHD,Supported Living - KD,Private & Voluntary Home Care,Bristol Houses UK Ltd,1290.56, 24-Oct-2012
511,Revenue,CCHD,Supported Living - KD,Private & Voluntary Home Care,Bristol Houses UK Ltd,1003.28, 22-Oct-2012
512,Revenue,CCHD,Supported Living - KD,Private & Voluntary Home Care,Bristol Houses UK Ltd,1046.4, 17-Oct-2012
513,Revenue,CCHD,Day Care - North,Private & Voluntary Day Care,Bristol Houses UK Ltd,1421.36, 08-Oct-2012
514,Revenue,CCHD,Day Care - North,Private & Voluntary Day Care,Bristol Houses UK Ltd,1473.68, 24-Oct-2012
515,Revenue,CCHD,Supported Living - KD,Private & Voluntary Home Care,Bristol Houses UK Ltd,776.08, 17-Oct-2012
516,Revenue,CCHD,Supported Living - KD,Private & Voluntary Home Care,Bristol Houses UK Ltd,1046.4, 24-Oct-2012
517,Revenue,CCHD,Supported Living - KD,Private & Voluntary Home Care,Bristol Houses UK Ltd,960, 17-Oct-2012
518,Revenue,CCHD,Supported Living - KD,Private & Voluntary Home Care,Bristol Houses UK Ltd,960, 24-Oct-2012
519,Revenue,CCHD,Younger MH non-res purchasing,Private & Voluntary Day Care,Bristol Houses UK Ltd,1020, 12-Oct-2012
520,Revenue,CCHD,Supported Living - KD,Private & Voluntary Home Care,Bristol Houses UK Ltd,588.75, 17-Oct-2012
521,Revenue,CCHD,Supported Living - KD,Private & Voluntary Home Care,Bristol Houses UK Ltd,600, 24-Oct-2012
522,Revenue,CCHD,Supported Living - KD,Private & Voluntary Home Care,Bristol Houses UK Ltd,570, 17-Oct-2012
523,Revenue,CCHD,Supported Living - KD,Private & Voluntary Home Care,Bristol Houses UK Ltd,585, 24-Oct-2012
524,Revenue,CCHD,Day Care - North,Private & Voluntary Day Care,Bristol Houses UK Ltd,2371.84, 08-Oct-2012
525,Revenue,CCHD,Day Care - North,Private & Voluntary Day Care,Bristol Houses UK Ltd,2354.4, 24-Oct-2012
526,Revenue,CCHD,Supported Living - KD,Private & Voluntary Home Care,Bristol Houses UK Ltd,599.98, 24-Oct-2012
527,Revenue,CCHD,Supported Living - KD,Private & Voluntary Home Care,Bristol Houses UK Ltd,599.98, 24-Oct-2012
528,Revenue,CCHD,Bed and Breakfast,Bed & Breakfast,Bristol Housing & Support Limited,616, 01-Oct-2012
529,Revenue,CCHD,Bed and Breakfast,Bed & Breakfast,Bristol Housing & Support Limited,1232, 08-Oct-2012
530,Revenue,CCHD,Bed and Breakfast,Bed & Breakfast,Bristol Housing & Support Limited,784, 15-Oct-2012
531,Revenue,CCHD,Bed and Breakfast,Bed & Breakfast,Bristol Housing & Support Limited,448, 30-Oct-2012
532,Revenue,CCHD,Charlton,Water Charges,Bristol Wessex Billing Services Limited,1917.61, 22-Oct-2012
533,Revenue,CCHD,Bed Purchasing - Elderly S117- North,Residential Homes,Brockley Court Care Home,1818.04, 02-Oct-2012
534,Revenue,CCHD,Bed Purchasing - Elderly S117- North,Residential Homes,Brockley Court Care Home,1818.04, 30-Oct-2012
535,Revenue,CCHD,Supporting People Programme,Grants to Voluntary Bodies,Bromford Housing Group,13916.67, 01-Oct-2012
536,Revenue,CCHD,Bed Purchasing - Elderly - North,Residential Homes,Brook Lane Residential Home,877.36, 02-Oct-2012
537,Revenue,CCHD,Bed Purchasing - Elderly - North,Residential Homes,Brook Lane Residential Home,877.36, 30-Oct-2012
538,Revenue,CCHD,Southmead Hospital Purchasing,Residential Homes,Brunel Care,5392.5, 02-Oct-2012
539,Revenue,CCHD,Southmead Hospital Purchasing,Residential Homes,Brunel Care,2270.01, 02-Oct-2012
540,Revenue,CCHD,Bed Purchasing - Elderly - South,Nursing Homes,Brunel Care,670.63, 02-Oct-2012
541,Revenue,CCHD,South Glos Users in South Glos Homes,Nursing Homes,Brunel Care,2624.33, 02-Oct-2012
542,Revenue,CCHD,South Glos Users in South Glos Homes,Nursing Homes,Brunel Care,2034.24, 02-Oct-2012
543,Revenue,CCHD,South Glos Users in South Glos Homes,Nursing Homes,Brunel Care,2903.84, 02-Oct-2012
544,Revenue,CCHD,South Glos Users in South Glos Homes,Nursing Homes,Brunel Care,2624.33, 02-Oct-2012
545,Revenue,CCHD,Southmead Hospital Purchasing,Residential Homes,Brunel Care,1239.2, 02-Oct-2012
546,Revenue,CCHD,Southmead Hospital Purchasing,Residential Homes,Brunel Care,1239.2, 30-Oct-2012
547,Revenue,CCHD,South Glos Users in South Glos Homes,Nursing Homes,Brunel Care,1071.47, 30-Oct-2012
548,Revenue,CCHD,South Glos Users in South Glos Homes,Nursing Homes,Brunel Care,1087, 02-Oct-2012
549,Revenue,CCHD,Bed Purchasing - Elderly - South,Nursing Homes,Brunel Care,713.44, 02-Oct-2012
550,Revenue,CCHD,Bed Purchasing - Elderly - South,Nursing Homes,Brunel Care,713.44, 30-Oct-2012
551,Revenue,CCHD,Bed Purchasing - Elderly - South,Nursing Homes,Brunel Care,11056.23, 30-Oct-2012
552,Revenue,CCHD,Bed Purchasing - Elderly - South,Nursing Homes,Brunel Care,1637.96, 30-Oct-2012
553,Revenue,CCHD,Southmead Hospital Purchasing,Nursing Homes,Brunel Care,1295.2, 30-Oct-2012
554,Revenue,CCHD,Southmead Hospital Purchasing,Nursing Homes,Brunel Care,786.37, 30-Oct-2012
555,Revenue,CCHD,Southmead Hospital Purchasing,Residential Homes,Brunel Care,1239.36, 02-Oct-2012
556,Revenue,CCHD,Bed Purchasing - Elderly - South,Nursing Homes,Brunel Care,1207.14, 02-Oct-2012
557,Revenue,CCHD,Bed Purchasing - Elderly - South,Nursing Homes,Brunel Care,1922.98, 30-Oct-2012
558,Revenue,CCHD,Bed Purchasing - Elderly MH - South,Nursing Homes,Brunel Care,2029.8, 02-Oct-2012
559,Revenue,CCHD,Bed Purchasing - Elderly MH - South,Nursing Homes,Brunel Care,2029.8, 30-Oct-2012
560,Revenue,CCHD,Southmead Hospital Purchasing,Nursing Homes,Brunel Care,1267.64, 02-Oct-2012
561,Revenue,CCHD,Southmead Hospital Purchasing,Nursing Homes,Brunel Care,1267.64, 30-Oct-2012
562,Revenue,CCHD,Bed Purchasing - Elderly - South,Residential Homes,Brunel Care,1269.4, 02-Oct-2012
563,Revenue,CCHD,Home Care - Elderly - North,Private & Voluntary Home Care,Brunelcare,6720, 01-Oct-2012
564,Revenue,CCHD,Home Care - Elderly - North,Private & Voluntary Home Care,Brunelcare,6720, 08-Oct-2012
565,Revenue,CCHD,Home Care - Elderly - North,Private & Voluntary Home Care,Brunelcare,6720, 15-Oct-2012
566,Revenue,CCHD,Home Care - Elderly - North,Private & Voluntary Home Care,Brunelcare,6720, 22-Oct-2012
567,Revenue,CCHD,Home Care - Elderly - North,Private & Voluntary Home Care,Brunelcare,6720, 29-Oct-2012
568,Revenue,CCHD,Bed Purchasing - Elderly - South,Nursing Homes,Brunelcare,36736.36, 12-Oct-2012
569,Revenue,CCHD,Bed Purchasing - Elderly - North,Nursing Homes,Brunelcare,9433.93, 12-Oct-2012
570,Revenue,CCHD,Frenchay Hospital Purchasing,Nursing Homes,Brunelcare,25614.27, 12-Oct-2012
571,Revenue,CCHD,Southmead Hospital Purchasing,Nursing Homes,Brunelcare,26183.34, 12-Oct-2012
572,Revenue,CCHD,South Glos Users in South Glos Homes,Nursing Homes,Brunelcare,29519.81, 12-Oct-2012
573,Revenue,CCHD,Bed Purchasing - Elderly MH - South,Nursing Homes,Brunelcare,25286.81, 12-Oct-2012
574,Revenue,CCHD,Bed purchasing - Elderly S117 - South,Nursing Homes,Brunelcare,6948.43, 12-Oct-2012
575,Revenue,CCHD,Bed purchasing - Elderly MH - North,Nursing Homes,Brunelcare,4716.96, 12-Oct-2012
576,Revenue,CCHD,Bed Purchasing - Elderly S117- North,Nursing Homes,Brunelcare,6948.43, 12-Oct-2012
577,Revenue,CCHD,Elderly MH Day Care South,Private & Voluntary Day Care,Brunelcare,557.2, 10-Oct-2012
578,Revenue,CCHD,Home Care - Elderly - South,Other Small Contracts,Brunelcare,3014.3, 03-Oct-2012
579,Revenue,CCHD,Home Care - Elderly - North,Other Small Contracts,Brunelcare,3805.68, 03-Oct-2012
580,Revenue,CCHD,Day Care - South,Private & Voluntary Day Care,Brunelcare,141.4, 03-Oct-2012
581,Revenue,CCHD,Day Care - North,Private & Voluntary Day Care,Brunelcare,109.08, 03-Oct-2012
582,Revenue,CCHD,Under 65s -MH  Home Care Purch,Other Small Contracts,Brunelcare,218.16, 03-Oct-2012
583,Revenue,CCHD,Home care - Elderly MH - North,Other Small Contracts,Brunelcare,185.84, 03-Oct-2012
584,Revenue,CCHD,Elderly MH Day Care North,Private & Voluntary Day Care,Brunelcare,339.36, 03-Oct-2012
585,Revenue,CCHD,Home Care - Elderly - South,Other Small Contracts,Brunelcare,2658.78, 01-Oct-2012
586,Revenue,CCHD,Home Care - Elderly - North,Other Small Contracts,Brunelcare,4108.68, 01-Oct-2012
587,Revenue,CCHD,Day Care - South,Private & Voluntary Day Care,Brunelcare,145.44, 01-Oct-2012
588,Revenue,CCHD,Day Care - North,Private & Voluntary Day Care,Brunelcare,88.88, 01-Oct-2012
589,Revenue,CCHD,Under 65s -MH  Home Care Purch,Other Small Contracts,Brunelcare,238.36, 01-Oct-2012
590,Revenue,CCHD,Home care - Elderly MH - North,Other Small Contracts,Brunelcare,202, 01-Oct-2012
591,Revenue,CCHD,Elderly MH Day Care North,Private & Voluntary Day Care,Brunelcare,391.88, 01-Oct-2012
592,Revenue,CCHD,Home Care - Elderly - South,Other Small Contracts,Brunelcare,2901.24, 26-Oct-2012
593,Revenue,CCHD,Home Care - Elderly - North,Other Small Contracts,Brunelcare,3991.52, 26-Oct-2012
594,Revenue,CCHD,Day Care - South,Private & Voluntary Day Care,Brunelcare,149.48, 26-Oct-2012
595,Revenue,CCHD,Day Care - North,Private & Voluntary Day Care,Brunelcare,96.96, 26-Oct-2012
596,Revenue,CCHD,Under 65s -MH  Home Care Purch,Other Small Contracts,Brunelcare,218.16, 26-Oct-2012
597,Revenue,CCHD,Home care - Elderly MH - North,Other Small Contracts,Brunelcare,177.76, 26-Oct-2012
598,Revenue,CCHD,Elderly MH Day Care North,Private & Voluntary Day Care,Brunelcare,335.32, 26-Oct-2012
599,Revenue,CCHD,Home Care - Elderly - South,Other Small Contracts,Brunelcare,2852.68, 01-Oct-2012
600,Revenue,CCHD,Home Care - Elderly - North,Other Small Contracts,Brunelcare,4302.6, 01-Oct-2012
601,Revenue,CCHD,Day Care - South,Private & Voluntary Day Care,Brunelcare,141.4, 01-Oct-2012
602,Revenue,CCHD,Day Care - North,Private & Voluntary Day Care,Brunelcare,80.8, 01-Oct-2012
603,Revenue,CCHD,Under 65s -MH  Home Care Purch,Other Small Contracts,Brunelcare,226.24, 01-Oct-2012
604,Revenue,CCHD,Home care - Elderly MH - North,Other Small Contracts,Brunelcare,214.12, 01-Oct-2012
605,Revenue,CCHD,Elderly MH Day Care North,Private & Voluntary Day Care,Brunelcare,343.4, 01-Oct-2012
606,Revenue,CCHD,Home Care - Elderly - South,Other Small Contracts,Brunelcare,2868.82, 26-Oct-2012
607,Revenue,CCHD,Home Care - Elderly - North,Other Small Contracts,Brunelcare,3918.8, 26-Oct-2012
608,Revenue,CCHD,Day Care - South,Private & Voluntary Day Care,Brunelcare,137.36, 26-Oct-2012
609,Revenue,CCHD,Day Care - North,Private & Voluntary Day Care,Brunelcare,113.12, 26-Oct-2012
610,Revenue,CCHD,Under 65s -MH  Home Care Purch,Other Small Contracts,Brunelcare,214.12, 26-Oct-2012
611,Revenue,CCHD,Home care - Elderly MH - North,Other Small Contracts,Brunelcare,210.08, 26-Oct-2012
612,Revenue,CCHD,Elderly MH Day Care North,Private & Voluntary Day Care,Brunelcare,294.92, 26-Oct-2012
613,Revenue,CCHD,Home Care - Elderly - South,Other Small Contracts,Brunelcare,2864.84, 01-Oct-2012
614,Revenue,CCHD,Home Care - Elderly - North,Other Small Contracts,Brunelcare,3825.88, 01-Oct-2012
615,Revenue,CCHD,Day Care - South,Private & Voluntary Day Care,Brunelcare,141.4, 01-Oct-2012
616,Revenue,CCHD,Day Care - North,Private & Voluntary Day Care,Brunelcare,52.52, 01-Oct-2012
617,Revenue,CCHD,Under 65s -MH  Home Care Purch,Other Small Contracts,Brunelcare,214.12, 01-Oct-2012
618,Revenue,CCHD,Home care - Elderly MH - North,Other Small Contracts,Brunelcare,218.16, 01-Oct-2012
619,Revenue,CCHD,Elderly MH Day Care North,Private & Voluntary Day Care,Brunelcare,339.36, 01-Oct-2012
620,Revenue,CCHD,Home Care - Elderly - South,Other Small Contracts,Brunelcare,2905.5, 01-Oct-2012
621,Revenue,CCHD,Home Care - Elderly - North,Other Small Contracts,Brunelcare,4379.36, 01-Oct-2012
622,Revenue,CCHD,Day Care - South,Private & Voluntary Day Care,Brunelcare,145.44, 01-Oct-2012
623,Revenue,CCHD,Day Care - North,Private & Voluntary Day Care,Brunelcare,80.8, 01-Oct-2012
624,Revenue,CCHD,Under 65s -MH  Home Care Purch,Other Small Contracts,Brunelcare,226.24, 01-Oct-2012
625,Revenue,CCHD,Home care - Elderly MH - North,Other Small Contracts,Brunelcare,185.84, 01-Oct-2012
626,Revenue,CCHD,Elderly MH Day Care North,Private & Voluntary Day Care,Brunelcare,383.8, 01-Oct-2012
627,Revenue,CCHD,Home Care - Elderly - South,Other Small Contracts,Brunelcare,2921.36, 26-Oct-2012
628,Revenue,CCHD,Home Care - Elderly - North,Other Small Contracts,Brunelcare,3793.56, 26-Oct-2012
629,Revenue,CCHD,Day Care - South,Private & Voluntary Day Care,Brunelcare,145.44, 26-Oct-2012
630,Revenue,CCHD,Day Care - North,Private & Voluntary Day Care,Brunelcare,80.8, 26-Oct-2012
631,Revenue,CCHD,Under 65s -MH  Home Care Purch,Other Small Contracts,Brunelcare,238.36, 26-Oct-2012
632,Revenue,CCHD,Home care - Elderly MH - North,Other Small Contracts,Brunelcare,145.44, 26-Oct-2012
633,Revenue,CCHD,Elderly MH Day Care North,Private & Voluntary Day Care,Brunelcare,210.08, 26-Oct-2012
634,Revenue,CCHD,Home Care - Elderly - South,Other Small Contracts,Brunelcare,2901.18, 03-Oct-2012
635,Revenue,CCHD,Home Care - Elderly - North,Other Small Contracts,Brunelcare,3886.48, 03-Oct-2012
636,Revenue,CCHD,Day Care - South,Private & Voluntary Day Care,Brunelcare,141.4, 03-Oct-2012
637,Revenue,CCHD,Day Care - North,Private & Voluntary Day Care,Brunelcare,113.12, 03-Oct-2012
638,Revenue,CCHD,Under 65s -MH  Home Care Purch,Other Small Contracts,Brunelcare,214.12, 03-Oct-2012
639,Revenue,CCHD,Home care - Elderly MH - North,Other Small Contracts,Brunelcare,214.12, 03-Oct-2012
640,Revenue,CCHD,Elderly MH Day Care North,Private & Voluntary Day Care,Brunelcare,359.56, 03-Oct-2012
641,Revenue,CCHD,Home Care - Elderly - South,Other Small Contracts,Brunelcare,2889.1, 01-Oct-2012
642,Revenue,CCHD,Home Care - Elderly - North,Other Small Contracts,Brunelcare,4213.72, 01-Oct-2012
643,Revenue,CCHD,Day Care - South,Private & Voluntary Day Care,Brunelcare,145.44, 01-Oct-2012
644,Revenue,CCHD,Day Care - North,Private & Voluntary Day Care,Brunelcare,80.8, 01-Oct-2012
645,Revenue,CCHD,Under 65s -MH  Home Care Purch,Other Small Contracts,Brunelcare,230.28, 01-Oct-2012
646,Revenue,CCHD,Home care - Elderly MH - North,Other Small Contracts,Brunelcare,185.84, 01-Oct-2012
647,Revenue,CCHD,Elderly MH Day Care North,Private & Voluntary Day Care,Brunelcare,371.68, 01-Oct-2012
648,Revenue,CCHD,Home Care - Elderly - South,Other Small Contracts,Brunelcare,3989.25, 19-Oct-2012
649,Revenue,CCHD,Information Systems - Software,Computer Equipment - Purchase,BT Global Services Solutions,978.04, 17-Oct-2012
650,Revenue,CCHD,Woodleaze,Cleaning & Domestic Supplies,Bunzl Cleaning & Hygiene Supplies,643.25, 23-Oct-2012
651,Revenue,CCHD,Bed purchasing - Phys Dis - North,Nursing Homes,Bupa Care Services  Bridge House,11591.84, 02-Oct-2012
652,Revenue,CCHD,South Glos Users in all other LA Homes,Nursing Homes,Bupa Care Services  Bridge House,1196.8, 02-Oct-2012
653,Revenue,CCHD,Bed purchasing - Phys Dis - North,Nursing Homes,Bupa Care Services  Bridge House,5795.92, 30-Oct-2012
654,Revenue,CCHD,South Glos Users in all other LA Homes,Nursing Homes,Bupa Care Services  Bridge House,598.4, 30-Oct-2012
655,Revenue,CCHD,Bed purchasing - Elderly MH - North,Residential Homes,Bupa Care Services  Bridge House,1936.72, 02-Oct-2012
656,Revenue,CCHD,Bed purchasing - Elderly MH - North,Residential Homes,Bupa Care Services  Bridge House,1604.5, 30-Oct-2012
657,Revenue,CCHD,Alexandra Way,Maintenance by Contractor,C B Decorators,2230, 03-Oct-2012
658,Revenue,CCHD,Supported Living - KD,Private & Voluntary Home Care,Camphill Communities Thornbury Limited,1775.92, 17-Oct-2012
659,Revenue,CCHD,Supported Living - KD,Private & Voluntary Home Care,Camphill Communities Thornbury Limited,2086.8, 17-Oct-2012
660,Revenue,CCHD,Supported Living - KD,Private & Voluntary Home Care,Camphill Communities Thornbury Limited,2572.8, 18-Oct-2012
661,Revenue,CCHD,Supported Living - KD,Private & Voluntary Home Care,Camphill Communities Thornbury Limited,1997.32, 18-Oct-2012
662,Revenue,CCHD,Supported Living - KD,Private & Voluntary Home Care,Camphill Communities Thornbury Limited,2086.8, 17-Oct-2012
663,Revenue,CCHD,Supported Living - PS,Private & Voluntary Home Care,Camphill Communities Thornbury Limited,1736.4, 23-Oct-2012
664,Revenue,CCHD,Supported Living - KD,Private & Voluntary Home Care,Camphill Communities Thornbury Limited,2475, 17-Oct-2012
665,Revenue,CCHD,Supported Living - KD,Private & Voluntary Home Care,Camphill Communities Thornbury Limited,2572.8, 17-Oct-2012
666,Revenue,CCHD,Supported Living - KD,Private & Voluntary Home Care,Camphill Communities Thornbury Limited,2269.12, 15-Oct-2012
667,Revenue,CCHD,Supported Living - KD,Private & Voluntary Home Care,Camphill Communities Thornbury Limited,2030.28, 16-Oct-2012
668,Revenue,CCHD,Supported Living - KD,Private & Voluntary Home Care,Camphill Communities Thornbury Limited,1997.32, 16-Oct-2012
669,Revenue,CCHD,Supported Living - KD,Private & Voluntary Home Care,Camphill Communities Thornbury Limited,2112.64, 19-Oct-2012
670,Revenue,CCHD,Supported Living - KD,Private & Voluntary Home Care,Camphill Communities Thornbury Limited,1997.32, 22-Oct-2012
671,Revenue,CCHD,Supported Living - KD,Private & Voluntary Home Care,Camphill Communities Thornbury Limited,2216.04, 19-Oct-2012
672,Revenue,CCHD,Supported Living - KD,Private & Voluntary Home Care,Camphill Communities Thornbury Limited,1775.92, 22-Oct-2012
673,Revenue,CCHD,Supported Living - KD,Private & Voluntary Home Care,Camphill Communities Thornbury Limited,2086.8, 22-Oct-2012
674,Revenue,CCHD,Bed purchasing - Under 65s PWLD - North,Residential Homes,Camphill Devon Community,3185.24, 02-Oct-2012
675,Revenue,CCHD,Bed purchasing - Under 65s PWLD - North,Residential Homes,Camphill Devon Community,3185.24, 30-Oct-2012
676,Revenue,CCHD,Bed purchasing - Under 65s PWLD - North,Residential Homes,Camphill Devon Community,2234.08, 02-Oct-2012
677,Revenue,CCHD,Bed purchasing - Under 65s PWLD - North,Residential Homes,Camphill Devon Community,2234.08, 30-Oct-2012
678,Revenue,CCHD,Home Care - Elderly - South,Other Small Contracts,Care 1st Homecare,2170.8, 10-Oct-2012
679,Revenue,CCHD,Home Care - Elderly - North,Other Small Contracts,Care 1st Homecare,4232.25, 10-Oct-2012
680,Revenue,CCHD,Day Care - South,Private & Voluntary Day Care,Care 1st Homecare,117.45, 10-Oct-2012
681,Revenue,CCHD,Day Care - North,Private & Voluntary Day Care,Care 1st Homecare,267.3, 10-Oct-2012
682,Revenue,CCHD,Home care - Elderly MH - North,Other Small Contracts,Care 1st Homecare,226.8, 10-Oct-2012
683,Revenue,CCHD,Home Care - LD Under 65 - South,Private & Voluntary Home Care,Care 1st Homecare,129.6, 10-Oct-2012
684,Revenue,CCHD,PWLD Home Care - Under 65 - KH,Private & Voluntary Home Care,Care 1st Homecare,125.55, 10-Oct-2012
685,Revenue,CCHD,Home Care - Elderly - South,Other Small Contracts,Care 1st Homecare,2502.9, 03-Oct-2012
686,Revenue,CCHD,Home Care - Elderly - North,Other Small Contracts,Care 1st Homecare,3985.2, 03-Oct-2012
687,Revenue,CCHD,Day Care - South,Private & Voluntary Day Care,Care 1st Homecare,137.7, 03-Oct-2012
688,Revenue,CCHD,Day Care - North,Private & Voluntary Day Care,Care 1st Homecare,263.25, 03-Oct-2012
689,Revenue,CCHD,Home care - Elderly MH - North,Other Small Contracts,Care 1st Homecare,226.8, 03-Oct-2012
690,Revenue,CCHD,Home Care - LD Under 65 - South,Private & Voluntary Home Care,Care 1st Homecare,60.75, 03-Oct-2012
691,Revenue,CCHD,PWLD Home Care - Under 65 - KH,Private & Voluntary Home Care,Care 1st Homecare,149.85, 03-Oct-2012
692,Revenue,CCHD,Home Care - Elderly - South,Other Small Contracts,Care 1st Homecare,2268, 03-Oct-2012
693,Revenue,CCHD,Home Care - Elderly - North,Other Small Contracts,Care 1st Homecare,3402, 03-Oct-2012
694,Revenue,CCHD,Day Care - South,Private & Voluntary Day Care,Care 1st Homecare,170.1, 03-Oct-2012
695,Revenue,CCHD,Day Care - North,Private & Voluntary Day Care,Care 1st Homecare,299.7, 03-Oct-2012
696,Revenue,CCHD,Home care - Elderly MH - North,Other Small Contracts,Care 1st Homecare,218.7, 03-Oct-2012
697,Revenue,CCHD,Home Care - LD Under 65 - South,Private & Voluntary Home Care,Care 1st Homecare,32.4, 03-Oct-2012
698,Revenue,CCHD,PWLD Home Care - Under 65 - KH,Private & Voluntary Home Care,Care 1st Homecare,149.85, 03-Oct-2012
699,Revenue,CCHD,Home Care - Elderly - South,Other Small Contracts,Care 1st Homecare,2519.1, 03-Oct-2012
700,Revenue,CCHD,Home Care - Elderly - North,Other Small Contracts,Care 1st Homecare,3470.85, 03-Oct-2012
701,Revenue,CCHD,Day Care - South,Private & Voluntary Day Care,Care 1st Homecare,162, 03-Oct-2012
702,Revenue,CCHD,Day Care - North,Private & Voluntary Day Care,Care 1st Homecare,283.5, 03-Oct-2012
703,Revenue,CCHD,Home care - Elderly MH - North,Other Small Contracts,Care 1st Homecare,226.8, 03-Oct-2012
704,Revenue,CCHD,Home Care - LD Under 65 - South,Private & Voluntary Home Care,Care 1st Homecare,64.8, 03-Oct-2012
705,Revenue,CCHD,PWLD Home Care - Under 65 - KH,Private & Voluntary Home Care,Care 1st Homecare,170.1, 03-Oct-2012
706,Revenue,CCHD,Home Care - Elderly - South,Other Small Contracts,Care 1st Homecare,2559.6, 12-Oct-2012
707,Revenue,CCHD,Home Care - Elderly - North,Other Small Contracts,Care 1st Homecare,4025.7, 12-Oct-2012
708,Revenue,CCHD,Day Care - South,Private & Voluntary Day Care,Care 1st Homecare,153.9, 12-Oct-2012
709,Revenue,CCHD,Day Care - North,Private & Voluntary Day Care,Care 1st Homecare,307.8, 12-Oct-2012
710,Revenue,CCHD,Home care - Elderly MH - North,Other Small Contracts,Care 1st Homecare,222.75, 12-Oct-2012
711,Revenue,CCHD,Home Care - LD Under 65 - South,Private & Voluntary Home Care,Care 1st Homecare,129.6, 12-Oct-2012
712,Revenue,CCHD,PWLD Home Care - Under 65 - KH,Private & Voluntary Home Care,Care 1st Homecare,72.9, 12-Oct-2012
713,Revenue,CCHD,Home Care - Elderly - South,Other Small Contracts,Care 1st Homecare,2515.05, 12-Oct-2012
714,Revenue,CCHD,Home Care - Elderly - North,Other Small Contracts,Care 1st Homecare,4029.75, 12-Oct-2012
715,Revenue,CCHD,Day Care - South,Private & Voluntary Day Care,Care 1st Homecare,162, 12-Oct-2012
716,Revenue,CCHD,Day Care - North,Private & Voluntary Day Care,Care 1st Homecare,202.5, 12-Oct-2012
717,Revenue,CCHD,Home care - Elderly MH - North,Other Small Contracts,Care 1st Homecare,226.8, 12-Oct-2012
718,Revenue,CCHD,Home Care - LD Under 65 - South,Private & Voluntary Home Care,Care 1st Homecare,64.8, 12-Oct-2012
719,Revenue,CCHD,PWLD Home Care - Under 65 - KH,Private & Voluntary Home Care,Care 1st Homecare,170.1, 12-Oct-2012
720,Revenue,CCHD,Home Care - Elderly - South,Other Small Contracts,Care 1st Homecare,2170.8, 12-Oct-2012
721,Revenue,CCHD,Home Care - Elderly - North,Other Small Contracts,Care 1st Homecare,4236.3, 12-Oct-2012
722,Revenue,CCHD,Day Care - South,Private & Voluntary Day Care,Care 1st Homecare,153.9, 12-Oct-2012
723,Revenue,CCHD,Day Care - North,Private & Voluntary Day Care,Care 1st Homecare,263.25, 12-Oct-2012
724,Revenue,CCHD,Home care - Elderly MH - North,Other Small Contracts,Care 1st Homecare,226.8, 12-Oct-2012
725,Revenue,CCHD,Home Care - LD Under 65 - South,Private & Voluntary Home Care,Care 1st Homecare,48.6, 12-Oct-2012
726,Revenue,CCHD,PWLD Home Care - Under 65 - KH,Private & Voluntary Home Care,Care 1st Homecare,137.7, 12-Oct-2012
727,Revenue,CCHD,Home Care - Elderly - South,Other Small Contracts,Care 1st Homecare,2223.45, 10-Oct-2012
728,Revenue,CCHD,Home Care - Elderly - North,Other Small Contracts,Care 1st Homecare,4187.7, 10-Oct-2012
729,Revenue,CCHD,Day Care - South,Private & Voluntary Day Care,Care 1st Homecare,113.4, 10-Oct-2012
730,Revenue,CCHD,Day Care - North,Private & Voluntary Day Care,Care 1st Homecare,332.1, 10-Oct-2012
731,Revenue,CCHD,Home care - Elderly MH - North,Other Small Contracts,Care 1st Homecare,218.7, 10-Oct-2012
732,Revenue,CCHD,Home Care - LD Under 65 - South,Private & Voluntary Home Care,Care 1st Homecare,113.4, 10-Oct-2012
733,Revenue,CCHD,PWLD Home Care - Under 65 - KH,Private & Voluntary Home Care,Care 1st Homecare,121.5, 10-Oct-2012
734,Revenue,CCHD,Bed Purchasing - PWLD S 117 Placements,Residential Homes,Care Community Ltd,7464.72, 02-Oct-2012
735,Revenue,CCHD,Bed Purchasing - PWLD S 117 Placements,Residential Homes,Care Community Ltd,7464.72, 30-Oct-2012
736,Revenue,CCHD,Supported Living - PS,Private & Voluntary Home Care,Care Horizons Limited,1840.57, 01-Oct-2012
737,Revenue,CCHD,Supported Living - KD,Private & Voluntary Home Care,Care Horizons Limited,5322.68, 17-Oct-2012
738,Revenue,CCHD,Supported Living - KD,Private & Voluntary Home Care,Care Horizons Limited,5345.48, 22-Oct-2012
739,Revenue,CCHD,Purchase of Non-Res Care - KD,Private & Voluntary Day Care,Care Horizons Limited,1512.3, 22-Oct-2012
740,Revenue,CCHD,Purchase of Non-Res Care - KD,Private & Voluntary Day Care,Care Horizons Limited,1075.41, 19-Oct-2012
741,Revenue,CCHD,Purchase of Non-Res Care - KD,Private & Voluntary Day Care,Care Horizons Limited,1236.62, 24-Oct-2012
742,Revenue,CCHD,Purchase of Non-Res Care - KD,Private & Voluntary Day Care,Care Horizons Limited,1012.12, 22-Oct-2012
743,Revenue,CCHD,Supported Living - PS,Private & Voluntary Home Care,Care Horizons Limited,1713.21, 24-Oct-2012
744,Revenue,CCHD,Supported Living - PS,Private & Voluntary Home Care,Care Horizons Limited,505.27, 24-Oct-2012
745,Revenue,CCHD,Electronic Home Care Monitoring,Other Supplies & Services,Care Monitoring 2000 Limited,2400, 19-Oct-2012
746,Revenue,CCHD,Electronic Home Care Monitoring,Other Supplies & Services,Care Monitoring 2000 Limited,500, 19-Oct-2012
747,Revenue,CCHD,Home Care - General,Other Supplies & Services,Care Monitoring 2000 Limited,672.81, 22-Oct-2012
748,Revenue,CCHD,Electronic Home Care Monitoring,Other Supplies & Services,Care Monitoring 2000 Limited,5396.6, 16-Oct-2012
749,Revenue,CCHD,Home Care - General,Other Supplies & Services,Care Monitoring 2000 Limited,6914, 16-Oct-2012
750,Revenue,CCHD,Home Care - Elderly - South,Other Small Contracts,Care UK,7513.79, 01-Oct-2012
751,Revenue,CCHD,Home Care - Elderly - North,Other Small Contracts,Care UK,3991.9, 01-Oct-2012
752,Revenue,CCHD,Day Care - South,Private & Voluntary Day Care,Care UK,355.26, 01-Oct-2012
753,Revenue,CCHD,Day Care - North,Private & Voluntary Day Care,Care UK,618.84, 01-Oct-2012
754,Revenue,CCHD,Home care - Elderly MH - North,Other Small Contracts,Care UK,240.66, 01-Oct-2012
755,Revenue,CCHD,Elderly MH Day Care North,Private & Voluntary Day Care,Care UK,129.88, 01-Oct-2012
756,Revenue,CCHD,Home Care - Elderly - South,Other Small Contracts,Care UK,7047.76, 01-Oct-2012
757,Revenue,CCHD,Home Care - Elderly - North,Other Small Contracts,Care UK,4114.14, 01-Oct-2012
758,Revenue,CCHD,Day Care - South,Private & Voluntary Day Care,Care UK,385.82, 01-Oct-2012
759,Revenue,CCHD,Day Care - North,Private & Voluntary Day Care,Care UK,1130.72, 01-Oct-2012
760,Revenue,CCHD,Home care - Elderly MH - North,Other Small Contracts,Care UK,714.34, 01-Oct-2012
761,Revenue,CCHD,Elderly MH Day Care North,Private & Voluntary Day Care,Care UK,263.58, 01-Oct-2012
762,Revenue,CCHD,Home Care - Elderly - South,Other Small Contracts,Care UK,6956.11, 01-Oct-2012
763,Revenue,CCHD,Home Care - Elderly - North,Other Small Contracts,Care UK,4011, 01-Oct-2012
764,Revenue,CCHD,Day Care - South,Private & Voluntary Day Care,Care UK,313.24, 01-Oct-2012
765,Revenue,CCHD,Day Care - North,Private & Voluntary Day Care,Care UK,1088.7, 01-Oct-2012
766,Revenue,CCHD,Home care - Elderly MH - North,Other Small Contracts,Care UK,683.78, 01-Oct-2012
767,Revenue,CCHD,Elderly MH Day Care North,Private & Voluntary Day Care,Care UK,137.52, 01-Oct-2012
768,Revenue,CCHD,Home Care - Elderly - South,Other Small Contracts,Care UK,7204.52, 01-Oct-2012
769,Revenue,CCHD,Home Care - Elderly - North,Other Small Contracts,Care UK,4064.48, 01-Oct-2012
770,Revenue,CCHD,Day Care - South,Private & Voluntary Day Care,Care UK,393.46, 01-Oct-2012
771,Revenue,CCHD,Day Care - North,Private & Voluntary Day Care,Care UK,744.9, 01-Oct-2012
772,Revenue,CCHD,Home care - Elderly MH - North,Other Small Contracts,Care UK,710.52, 01-Oct-2012
773,Revenue,CCHD,Elderly MH Day Care North,Private & Voluntary Day Care,Care UK,252.12, 01-Oct-2012
774,Revenue,CCHD,Home Care - Elderly - South,Other Small Contracts,Care UK,7261.82, 01-Oct-2012
775,Revenue,CCHD,Home Care - Elderly - North,Other Small Contracts,Care UK,4068.3, 01-Oct-2012
776,Revenue,CCHD,Day Care - South,Private & Voluntary Day Care,Care UK,385.82, 01-Oct-2012
777,Revenue,CCHD,Day Care - North,Private & Voluntary Day Care,Care UK,932.08, 01-Oct-2012
778,Revenue,CCHD,Home care - Elderly MH - North,Other Small Contracts,Care UK,699.06, 01-Oct-2012
779,Revenue,CCHD,Elderly MH Day Care North,Private & Voluntary Day Care,Care UK,267.4, 01-Oct-2012
780,Revenue,CCHD,Home Care - Elderly - South,Other Small Contracts,Care UK,7460.46, 03-Oct-2012
781,Revenue,CCHD,Home Care - Elderly - North,Other Small Contracts,Care UK,4270.76, 03-Oct-2012
782,Revenue,CCHD,Day Care - South,Private & Voluntary Day Care,Care UK,385.82, 03-Oct-2012
783,Revenue,CCHD,Day Care - North,Private & Voluntary Day Care,Care UK,878.6, 03-Oct-2012
784,Revenue,CCHD,Home care - Elderly MH - North,Other Small Contracts,Care UK,710.52, 03-Oct-2012
785,Revenue,CCHD,Elderly MH Day Care North,Private & Voluntary Day Care,Care UK,267.4, 03-Oct-2012
786,Revenue,CCHD,Home Care - Elderly - South,Other Small Contracts,Care UK,7326.76, 12-Oct-2012
787,Revenue,CCHD,Home Care - Elderly - North,Other Small Contracts,Care UK,4018.64, 12-Oct-2012
788,Revenue,CCHD,Day Care - South,Private & Voluntary Day Care,Care UK,389.64, 12-Oct-2012
789,Revenue,CCHD,Day Care - North,Private & Voluntary Day Care,Care UK,966.46, 12-Oct-2012
790,Revenue,CCHD,Home care - Elderly MH - North,Other Small Contracts,Care UK,699.06, 12-Oct-2012
791,Revenue,CCHD,Elderly MH Day Care North,Private & Voluntary Day Care,Care UK,267.4, 12-Oct-2012
792,Revenue,CCHD,Home Care - Elderly - South,Other Small Contracts,Care UK,7063.18, 12-Oct-2012
793,Revenue,CCHD,Home Care - Elderly - North,Other Small Contracts,Care UK,3777.98, 12-Oct-2012
794,Revenue,CCHD,Day Care - South,Private & Voluntary Day Care,Care UK,290.32, 12-Oct-2012
795,Revenue,CCHD,Day Care - North,Private & Voluntary Day Care,Care UK,851.86, 12-Oct-2012
796,Revenue,CCHD,Home care - Elderly MH - North,Other Small Contracts,Care UK,710.52, 12-Oct-2012
797,Revenue,CCHD,Elderly MH Day Care North,Private & Voluntary Day Care,Care UK,263.58, 12-Oct-2012
798,Revenue,CCHD,Home Care - Elderly - South,Other Small Contracts,Care UK,7002.06, 29-Oct-2012
799,Revenue,CCHD,Home Care - Elderly - North,Other Small Contracts,Care UK,3575.52, 29-Oct-2012
800,Revenue,CCHD,Day Care - South,Private & Voluntary Day Care,Care UK,343.8, 29-Oct-2012
801,Revenue,CCHD,Day Care - North,Private & Voluntary Day Care,Care UK,802.2, 29-Oct-2012
802,Revenue,CCHD,Home care - Elderly MH - North,Other Small Contracts,Care UK,255.94, 29-Oct-2012
803,Revenue,CCHD,Elderly MH Day Care North,Private & Voluntary Day Care,Care UK,38.2, 29-Oct-2012
804,Revenue,CCHD,Home Care - Elderly - South,Other Small Contracts,Care UK,6902.74, 29-Oct-2012
805,Revenue,CCHD,Home Care - Elderly - North,Other Small Contracts,Care UK,3667.2, 29-Oct-2012
806,Revenue,CCHD,Day Care - South,Private & Voluntary Day Care,Care UK,324.7, 29-Oct-2012
807,Revenue,CCHD,Day Care - North,Private & Voluntary Day Care,Care UK,912.98, 29-Oct-2012
808,Revenue,CCHD,Home care - Elderly MH - North,Other Small Contracts,Care UK,683.78, 29-Oct-2012
809,Revenue,CCHD,Elderly MH Day Care North,Private & Voluntary Day Care,Care UK,137.52, 29-Oct-2012
810,Revenue,CCHD,Home Care - Elderly - South,Other Small Contracts,Carewatch (Bristol),690.44, 16-Oct-2012
811,Revenue,CCHD,Home Care - Elderly - North,Other Small Contracts,Carewatch (Bristol),926.2, 16-Oct-2012
812,Revenue,CCHD,Day Care - North,Private & Voluntary Day Care,Carewatch (Bristol),33.68, 16-Oct-2012
813,Revenue,CCHD,Home Care - Elderly - South,Other Small Contracts,Carewatch (Bristol),660.97, 16-Oct-2012
814,Revenue,CCHD,Home Care - Elderly - North,Other Small Contracts,Carewatch (Bristol),719.91, 16-Oct-2012
815,Revenue,CCHD,Day Care - North,Private & Voluntary Day Care,Carewatch (Bristol),29.47, 16-Oct-2012
816,Revenue,CCHD,Home Care - Elderly - South,Other Small Contracts,Carewatch (Bristol),665.18, 16-Oct-2012
817,Revenue,CCHD,Home Care - Elderly - North,Other Small Contracts,Carewatch (Bristol),879.89, 16-Oct-2012
818,Revenue,CCHD,Home Care - Elderly - South,Other Small Contracts,Carewatch (Bristol),677.81, 16-Oct-2012
819,Revenue,CCHD,Home Care - Elderly - North,Other Small Contracts,Carewatch (Bristol),964.09, 16-Oct-2012
820,Revenue,CCHD,Day Care - North,Private & Voluntary Day Care,Carewatch (Bristol),75.78, 16-Oct-2012
821,Revenue,CCHD,Home Care - Elderly - South,Other Small Contracts,Carewatch (Bristol),648.34, 16-Oct-2012
822,Revenue,CCHD,Home Care - Elderly - North,Other Small Contracts,Carewatch (Bristol),909.36, 16-Oct-2012
823,Revenue,CCHD,Day Care - North,Private & Voluntary Day Care,Carewatch (Bristol),50.52, 16-Oct-2012
824,Revenue,CCHD,Home Care - Elderly - South,Other Small Contracts,Carewatch (Bristol),648.34, 16-Oct-2012
825,Revenue,CCHD,Home Care - Elderly - North,Other Small Contracts,Carewatch (Bristol),989.35, 16-Oct-2012
826,Revenue,CCHD,Day Care - North,Private & Voluntary Day Care,Carewatch (Bristol),92.62, 16-Oct-2012
827,Revenue,CCHD,Home Care - Elderly - South,Other Small Contracts,Carewatch (Bristol),669.39, 25-Oct-2012
828,Revenue,CCHD,Home Care - Elderly - North,Other Small Contracts,Carewatch (Bristol),968.3, 25-Oct-2012
829,Revenue,CCHD,Elderly MH Day Care South,Private & Voluntary Day Care,Caring Home Healthcare Grp Ltd,550, 10-Oct-2012
830,Revenue,CCHD,Home Care - Elderly - South,Other Small Contracts,Cash Friday at Lloyds TSB,200.72, 10-Oct-2012
831,Revenue,CCHD,Home Care - Elderly - North,Other Small Contracts,Cash Friday at Lloyds TSB,1134.84, 10-Oct-2012
832,Revenue,CCHD,Day Care - North,Private & Voluntary Day Care,Cash Friday at Lloyds TSB,88.78, 10-Oct-2012
833,Revenue,CCHD,Home Care - Elderly - South,Other Small Contracts,Cash Friday at Lloyds TSB,208.44, 10-Oct-2012
834,Revenue,CCHD,Home Care - Elderly - North,Other Small Contracts,Cash Friday at Lloyds TSB,1188.88, 10-Oct-2012
835,Revenue,CCHD,Day Care - North,Private & Voluntary Day Care,Cash Friday at Lloyds TSB,88.78, 10-Oct-2012
836,Revenue,CCHD,Home Care - Elderly - South,Other Small Contracts,Cash Friday at Lloyds TSB,200.72, 10-Oct-2012
837,Revenue,CCHD,Home Care - Elderly - North,Other Small Contracts,Cash Friday at Lloyds TSB,1169.58, 10-Oct-2012
838,Revenue,CCHD,Day Care - North,Private & Voluntary Day Care,Cash Friday at Lloyds TSB,88.78, 10-Oct-2012
839,Revenue,CCHD,Home Care - Elderly - South,Other Small Contracts,Cash Friday at Lloyds TSB,274.06, 10-Oct-2012
840,Revenue,CCHD,Home Care - Elderly - North,Other Small Contracts,Cash Friday at Lloyds TSB,1080.8, 10-Oct-2012
841,Revenue,CCHD,Day Care - North,Private & Voluntary Day Care,Cash Friday at Lloyds TSB,88.78, 10-Oct-2012
842,Revenue,CCHD,Frenchay Hospital Purchasing,Nursing Homes,Cedar Care Homes Ltd,1041.52, 02-Oct-2012
843,Revenue,CCHD,Frenchay Hospital Purchasing,Nursing Homes,Cedar Care Homes Ltd,1041.52, 30-Oct-2012
844,Revenue,CCHD,Frenchay Hospital Purchasing,Residential Homes,Centenary Care Homes Ltd,1239.2, 02-Oct-2012
845,Revenue,CCHD,Frenchay Hospital Purchasing,Residential Homes,Centenary Care Homes Ltd,1239.2, 30-Oct-2012
846,Revenue,CCHD,Bed Purchasing - Elderly - South,Residential Homes,Cepen Lodge Care Home,2155.6, 02-Oct-2012
847,Revenue,CCHD,Bed Purchasing - Elderly - South,Residential Homes,Cepen Lodge Care Home,2155.6, 30-Oct-2012
848,Revenue,CCHD,Southmead Hospital Purchasing,Residential Homes,Charlton House Residential Home,1372.96, 02-Oct-2012
849,Revenue,CCHD,Southmead Hospital Purchasing,Residential Homes,Charlton House Residential Home,1372.96, 30-Oct-2012
850,Revenue,CCHD,Housing Needs,Training Expenses,Chartered Institute Of Housing,1085, 22-Oct-2012
851,Revenue,CCHD,Training - Adult Services,Training Expenses,Chartered Management Institute,995, 02-Oct-2012
852,Revenue,CCHD,Home Care - Elderly - South,Other Small Contracts,Cherish Able Care Limited,2430.8, 05-Oct-2012
853,Revenue,CCHD,Home care - Elderly MH - North,Other Small Contracts,Cherish Able Care Limited,403.76, 05-Oct-2012
854,Revenue,CCHD,Home Care - Elderly - South,Other Small Contracts,Cherish Able Care Limited,2711.92, 19-Oct-2012
855,Revenue,CCHD,Home care - Elderly MH - North,Other Small Contracts,Cherish Able Care Limited,407.88, 19-Oct-2012
856,Revenue,CCHD,Home Care - Elderly - South,Other Small Contracts,Cherish Able Care Limited,2632.68, 19-Oct-2012
857,Revenue,CCHD,Home care - Elderly MH - North,Other Small Contracts,Cherish Able Care Limited,403.76, 19-Oct-2012
858,Revenue,CCHD,Home Care - Elderly - South,Other Small Contracts,Cherish Able Care Limited,2859.28, 26-Oct-2012
859,Revenue,CCHD,Home care - Elderly MH - North,Other Small Contracts,Cherish Able Care Limited,407.88, 26-Oct-2012
860,Revenue,CCHD,Bed purchasing -S28A  Under 65 - North,Residential Homes,Chescombe Lodge,8489.04, 02-Oct-2012
861,Revenue,CCHD,Bed purchasing -S28A  Under 65 - North,Residential Homes,Chescombe Lodge,8489.04, 30-Oct-2012
862,Revenue,CCHD,Bed Purchasing - Under 65s PWLD - South,Residential Homes,Chosen Court,6846.32, 02-Oct-2012
863,Revenue,CCHD,Bed Purchasing - Under 65s PWLD - South,Residential Homes,Chosen Court,6846.32, 30-Oct-2012
864,Revenue,CCHD,Bed Purchasing - PWLD S 117 Placements,Residential Homes,Chosen Court,42854.65, 02-Oct-2012
865,Revenue,CCHD,Bed Purchasing - PWLD S 117 Placements,Residential Homes,Chosen Court,10082.4, 30-Oct-2012
866,Revenue,CCHD,Bed Purchasing - PWLD S 117 Placements,Residential Homes,Chosen Court,3164.73, 30-Oct-2012
867,Revenue,CCHD,Bed Purchasing - Under 65s PWLD - South,Residential Homes,Chosen Court,5495.84, 02-Oct-2012
868,Revenue,CCHD,Bed Purchasing - Under 65s PWLD - South,Residential Homes,Chosen Court,5495.84, 30-Oct-2012
869,Revenue,CCHD,Training - Adult Services,Training Expenses,Chris Garnier,952.5, 30-Oct-2012
870,Revenue,CCHD,Training - Adult Services,Training Expenses,Chris Garnier,725, 09-Oct-2012
871,Revenue,CCHD,Bed purchasing - Under 65s PWLD - North,Residential Homes,Church House,10256, 02-Oct-2012
872,Revenue,CCHD,Bed purchasing - Under 65s PWLD - North,Residential Homes,Church House,10256, 30-Oct-2012
873,Revenue,CCHD,Bed purchasing - Under 65s PWLD - North,Residential Homes,Church House,4761.71, 30-Oct-2012
874,Revenue,CCHD,Bed purchasing - Under 65s PWLD - North,Residential Homes,Church House,11522.72, 02-Oct-2012
875,Revenue,CCHD,Bed purchasing - Under 65s PWLD - North,Residential Homes,Church House,5761.36, 30-Oct-2012
876,Revenue,CCHD,Supported Living - PS,Private & Voluntary Home Care,Cintre Community,540.28, 08-Oct-2012
877,Revenue,CCHD,Purchase of Non-Res Care - PS,Private & Voluntary Day Care,Cintre Community,920.55, 24-Oct-2012
878,Revenue,CCHD,Supported Living - PS,Private & Voluntary Home Care,Cintre Community,522.66, 31-Oct-2012
879,Revenue,CCHD,Community Support - MH Under 6,Preventative Assistance,Cleaning Company Bristol Ltd,1750, 22-Oct-2012
880,Revenue,CCHD,Bed Purchasing - Elderly - South,Residential Homes,Cleeve Lodge,1597.04, 02-Oct-2012
881,Revenue,CCHD,Bed Purchasing - Elderly - South,Residential Homes,Cleeve Lodge,1597.04, 30-Oct-2012
882,Revenue,CCHD,Bed Purchasing - Elderly - North,Residential Homes,Cleeve Lodge,1009.44, 02-Oct-2012
883,Revenue,CCHD,Bed Purchasing - Elderly - North,Residential Homes,Cleeve Lodge,1009.44, 30-Oct-2012
884,Revenue,CCHD,Southmead Hospital Purchasing,Residential Homes,Cleeve Lodge,1425.36, 02-Oct-2012
885,Revenue,CCHD,Southmead Hospital Purchasing,Residential Homes,Cleeve Lodge,1425.36, 30-Oct-2012
886,Revenue,CCHD,Bed Purchasing - Elderly - North,Residential Homes,Cleeve Lodge,1560.71, 30-Oct-2012
887,Revenue,CCHD,Bed Purchasing - Elderly - South,Residential Homes,Cleeve Lodge,1750.68, 02-Oct-2012
888,Revenue,CCHD,Bed Purchasing - Elderly - South,Residential Homes,Cleeve Lodge,1750.68, 30-Oct-2012
889,Revenue,CCHD,Bed Purchasing - Elderly - South,Residential Homes,Cleeve Lodge,1449.08, 02-Oct-2012
890,Revenue,CCHD,Bed Purchasing - Elderly - South,Residential Homes,Cleeve Lodge,1449.08, 30-Oct-2012
891,Revenue,CCHD,Bed Purchasing - Elderly - South,Residential Homes,Cleeve Lodge,2236.96, 02-Oct-2012
892,Revenue,CCHD,Bed Purchasing - Elderly - South,Residential Homes,Cleeve Lodge,2236.96, 30-Oct-2012
893,Revenue,CCHD,Bed Purchasing - Elderly - South,Residential Homes,Cleeve Lodge,1767.96, 02-Oct-2012
894,Revenue,CCHD,Bed Purchasing - Elderly - South,Residential Homes,Cleeve Lodge,1767.96, 30-Oct-2012
895,Revenue,CCHD,Southmead Hospital Purchasing,Residential Homes,Cleeve Lodge,1434.8, 02-Oct-2012
896,Revenue,CCHD,Southmead Hospital Purchasing,Residential Homes,Cleeve Lodge,576.59, 30-Oct-2012
897,Revenue,CCHD,Frenchay Hospital Purchasing,Residential Homes,Collingwood Residential Home,1027.68, 02-Oct-2012
898,Revenue,CCHD,Frenchay Hospital Purchasing,Residential Homes,Collingwood Residential Home,1027.68, 30-Oct-2012
899,Revenue,CCHD,Bed Purchasing - Elderly - South,Residential Homes,Collingwood Residential Home,3800.81, 30-Oct-2012
900,Revenue,CCHD,Bed Purchasing - Elderly - South,Residential Homes,Collingwood Residential Home,1284.12, 02-Oct-2012
901,Revenue,CCHD,Bed Purchasing - Elderly - South,Residential Homes,Collingwood Residential Home,1284.12, 30-Oct-2012
902,Revenue,CCHD,Frenchay Hospital Purchasing,Residential Homes,Collingwood Residential Home,1598.31, 30-Oct-2012
903,Revenue,CCHD,Frenchay Hospital Purchasing,Residential Homes,Collingwood Residential Home,694.68, 02-Oct-2012
904,Revenue,CCHD,Frenchay Hospital Purchasing,Residential Homes,Collingwood Residential Home,694.68, 30-Oct-2012
905,Revenue,CCHD,Bed Purchasing - Elderly - South,Residential Homes,Collingwood Residential Home,1058.6, 02-Oct-2012
906,Revenue,CCHD,Bed Purchasing - Elderly - South,Residential Homes,Collingwood Residential Home,1058.6, 30-Oct-2012
907,Revenue,CCHD,Bed Purchasing - Elderly - South,Residential Homes,Collingwood Residential Home,1323.64, 02-Oct-2012
908,Revenue,CCHD,Bed Purchasing - Elderly - South,Residential Homes,Collingwood Residential Home,1323.64, 30-Oct-2012
909,Revenue,CCHD,Frenchay Hospital Purchasing,Residential Homes,Collingwood Residential Home,1232, 02-Oct-2012
910,Revenue,CCHD,Frenchay Hospital Purchasing,Residential Homes,Collingwood Residential Home,1232, 30-Oct-2012
911,Revenue,CCHD,Bed Purchasing - Elderly MH - South,Residential Homes,Collingwood Residential Home,1298.4, 02-Oct-2012
912,Revenue,CCHD,Bed Purchasing - Elderly MH - South,Residential Homes,Collingwood Residential Home,1298.4, 30-Oct-2012
913,Revenue,CCHD,Bed Purchasing - Elderly - South,Residential Homes,Collingwood Residential Home,1247.92, 02-Oct-2012
914,Revenue,CCHD,Bed Purchasing - Elderly - South,Residential Homes,Collingwood Residential Home,1247.92, 30-Oct-2012
915,Revenue,CCHD,Bed Purchasing - Elderly - South,Residential Homes,Collingwood Residential Home,1373.76, 02-Oct-2012
916,Revenue,CCHD,Bed Purchasing - Elderly - South,Residential Homes,Collingwood Residential Home,1373.76, 30-Oct-2012
917,Revenue,CCHD,Bed Purchasing - Elderly - South,Residential Homes,Collingwood Residential Home,1245.88, 02-Oct-2012
918,Revenue,CCHD,Bed Purchasing - Elderly - South,Residential Homes,Collingwood Residential Home,1245.88, 30-Oct-2012
919,Revenue,CCHD,Bed Purchasing - Elderly - South,Residential Homes,Collingwood Residential Home,1396.72, 02-Oct-2012
920,Revenue,CCHD,Bed Purchasing - Elderly - South,Residential Homes,Collingwood Residential Home,1396.72, 30-Oct-2012
921,Revenue,CCHD,Bed and Breakfast,Bed & Breakfast,Connolly & Callaghan Limited,441, 02-Oct-2012
922,Revenue,CCHD,Bed and Breakfast,Bed & Breakfast,Connolly & Callaghan Limited,546, 03-Oct-2012
923,Revenue,CCHD,Bed and Breakfast,Bed & Breakfast,Connolly & Callaghan Limited,511, 02-Oct-2012
924,Revenue,CCHD,Bed and Breakfast,Bed & Breakfast,Connolly & Callaghan Limited,651, 02-Oct-2012
925,Revenue,CCHD,Bed and Breakfast,Bed & Breakfast,Connolly & Callaghan Limited,441, 02-Oct-2012
926,Revenue,CCHD,Bed and Breakfast,Bed & Breakfast,Connolly & Callaghan Limited,441, 02-Oct-2012
927,Revenue,CCHD,Bed and Breakfast,Bed & Breakfast,Connolly & Callaghan Limited,546, 02-Oct-2012
928,Revenue,CCHD,Bed and Breakfast,Bed & Breakfast,Connolly & Callaghan Limited,511, 02-Oct-2012
929,Revenue,CCHD,Bed and Breakfast,Bed & Breakfast,Connolly & Callaghan Limited,651, 02-Oct-2012
930,Revenue,CCHD,Bed and Breakfast,Bed & Breakfast,Connolly & Callaghan Limited,441, 18-Oct-2012
931,Revenue,CCHD,Bed and Breakfast,Bed & Breakfast,Connolly & Callaghan Limited,441, 18-Oct-2012
932,Revenue,CCHD,Bed and Breakfast,Bed & Breakfast,Connolly & Callaghan Limited,441, 18-Oct-2012
933,Revenue,CCHD,Bed and Breakfast,Bed & Breakfast,Connolly & Callaghan Limited,546, 18-Oct-2012
934,Revenue,CCHD,Bed and Breakfast,Bed & Breakfast,Connolly & Callaghan Limited,613.2, 18-Oct-2012
935,Revenue,CCHD,Bed and Breakfast,Bed & Breakfast,Connolly & Callaghan Limited,651, 18-Oct-2012
936,Revenue,CCHD,Bed and Breakfast,Bed & Breakfast,Connolly & Callaghan Limited,441, 30-Oct-2012
937,Revenue,CCHD,Bed and Breakfast,Bed & Breakfast,Connolly & Callaghan Limited,441, 30-Oct-2012
938,Revenue,CCHD,Bed and Breakfast,Bed & Breakfast,Connolly & Callaghan Limited,546, 30-Oct-2012
939,Revenue,CCHD,Bed and Breakfast,Bed & Breakfast,Connolly & Callaghan Limited,511, 30-Oct-2012
940,Revenue,CCHD,Bed and Breakfast,Bed & Breakfast,Connolly & Callaghan Limited,651, 30-Oct-2012
941,Revenue,CCHD,Bed and Breakfast,Bed & Breakfast,Connolly & Callaghan Limited,441, 30-Oct-2012
942,Revenue,CCHD,Bed and Breakfast,Bed & Breakfast,Connolly & Callaghan Limited,441, 30-Oct-2012
943,Revenue,CCHD,Bed and Breakfast,Bed & Breakfast,Connolly & Callaghan Limited,511, 30-Oct-2012
944,Revenue,CCHD,Bed and Breakfast,Bed & Breakfast,Connolly & Callaghan Limited,651, 30-Oct-2012
945,Revenue,CCHD,Bed and Breakfast,Bed & Breakfast,Connolly & Callaghan Limited,532, 30-Oct-2012
946,Revenue,CCHD,Woodleaze,Gas,Corona Energy Retail 3 Limited,653.42, 01-Oct-2012
947,Revenue,CCHD,Newton House,Gas,Corona Energy Retail 3 Limited,647.36, 01-Oct-2012
948,Revenue,CCHD,Alexandra Way,Gas,Corona Energy Retail 3 Limited,1098.46, 01-Oct-2012
949,Revenue,CCHD,Woodleaze,Gas,Corona Energy Retail 3 Limited,665.23, 01-Oct-2012
950,Revenue,CCHD,Newton House,Gas,Corona Energy Retail 3 Limited,626.66, 01-Oct-2012
951,Revenue,CCHD,Alexandra Way,Gas,Corona Energy Retail 3 Limited,1114.98, 01-Oct-2012
952,Revenue,CCHD,Research & Conferences,Consultation Expenses,CPEA Ltd,6692.88, 22-Oct-2012
953,Revenue,CCHD,Research & Conferences,Consultation Expenses,CPEA Ltd,3918.6, 18-Oct-2012
954,Revenue,CCHD,Bed purchasing -S28A  Under 65 - North,Residential Homes,Cream Ii Ltd  Longrun House,7845.84, 02-Oct-2012
955,Revenue,CCHD,Bed purchasing -S28A  Under 65 - North,Residential Homes,Cream Ii Ltd  Longrun House,7845.84, 30-Oct-2012
956,Revenue,CCHD,Bed purchasing -S28A  Under 65 - North,Residential Homes,Creedy Court,9074.84, 02-Oct-2012
957,Revenue,CCHD,Bed purchasing -S28A  Under 65 - North,Residential Homes,Creedy Court,9074.84, 30-Oct-2012
958,Revenue,CCHD,Bed Purchasing - S28A - Over 65- North,Residential Homes,Creedy Court,7548.92, 02-Oct-2012
959,Revenue,CCHD,Bed Purchasing - S28A - Over 65- North,Residential Homes,Creedy Court,7548.92, 30-Oct-2012
960,Revenue,CCHD,Brokerage and Information Service,Grants to Voluntary Bodies,D H I,9210.08, 26-Oct-2012
961,Revenue,CCHD,Purchase of Non-Res Care - PS,Private & Voluntary Day Care,Daneswood,5525.3, 09-Oct-2012
962,Revenue,CCHD,Bed Purchasing - Under 65s PWLD - South,Residential Homes,Daneswood,10754.88, 02-Oct-2012
963,Revenue,CCHD,Bed Purchasing - Under 65s PWLD - South,Residential Homes,Daneswood,10754.88, 30-Oct-2012
964,Revenue,CCHD,Bed purchasing - Under 65s PWLD - North,Residential Homes,Daneswood,8901.24, 02-Oct-2012
965,Revenue,CCHD,Bed purchasing - Under 65s PWLD - North,Residential Homes,Daneswood,8901.24, 30-Oct-2012
966,Revenue,CCHD,Learning Difficulties PSL,Other Supplies & Services,Individual,2016.44, 22-Oct-2012
967,Revenue,CCHD,Training - Adult Services,Training Expenses,Denise Hope,750, 19-Oct-2012
968,Revenue,CCHD,Purchase of Non-Res Care - KD,Private & Voluntary Day Care,Design 4 Life Ltd,1390.68, 18-Oct-2012
969,Revenue,CCHD,Bed Purchasing - Under 65s PWLD - South,Residential Homes,Devon & Cornwall Autistic Community Trus,8588.04, 02-Oct-2012
970,Revenue,CCHD,Bed Purchasing - Under 65s PWLD - South,Residential Homes,Devon & Cornwall Autistic Community Trus,8588.04, 30-Oct-2012
971,Revenue,CCHD,Day Care - South,Private & Voluntary Day Care,Dhek Bhal,981.83, 11-Oct-2012
972,Revenue,CCHD,Day Care - South,Private & Voluntary Day Care,Dhek Bhal,992.28, 11-Oct-2012
973,Revenue,CCHD,Day Care - South,Private & Voluntary Day Care,Dhek Bhal,835.6, 30-Oct-2012
974,Revenue,CCHD,Day Care - South,Private & Voluntary Day Care,Dhek Bhal,835.6, 30-Oct-2012
975,Revenue,CCHD,Bed Purchasing - Under 65s PWLD - South,Residential Homes,Dimensions (Uk),4763.44, 02-Oct-2012
976,Revenue,CCHD,Bed Purchasing - Under 65s PWLD - South,Residential Homes,Dimensions (Uk),4763.44, 30-Oct-2012
977,Revenue,CCHD,Home Care - Elderly - South,Other Small Contracts,DoCare Ltd,3021.48, 03-Oct-2012
978,Revenue,CCHD,Home Care - Elderly - North,Other Small Contracts,DoCare Ltd,3682.14, 03-Oct-2012
979,Revenue,CCHD,Day Care - South,Private & Voluntary Day Care,DoCare Ltd,92.4, 03-Oct-2012
980,Revenue,CCHD,Day Care - North,Private & Voluntary Day Care,DoCare Ltd,397.32, 03-Oct-2012
981,Revenue,CCHD,Home care - Elderly MH - North,Other Small Contracts,DoCare Ltd,184.8, 03-Oct-2012
982,Revenue,CCHD,Elderly MH Day Care North,Private & Voluntary Day Care,DoCare Ltd,55.44, 03-Oct-2012
983,Revenue,CCHD,Home Care - Elderly - South,Other Small Contracts,DoCare Ltd,2873.64, 03-Oct-2012
984,Revenue,CCHD,Home Care - Elderly - North,Other Small Contracts,DoCare Ltd,3580.5, 03-Oct-2012
985,Revenue,CCHD,Day Care - South,Private & Voluntary Day Care,DoCare Ltd,106.26, 03-Oct-2012
986,Revenue,CCHD,Day Care - North,Private & Voluntary Day Care,DoCare Ltd,332.64, 03-Oct-2012
987,Revenue,CCHD,Home care - Elderly MH - North,Other Small Contracts,DoCare Ltd,166.32, 03-Oct-2012
988,Revenue,CCHD,Elderly MH Day Care North,Private & Voluntary Day Care,DoCare Ltd,55.44, 03-Oct-2012
989,Revenue,CCHD,Home Care - Elderly - South,Other Small Contracts,DoCare Ltd,2818.2, 16-Oct-2012
990,Revenue,CCHD,Home Care - Elderly - North,Other Small Contracts,DoCare Ltd,3598.98, 16-Oct-2012
991,Revenue,CCHD,Day Care - South,Private & Voluntary Day Care,DoCare Ltd,110.88, 16-Oct-2012
992,Revenue,CCHD,Day Care - North,Private & Voluntary Day Care,DoCare Ltd,388.08, 16-Oct-2012
993,Revenue,CCHD,Home care - Elderly MH - North,Other Small Contracts,DoCare Ltd,147.84, 16-Oct-2012
994,Revenue,CCHD,Elderly MH Day Care North,Private & Voluntary Day Care,DoCare Ltd,60.06, 16-Oct-2012
995,Revenue,CCHD,Home Care - Elderly - South,Other Small Contracts,DoCare Ltd,3044.58, 16-Oct-2012
996,Revenue,CCHD,Home Care - Elderly - North,Other Small Contracts,DoCare Ltd,3589.74, 16-Oct-2012
997,Revenue,CCHD,Day Care - South,Private & Voluntary Day Care,DoCare Ltd,110.88, 16-Oct-2012
998,Revenue,CCHD,Day Care - North,Private & Voluntary Day Care,DoCare Ltd,388.08, 16-Oct-2012
999,Revenue,CCHD,Home care - Elderly MH - North,Other Small Contracts,DoCare Ltd,97.02, 16-Oct-2012
1000,Revenue,CCHD,Elderly MH Day Care North,Private & Voluntary Day Care,DoCare Ltd,55.44, 16-Oct-2012
1001,Revenue,CCHD,Home Care - Elderly - South,Other Small Contracts,DoCare Ltd,3178.56, 19-Oct-2012
1002,Revenue,CCHD,Home Care - Elderly - North,Other Small Contracts,DoCare Ltd,4453.68, 19-Oct-2012
1003,Revenue,CCHD,Day Care - South,Private & Voluntary Day Care,DoCare Ltd,115.5, 19-Oct-2012
1004,Revenue,CCHD,Day Care - North,Private & Voluntary Day Care,DoCare Ltd,392.7, 19-Oct-2012
1005,Revenue,CCHD,Home care - Elderly MH - North,Other Small Contracts,DoCare Ltd,92.4, 19-Oct-2012
1006,Revenue,CCHD,Elderly MH Day Care North,Private & Voluntary Day Care,DoCare Ltd,55.44, 19-Oct-2012
1007,Revenue,CCHD,Home Care - Elderly - South,Other Small Contracts,DoCare Ltd,3229.38, 29-Oct-2012
1008,Revenue,CCHD,Home Care - Elderly - North,Other Small Contracts,DoCare Ltd,3908.52, 29-Oct-2012
1009,Revenue,CCHD,Day Care - South,Private & Voluntary Day Care,DoCare Ltd,115.5, 29-Oct-2012
1010,Revenue,CCHD,Day Care - North,Private & Voluntary Day Care,DoCare Ltd,351.12, 29-Oct-2012
1011,Revenue,CCHD,Home care - Elderly MH - North,Other Small Contracts,DoCare Ltd,101.64, 29-Oct-2012
1012,Revenue,CCHD,Elderly MH Day Care North,Private & Voluntary Day Care,DoCare Ltd,55.44, 29-Oct-2012
1013,Revenue,CCHD,Bed Purchasing - Elderly - South,Nursing Homes,Dunkirk Memorial House,1158.2, 02-Oct-2012
1014,Revenue,CCHD,Bed Purchasing - Elderly - South,Nursing Homes,Dunkirk Memorial House,1158.2, 30-Oct-2012
1015,Revenue,CCHD,MH Purchasing - Younger,Residential Homes,Dunraven House,1810.24, 02-Oct-2012
1016,Revenue,CCHD,MH Purchasing - Younger,Residential Homes,Dunraven House,1810.24, 30-Oct-2012
1017,Revenue,CCHD,Bed and Breakfast,Bed & Breakfast,E J Bartlett,735, 03-Oct-2012
1018,Revenue,CCHD,Bed and Breakfast,Bed & Breakfast,E J Bartlett,630, 10-Oct-2012
1019,Revenue,CCHD,Bed and Breakfast,Bed & Breakfast,E J Bartlett,420, 03-Oct-2012
1020,Revenue,CCHD,Bed and Breakfast,Bed & Breakfast,E J Bartlett,735, 10-Oct-2012
1021,Revenue,CCHD,Bed and Breakfast,Bed & Breakfast,E J Bartlett,630, 10-Oct-2012
1022,Revenue,CCHD,Bed and Breakfast,Bed & Breakfast,E J Bartlett,525, 10-Oct-2012
1023,Revenue,CCHD,Bed and Breakfast,Bed & Breakfast,E J Bartlett,735, 18-Oct-2012
1024,Revenue,CCHD,Bed and Breakfast,Bed & Breakfast,E J Bartlett,630, 18-Oct-2012
1025,Revenue,CCHD,Bed and Breakfast,Bed & Breakfast,E J Bartlett,525, 25-Oct-2012
1026,Revenue,CCHD,Bed and Breakfast,Bed & Breakfast,E J Bartlett,420, 25-Oct-2012
1027,Revenue,CCHD,Bed and Breakfast,Bed & Breakfast,E J Bartlett,630, 25-Oct-2012
1028,Revenue,CCHD,Bed and Breakfast,Bed & Breakfast,E J Bartlett,525, 25-Oct-2012
1029,Revenue,CCHD,Bed and Breakfast,Bed & Breakfast,E J Bartlett,630, 31-Oct-2012
1030,Revenue,CCHD,Bed and Breakfast,Bed & Breakfast,E J Bartlett,525, 31-Oct-2012
1031,Revenue,CCHD,Bed purchasing - Under 65s PWLD - North,Residential Homes,East Court,2160.8, 02-Oct-2012
1032,Revenue,CCHD,Bed purchasing - Under 65s PWLD - North,Residential Homes,East Court,2160.8, 30-Oct-2012
1033,Revenue,CCHD,Bed purchasing - Under 65s PWLD - North,Residential Homes,Ebley House,19000, 30-Oct-2012
1034,Revenue,CCHD,General EPH budgets,Other Supplies & Services,EDF Energy 1 Limited,741.15, 16-Oct-2012
1035,Revenue,CCHD,Newton House,Electricity,EDF Energy 1 Limited,827.36, 01-Oct-2012
1036,Revenue,CCHD,Southmead Hospital Purchasing,Residential Homes,Edgecumbe Lodge,1239.2, 02-Oct-2012
1037,Revenue,CCHD,Southmead Hospital Purchasing,Residential Homes,Edgecumbe Lodge,1239.2, 30-Oct-2012
1038,Revenue,CCHD,Bed Purchasing - Elderly - South,Residential Homes,Edgecumbe Lodge,1302.52, 02-Oct-2012
1039,Revenue,CCHD,Bed Purchasing - Elderly - South,Residential Homes,Edgecumbe Lodge,1302.52, 30-Oct-2012
1040,Revenue,CCHD,Bed Purchasing - Elderly - South,Residential Homes,Edgecumbe Lodge,1229.4, 02-Oct-2012
1041,Revenue,CCHD,Bed Purchasing - Elderly - South,Residential Homes,Edgecumbe Lodge,1229.4, 30-Oct-2012
1042,Revenue,CCHD,Bed Purchasing - Elderly - South,Residential Homes,Edgecumbe Lodge,1912.04, 30-Oct-2012
1043,Revenue,CCHD,Bed Purchasing - Elderly - South,Residential Homes,Edgecumbe Lodge,1688.3, 30-Oct-2012
1044,Revenue,CCHD,Frenchay Hospital Purchasing,Residential Homes,Edgecumbe Lodge,1110.52, 02-Oct-2012
1045,Revenue,CCHD,Frenchay Hospital Purchasing,Residential Homes,Edgecumbe Lodge,1110.52, 30-Oct-2012
1046,Revenue,CCHD,Frenchay Hospital Purchasing,Residential Homes,Edgecumbe Lodge,1056, 02-Oct-2012
1047,Revenue,CCHD,Frenchay Hospital Purchasing,Residential Homes,Edgecumbe Lodge,1056, 30-Oct-2012
1048,Revenue,CCHD,Bed Purchasing - Elderly MH - South,Residential Homes,Edgecumbe Lodge,1147.84, 02-Oct-2012
1049,Revenue,CCHD,Bed Purchasing - Elderly MH - South,Residential Homes,Edgecumbe Lodge,1147.84, 30-Oct-2012
1050,Revenue,CCHD,Swift Dump Code,Residential Homes,Edgemont House Ltd,983.16, 02-Oct-2012
1051,Revenue,CCHD,Bed Purchasing - Elderly - South,Residential Homes,Edgemont House Ltd,1353.44, 02-Oct-2012
1052,Revenue,CCHD,Bed Purchasing - Elderly - South,Residential Homes,Edgemont House Ltd,1353.44, 30-Oct-2012
1053,Revenue,CCHD,Bed Purchasing - Elderly - South,Residential Homes,Edgemont House Ltd,1243.44, 02-Oct-2012
1054,Revenue,CCHD,Bed Purchasing - Elderly - South,Residential Homes,Edgemont House Ltd,1243.44, 30-Oct-2012
1055,Revenue,CCHD,Frenchay Hospital Purchasing,Residential Homes,Edgemont House Ltd,1361.56, 02-Oct-2012
1056,Revenue,CCHD,Frenchay Hospital Purchasing,Residential Homes,Edgemont House Ltd,1361.56, 30-Oct-2012
1057,Revenue,CCHD,Bed Purchasing - Elderly - South,Nursing Homes,Edgemont View Nursing Home,1418.52, 02-Oct-2012
1058,Revenue,CCHD,Bed Purchasing - Elderly - South,Nursing Homes,Edgemont View Nursing Home,1418.52, 30-Oct-2012
1059,Revenue,CCHD,Frenchay Hospital Purchasing,Nursing Homes,Edgemont View Nursing Home,1341.28, 02-Oct-2012
1060,Revenue,CCHD,Frenchay Hospital Purchasing,Nursing Homes,Edgemont View Nursing Home,1341.28, 30-Oct-2012
1061,Revenue,CCHD,Bed Purchasing - Elderly - South,Nursing Homes,Edgemont View Nursing Home,1295.2, 02-Oct-2012
1062,Revenue,CCHD,Bed Purchasing - Elderly - South,Nursing Homes,Edgemont View Nursing Home,1295.2, 30-Oct-2012
1063,Revenue,CCHD,Bed Purchasing - Elderly - South,Nursing Homes,Edgemont View Nursing Home,1602.76, 02-Oct-2012
1064,Revenue,CCHD,Bed Purchasing - Elderly - South,Nursing Homes,Edgemont View Nursing Home,1602.76, 30-Oct-2012
1065,Revenue,CCHD,Frenchay Hospital Purchasing,Nursing Homes,Edgemont View Nursing Home,606.84, 02-Oct-2012
1066,Revenue,CCHD,Frenchay Hospital Purchasing,Nursing Homes,Edgemont View Nursing Home,606.84, 30-Oct-2012
1067,Revenue,CCHD,Southmead Hospital Purchasing,Nursing Homes,Edgemont View Nursing Home,807.94, 30-Oct-2012
1068,Revenue,CCHD,South Glos Users in South Glos Homes,Nursing Homes,Edgemont View Nursing Home,621.14, 30-Oct-2012
1069,Revenue,CCHD,Bed Purchasing - Under 65s PWLD - South,Residential Homes,Education & Services for People with Autism,10615.08, 30-Oct-2012
1070,Revenue,CCHD,Supporting People Programme,Grants to Voluntary Bodies,Elim Housing Association Ltd,4898.24, 01-Oct-2012
1071,Revenue,CCHD,Home Care - Elderly - South,Other Small Contracts,Elite Home Care Ltd,2390.16, 01-Oct-2012
1072,Revenue,CCHD,Day Care - South,Private & Voluntary Day Care,Elite Home Care Ltd,103.92, 01-Oct-2012
1073,Revenue,CCHD,Under 65s -MH  Home Care Purch,Other Small Contracts,Elite Home Care Ltd,77.94, 01-Oct-2012
1074,Revenue,CCHD,Home care - Elderly MH - North,Other Small Contracts,Elite Home Care Ltd,363.72, 01-Oct-2012
1075,Revenue,CCHD,Home Care - Elderly - South,Other Small Contracts,Elite Home Care Ltd,2507.07, 01-Oct-2012
1076,Revenue,CCHD,Day Care - South,Private & Voluntary Day Care,Elite Home Care Ltd,103.92, 01-Oct-2012
1077,Revenue,CCHD,Under 65s -MH  Home Care Purch,Other Small Contracts,Elite Home Care Ltd,90.93, 01-Oct-2012
1078,Revenue,CCHD,Home care - Elderly MH - North,Other Small Contracts,Elite Home Care Ltd,368.05, 01-Oct-2012
1079,Revenue,CCHD,Home Care - Elderly - South,Other Small Contracts,Elite Home Care Ltd,2693.26, 01-Oct-2012
1080,Revenue,CCHD,Day Care - South,Private & Voluntary Day Care,Elite Home Care Ltd,103.92, 01-Oct-2012
1081,Revenue,CCHD,Under 65s -MH  Home Care Purch,Other Small Contracts,Elite Home Care Ltd,90.93, 01-Oct-2012
1082,Revenue,CCHD,Home care - Elderly MH - North,Other Small Contracts,Elite Home Care Ltd,363.72, 01-Oct-2012
1083,Revenue,CCHD,Home Care - Elderly - South,Other Small Contracts,Elite Home Care Ltd,2723.57, 25-Oct-2012
1084,Revenue,CCHD,Day Care - South,Private & Voluntary Day Care,Elite Home Care Ltd,99.59, 25-Oct-2012
1085,Revenue,CCHD,Under 65s -MH  Home Care Purch,Other Small Contracts,Elite Home Care Ltd,73.61, 25-Oct-2012
1086,Revenue,CCHD,Home care - Elderly MH - North,Other Small Contracts,Elite Home Care Ltd,359.39, 25-Oct-2012
1087,Revenue,CCHD,Bed Purchasing - Elderly - South,Residential Homes,Elmbridge Residential Home Ltd,2619.12, 02-Oct-2012
1088,Revenue,CCHD,Bed Purchasing - Elderly - South,Residential Homes,Elmbridge Residential Home Ltd,1309.56, 30-Oct-2012
1089,Revenue,CCHD,Frenchay Hospital Purchasing,Nursing Homes,Elmwood Nursing Home,2213.12, 02-Oct-2012
1090,Revenue,CCHD,Frenchay Hospital Purchasing,Nursing Homes,Elmwood Nursing Home,2213.12, 30-Oct-2012
1091,Revenue,CCHD,Training - Adult Services,Training Expenses,Equality & Diversity UK Limited,806, 24-Oct-2012
1092,Revenue,CCHD,Home Care - Elderly - South,Other Small Contracts,Everycare (Bristol) Ltd,1835.4, 01-Oct-2012
1093,Revenue,CCHD,Home Care - Elderly - North,Other Small Contracts,Everycare (Bristol) Ltd,1709.4, 01-Oct-2012
1094,Revenue,CCHD,Home Care - Elderly - South,Other Small Contracts,Everycare (Bristol) Ltd,2360.4, 01-Oct-2012
1095,Revenue,CCHD,Home Care - Elderly - North,Other Small Contracts,Everycare (Bristol) Ltd,2125.2, 01-Oct-2012
1096,Revenue,CCHD,Home Care - Elderly - South,Other Small Contracts,Everycare (Bristol) Ltd,2289, 10-Oct-2012
1097,Revenue,CCHD,Home Care - Elderly - North,Other Small Contracts,Everycare (Bristol) Ltd,2188.2, 10-Oct-2012
1098,Revenue,CCHD,Home Care - Elderly - South,Other Small Contracts,Everycare (Bristol) Ltd,2692.2, 19-Oct-2012
1099,Revenue,CCHD,Home Care - Elderly - North,Other Small Contracts,Everycare (Bristol) Ltd,2184, 19-Oct-2012
1100,Revenue,CCHD,Home Care - Elderly - South,Other Small Contracts,Everycare (Bristol) Ltd,2751, 19-Oct-2012
1101,Revenue,CCHD,Home Care - Elderly - North,Other Small Contracts,Everycare (Bristol) Ltd,2192.4, 19-Oct-2012
1102,Revenue,CCHD,Bed Purchasing - Elderly MH - South,Residential Homes,Exmouth House,1382.92, 02-Oct-2012
1103,Revenue,CCHD,Bed Purchasing - Elderly MH - South,Residential Homes,Exmouth House,1382.92, 30-Oct-2012
1104,Revenue,CCHD,Bed Purchasing - Elderly - South,Nursing Homes,Fairview Court,1182.44, 02-Oct-2012
1105,Revenue,CCHD,Bed Purchasing - Elderly - South,Nursing Homes,Fairview Court,1182.44, 30-Oct-2012
1106,Revenue,CCHD,South Glos Users in South Glos Homes,Nursing Homes,Fairview Court,2624.33, 02-Oct-2012
1107,Revenue,CCHD,Southmead Hospital Purchasing,Nursing Homes,Fairview Court,1467.32, 02-Oct-2012
1108,Revenue,CCHD,Southmead Hospital Purchasing,Nursing Homes,Fairview Court,1467.32, 30-Oct-2012
1109,Revenue,CCHD,South Glos Users in South Glos Homes,Nursing Homes,Fairview Court,2624.33, 02-Oct-2012
1110,Revenue,CCHD,Bed purchasing - Elderly MH - North,Nursing Homes,Fairview Court,1604.64, 02-Oct-2012
1111,Revenue,CCHD,Bed purchasing - Elderly MH - North,Nursing Homes,Fairview Court,1604.64, 30-Oct-2012
1112,Revenue,CCHD,Southmead Hospital Purchasing,Nursing Homes,Fairview Court,1885.92, 02-Oct-2012
1113,Revenue,CCHD,Southmead Hospital Purchasing,Nursing Homes,Fairview Court,1885.92, 30-Oct-2012
1114,Revenue,CCHD,Bed Purchasing - Elderly MH - South,Residential Homes,Fairview Court,1403.2, 02-Oct-2012
1115,Revenue,CCHD,Bed Purchasing - Elderly MH - South,Residential Homes,Fairview Court,1403.2, 30-Oct-2012
1116,Revenue,CCHD,Bed Purchasing - Elderly - South,Residential Homes,Fairview Court,2623.36, 02-Oct-2012
1117,Revenue,CCHD,Bed Purchasing - Elderly - South,Residential Homes,Fairview Court,2623.36, 30-Oct-2012
1118,Revenue,CCHD,South Glos Users in South Glos Homes,Nursing Homes,Fairview Court,5233.13, 30-Oct-2012
1119,Revenue,CCHD,Bed Purchasing - Elderly - South,Residential Homes,Fairview Court,2118.56, 02-Oct-2012
1120,Revenue,CCHD,Bed Purchasing - Elderly - South,Residential Homes,Fairview Court,2118.56, 30-Oct-2012
1121,Revenue,CCHD,Bed Purchasing - Elderly - North,Nursing Homes,Fairview Court,2111.09, 02-Oct-2012
1122,Revenue,CCHD,Bed Purchasing - Elderly - North,Nursing Homes,Fairview Court,1094.64, 30-Oct-2012
1123,Revenue,CCHD,Frenchay Hospital Purchasing,Nursing Homes,Fairview Court Care Home,14.95, 26-Oct-2012
1124,Revenue,CCHD,South Glos Users in South Glos Homes,Nursing Homes,Fairview Court Care Home,4223.77, 26-Oct-2012
1125,Revenue,CCHD,Bed purchasing - Phys Dis - North,Nursing Homes,Fairview Court Care Home,1912.82, 26-Oct-2012
1126,Revenue,CCHD,Bed Purchasing - Elderly MH - South,Nursing Homes,Fairview Court Care Home,2932.36, 26-Oct-2012
1127,Revenue,CCHD,Bed purchasing - Elderly S117 - South,Nursing Homes,Fairview Court Care Home,2467.77, 26-Oct-2012
1128,Revenue,CCHD,Bed Purchasing - Elderly - South,Residential Homes,Fairview House,634.12, 02-Oct-2012
1129,Revenue,CCHD,Bed Purchasing - Elderly - South,Residential Homes,Fairview House,634.12, 30-Oct-2012
1130,Revenue,CCHD,Frenchay Hospital Purchasing,Residential Homes,Fairview House,1233.32, 02-Oct-2012
1131,Revenue,CCHD,Frenchay Hospital Purchasing,Residential Homes,Fairview House,1233.32, 30-Oct-2012
1132,Revenue,CCHD,Bed Purchasing - Elderly - South,Residential Homes,Fairview House,1255.24, 02-Oct-2012
1133,Revenue,CCHD,Bed Purchasing - Elderly - South,Residential Homes,Fairview House,1255.24, 30-Oct-2012
1134,Revenue,CCHD,Frenchay Hospital Purchasing,Residential Homes,Fairview House,995.44, 02-Oct-2012
1135,Revenue,CCHD,Frenchay Hospital Purchasing,Residential Homes,Fairview House,995.44, 30-Oct-2012
1136,Revenue,CCHD,Bed Purchasing - Elderly - South,Residential Homes,Fairview House,1239.2, 02-Oct-2012
1137,Revenue,CCHD,Bed Purchasing - Elderly - South,Residential Homes,Fairview House,1150.69, 02-Oct-2012
1138,Revenue,CCHD,Bed Purchasing - Elderly - South,Residential Homes,Fairview House,1239.2, 30-Oct-2012
1139,Revenue,CCHD,Bed purchasing - Elderly S117 - South,Residential Homes,Fairview House,1870.92, 02-Oct-2012
1140,Revenue,CCHD,Bed purchasing - Elderly S117 - South,Residential Homes,Fairview House,1870.92, 30-Oct-2012
1141,Revenue,CCHD,Southmead Hospital Purchasing,Residential Homes,Fairview House,1021.08, 02-Oct-2012
1142,Revenue,CCHD,Southmead Hospital Purchasing,Residential Homes,Fairview House,1021.08, 30-Oct-2012
1143,Revenue,CCHD,Southmead Hospital Purchasing,Residential Homes,Fairview House,1111.28, 02-Oct-2012
1144,Revenue,CCHD,Southmead Hospital Purchasing,Residential Homes,Fairview House,1111.28, 30-Oct-2012
1145,Revenue,CCHD,Bed Purchasing - Elderly MH - South,Residential Homes,Fairview House,1097.2, 02-Oct-2012
1146,Revenue,CCHD,Bed Purchasing - Elderly MH - South,Residential Homes,Fairview House,1097.2, 30-Oct-2012
1147,Revenue,CCHD,Frenchay Hospital Purchasing,Residential Homes,Fairview House,1239.2, 02-Oct-2012
1148,Revenue,CCHD,Frenchay Hospital Purchasing,Residential Homes,Fairview House,1239.2, 30-Oct-2012
1149,Revenue,CCHD,Southmead Hospital Purchasing,Residential Homes,Fairview House,1239.2, 02-Oct-2012
1150,Revenue,CCHD,Southmead Hospital Purchasing,Residential Homes,Fairview House,1239.2, 30-Oct-2012
1151,Revenue,CCHD,Bed Purchasing - Elderly MH - South,Residential Homes,Fairview House,1038.44, 02-Oct-2012
1152,Revenue,CCHD,Bed Purchasing - Elderly MH - South,Residential Homes,Fairview House,1038.44, 30-Oct-2012
1153,Revenue,CCHD,Bed Purchasing - Elderly MH - South,Residential Homes,Fairview House,1198.68, 02-Oct-2012
1154,Revenue,CCHD,Bed Purchasing - Elderly MH - South,Residential Homes,Fairview House,1198.68, 30-Oct-2012
1155,Revenue,CCHD,Bed Purchasing - Elderly - North,Residential Homes,Faith House,871.16, 02-Oct-2012
1156,Revenue,CCHD,Bed Purchasing - Elderly - North,Residential Homes,Faith House,871.16, 30-Oct-2012
1157,Revenue,CCHD,Frenchay Hospital Purchasing,Residential Homes,Faith House,1302, 02-Oct-2012
1158,Revenue,CCHD,Frenchay Hospital Purchasing,Residential Homes,Faith House,1302, 30-Oct-2012
1159,Revenue,CCHD,Bed purchasing - Under 65s PWLD - North,Residential Homes,Fernbank,8479.4, 02-Oct-2012
1160,Revenue,CCHD,Purchase of Non-Res Care - PS,Private & Voluntary Day Care,Firstpoint Homecare Ltd,1280.57, 03-Oct-2012
1161,Revenue,CCHD,Purchase of Non-Res Care - PS,Private & Voluntary Day Care,Firstpoint Homecare Ltd,1282.07, 08-Oct-2012
1162,Revenue,CCHD,Purchase of Non-Res Care - PS,Private & Voluntary Day Care,Firstpoint Homecare Ltd,1280.57, 23-Oct-2012
1163,Revenue,CCHD,Purchase of Non-Res Care - PS,Private & Voluntary Day Care,Firstpoint Homecare Ltd,1285.07, 30-Oct-2012
1164,Revenue,CCHD,Home Care - Elderly - South,Other Small Contracts,Firstpoint Homecare Ltd,1795.51, 03-Oct-2012
1165,Revenue,CCHD,Home Care - Elderly - North,Other Small Contracts,Firstpoint Homecare Ltd,710.6, 03-Oct-2012
1166,Revenue,CCHD,Day Care - South,Private & Voluntary Day Care,Firstpoint Homecare Ltd,653.6, 03-Oct-2012
1167,Revenue,CCHD,Day Care - North,Private & Voluntary Day Care,Firstpoint Homecare Ltd,444.6, 03-Oct-2012
1168,Revenue,CCHD,Younger MH non-res purchasing,Private & Voluntary Day Care,Firstpoint Homecare Ltd,72.2, 03-Oct-2012
1169,Revenue,CCHD,Home care - Elderly MH - North,Other Small Contracts,Firstpoint Homecare Ltd,155.8, 03-Oct-2012
1170,Revenue,CCHD,Elderly MH Day Care North,Private & Voluntary Day Care,Firstpoint Homecare Ltd,91.2, 03-Oct-2012
1171,Revenue,CCHD,Supported Living - KD,Private & Voluntary Home Care,Firstpoint Homecare Ltd,95, 03-Oct-2012
1172,Revenue,CCHD,Purchase of Non-Res Care - PS,Private & Voluntary Day Care,Firstpoint Homecare Ltd,1279.07, 30-Oct-2012
1173,Revenue,CCHD,Home Care - Elderly - South,Other Small Contracts,Firstpoint Homecare Ltd,1790.89, 15-Oct-2012
1174,Revenue,CCHD,Home Care - Elderly - North,Other Small Contracts,Firstpoint Homecare Ltd,729.6, 15-Oct-2012
1175,Revenue,CCHD,Day Care - South,Private & Voluntary Day Care,Firstpoint Homecare Ltd,608, 15-Oct-2012
1176,Revenue,CCHD,Day Care - North,Private & Voluntary Day Care,Firstpoint Homecare Ltd,437, 15-Oct-2012
1177,Revenue,CCHD,Younger MH non-res purchasing,Private & Voluntary Day Care,Firstpoint Homecare Ltd,190, 15-Oct-2012
1178,Revenue,CCHD,Home care - Elderly MH - North,Other Small Contracts,Firstpoint Homecare Ltd,155.8, 15-Oct-2012
1179,Revenue,CCHD,Elderly MH Day Care North,Private & Voluntary Day Care,Firstpoint Homecare Ltd,95, 15-Oct-2012
1180,Revenue,CCHD,Supported Living - KD,Private & Voluntary Home Care,Firstpoint Homecare Ltd,102.6, 15-Oct-2012
1181,Revenue,CCHD,Home Care - Elderly - South,Other Small Contracts,Firstpoint Homecare Ltd,1895.12, 15-Oct-2012
1182,Revenue,CCHD,Home Care - Elderly - North,Other Small Contracts,Firstpoint Homecare Ltd,752.4, 15-Oct-2012
1183,Revenue,CCHD,Day Care - South,Private & Voluntary Day Care,Firstpoint Homecare Ltd,649.8, 15-Oct-2012
1184,Revenue,CCHD,Day Care - North,Private & Voluntary Day Care,Firstpoint Homecare Ltd,304, 15-Oct-2012
1185,Revenue,CCHD,Younger MH non-res purchasing,Private & Voluntary Day Care,Firstpoint Homecare Ltd,190, 15-Oct-2012
1186,Revenue,CCHD,Home care - Elderly MH - North,Other Small Contracts,Firstpoint Homecare Ltd,159.6, 15-Oct-2012
1187,Revenue,CCHD,Elderly MH Day Care North,Private & Voluntary Day Care,Firstpoint Homecare Ltd,91.2, 15-Oct-2012
1188,Revenue,CCHD,Home Care - Elderly - South,Other Small Contracts,Firstpoint Homecare Ltd,1780.3, 15-Oct-2012
1189,Revenue,CCHD,Home Care - Elderly - North,Other Small Contracts,Firstpoint Homecare Ltd,748.6, 15-Oct-2012
1190,Revenue,CCHD,Day Care - South,Private & Voluntary Day Care,Firstpoint Homecare Ltd,615.6, 15-Oct-2012
1191,Revenue,CCHD,Day Care - North,Private & Voluntary Day Care,Firstpoint Homecare Ltd,319.2, 15-Oct-2012
1192,Revenue,CCHD,Younger MH non-res purchasing,Private & Voluntary Day Care,Firstpoint Homecare Ltd,45.6, 15-Oct-2012
1193,Revenue,CCHD,Home care - Elderly MH - North,Other Small Contracts,Firstpoint Homecare Ltd,155.8, 15-Oct-2012
1194,Revenue,CCHD,Elderly MH Day Care North,Private & Voluntary Day Care,Firstpoint Homecare Ltd,91.2, 15-Oct-2012
1195,Revenue,CCHD,Home Care - Elderly - South,Other Small Contracts,Firstpoint Homecare Ltd,1808.8, 11-Oct-2012
1196,Revenue,CCHD,Home Care - Elderly - North,Other Small Contracts,Firstpoint Homecare Ltd,729.6, 11-Oct-2012
1197,Revenue,CCHD,Day Care - South,Private & Voluntary Day Care,Firstpoint Homecare Ltd,653.6, 11-Oct-2012
1198,Revenue,CCHD,Day Care - North,Private & Voluntary Day Care,Firstpoint Homecare Ltd,269.8, 11-Oct-2012
1199,Revenue,CCHD,Under 65s -MH  Home Care Purch,Other Small Contracts,Firstpoint Homecare Ltd,91.2, 11-Oct-2012
1200,Revenue,CCHD,Younger MH non-res purchasing,Private & Voluntary Day Care,Firstpoint Homecare Ltd,68.4, 11-Oct-2012
1201,Revenue,CCHD,Home care - Elderly MH - North,Other Small Contracts,Firstpoint Homecare Ltd,155.8, 11-Oct-2012
1202,Revenue,CCHD,Elderly MH Day Care North,Private & Voluntary Day Care,Firstpoint Homecare Ltd,91.2, 11-Oct-2012
1203,Revenue,CCHD,Training - Adult Services,Training Expenses,Focal Point UK,422, 22-Oct-2012
1204,Revenue,CCHD,Bed Purchasing - Elderly - North,Nursing Homes,Forest Care Unit 1,1344.12, 02-Oct-2012
1205,Revenue,CCHD,Southmead Hospital Purchasing,Residential Homes,Forest Care Unit 1,575, 02-Oct-2012
1206,Revenue,CCHD,Bed Purchasing - Elderly - South,Nursing Homes,Four Seasons Health Care,1363.2, 02-Oct-2012
1207,Revenue,CCHD,Bed Purchasing - Elderly - South,Nursing Homes,Four Seasons Health Care,1378.08, 30-Oct-2012
1208,Revenue,CCHD,Bed Purchasing - Elderly - South,Nursing Homes,Four Seasons Health Care,921.96, 30-Oct-2012
1209,Revenue,CCHD,Bed Purchasing - Elderly - South,Nursing Homes,Four Seasons Health Care,1281.72, 02-Oct-2012
1210,Revenue,CCHD,Bed Purchasing - Elderly - South,Nursing Homes,Four Seasons Health Care,1281.72, 30-Oct-2012
1211,Revenue,CCHD,Frenchay Hospital Purchasing,Residential Homes,Four Seasons Health Care,892.12, 02-Oct-2012
1212,Revenue,CCHD,Frenchay Hospital Purchasing,Residential Homes,Four Seasons Health Care,892.12, 30-Oct-2012
1213,Revenue,CCHD,Bed Purchasing - Elderly MH - South,Nursing Homes,Four Seasons Health Care,1363.2, 02-Oct-2012
1214,Revenue,CCHD,Bed Purchasing - Elderly MH - South,Nursing Homes,Four Seasons Health Care,1363.2, 30-Oct-2012
1215,Revenue,CCHD,Southmead Hospital Purchasing,Nursing Homes,Four Seasons Health Care,525.71, 02-Oct-2012
1216,Revenue,CCHD,Frenchay Hospital Purchasing,Nursing Homes,Four Seasons Health Care,1363.2, 02-Oct-2012
1217,Revenue,CCHD,Frenchay Hospital Purchasing,Nursing Homes,Four Seasons Health Care,1363.2, 30-Oct-2012
1218,Revenue,CCHD,Frenchay Hospital Purchasing,Nursing Homes,Four Seasons Health Care,3088.57, 02-Oct-2012
1219,Revenue,CCHD,Southmead Hospital Purchasing,Nursing Homes,Four Seasons Health Care,1363.2, 02-Oct-2012
1220,Revenue,CCHD,Southmead Hospital Purchasing,Nursing Homes,Four Seasons Health Care,1363.2, 30-Oct-2012
1221,Revenue,CCHD,Southmead Hospital Purchasing,Nursing Homes,Four Seasons Health Care,4806.46, 02-Oct-2012
1222,Revenue,CCHD,Bed Purchasing - Elderly - South,Nursing Homes,Four Seasons Health Care,1363.2, 30-Oct-2012
1223,Revenue,CCHD,Bed Purchasing - Elderly - South,Nursing Homes,Four Seasons Health Care,681.6, 30-Oct-2012
1224,Revenue,CCHD,Frenchay Hospital Purchasing,Nursing Homes,Four Seasons Health Care,2290.15, 02-Oct-2012
1225,Revenue,CCHD,Frenchay Hospital Purchasing,Nursing Homes,Four Seasons Health Care,1335.92, 02-Oct-2012
1226,Revenue,CCHD,Frenchay Hospital Purchasing,Nursing Homes,Four Seasons Health Care,1335.92, 30-Oct-2012
1227,Revenue,CCHD,Bed Purchasing - Elderly - South,Nursing Homes,Four Seasons Health Care,753.75, 02-Oct-2012
1228,Revenue,CCHD,Bed Purchasing - Under 65s PWLD - South,Residential Homes,Four Seasons Health Care,9214.02, 30-Oct-2012
1229,Revenue,CCHD,Bed Purchasing - Elderly - South,Nursing Homes,Four Seasons Health Care,1365.04, 30-Oct-2012
1230,Revenue,CCHD,Southmead Hospital Purchasing,Nursing Homes,Four Seasons Health Care,1363.2, 02-Oct-2012
1231,Revenue,CCHD,Southmead Hospital Purchasing,Nursing Homes,Four Seasons Health Care,1363.2, 30-Oct-2012
1232,Revenue,CCHD,Bed Purchasing - Elderly - South,Nursing Homes,Four Seasons Health Care,1361.64, 02-Oct-2012
1233,Revenue,CCHD,Bed Purchasing - Elderly - South,Nursing Homes,Four Seasons Health Care,1361.64, 30-Oct-2012
1234,Revenue,CCHD,Cash for Change Discharges,Nursing Homes,Four Seasons Health Care,1363.2, 02-Oct-2012
1235,Revenue,CCHD,Cash for Change Discharges,Nursing Homes,Four Seasons Health Care,1363.2, 30-Oct-2012
1236,Revenue,CCHD,Bed Purchasing - Elderly - South,Nursing Homes,Four Seasons Health Care,1327.2, 02-Oct-2012
1237,Revenue,CCHD,Bed Purchasing - Elderly - South,Nursing Homes,Four Seasons Health Care,1327.2, 30-Oct-2012
1238,Revenue,CCHD,Southmead Hospital Purchasing,Nursing Homes,Four Seasons Health Care,1363.2, 02-Oct-2012
1239,Revenue,CCHD,Southmead Hospital Purchasing,Nursing Homes,Four Seasons Health Care,1363.2, 30-Oct-2012
1240,Revenue,CCHD,Bed Purchasing - Elderly - South,Nursing Homes,Four Seasons Health Care,1260.92, 02-Oct-2012
1241,Revenue,CCHD,Bed Purchasing - Elderly - South,Nursing Homes,Four Seasons Health Care,1260.92, 30-Oct-2012
1242,Revenue,CCHD,Southmead Hospital Purchasing,Residential Homes,Four Seasons Health Care,543.56, 02-Oct-2012
1243,Revenue,CCHD,Southmead Hospital Purchasing,Residential Homes,Four Seasons Health Care,543.56, 30-Oct-2012
1244,Revenue,CCHD,Bed Purchasing - Elderly - North,Residential Homes,Four Seasons Health Care,1239.2, 02-Oct-2012
1245,Revenue,CCHD,Bed Purchasing - Elderly - North,Residential Homes,Four Seasons Health Care,1239.2, 30-Oct-2012
1246,Revenue,CCHD,South Glos Users in South Glos Homes,Nursing Homes,Four Seasons Health Care,869.6, 02-Oct-2012
1247,Revenue,CCHD,Bed Purchasing - Elderly - North,Nursing Homes,Four Seasons Health Care,1840, 30-Oct-2012
1248,Revenue,CCHD,Southmead Hospital Purchasing,Nursing Homes,Four Seasons Health Care,1269.2, 02-Oct-2012
1249,Revenue,CCHD,Southmead Hospital Purchasing,Nursing Homes,Four Seasons Health Care,1269.2, 30-Oct-2012
1250,Revenue,CCHD,Frenchay Hospital Purchasing,Nursing Homes,Four Seasons Health Care,1159.2, 02-Oct-2012
1251,Revenue,CCHD,South Glos Users in South Glos Homes,Nursing Homes,Four Seasons Health Care,2484.57, 30-Oct-2012
1252,Revenue,CCHD,Frenchay Hospital Purchasing,Nursing Homes,Four Seasons Health Care,1159.2, 30-Oct-2012
1253,Revenue,CCHD,Bed Purchasing - Elderly - South,Nursing Homes,Four Seasons Health Care,1363.2, 02-Oct-2012
1254,Revenue,CCHD,Bed Purchasing - Elderly - South,Nursing Homes,Four Seasons Health Care,1363.2, 30-Oct-2012
1255,Revenue,CCHD,Bed Purchasing - Elderly - South,Nursing Homes,Four Seasons Health Care,1308.24, 02-Oct-2012
1256,Revenue,CCHD,Bed Purchasing - Elderly - South,Nursing Homes,Four Seasons Health Care,1308.24, 30-Oct-2012
1257,Revenue,CCHD,Bed Purchasing - Elderly MH - South,Nursing Homes,Four Seasons Health Care,1363.2, 02-Oct-2012
1258,Revenue,CCHD,Bed Purchasing - Elderly MH - South,Nursing Homes,Four Seasons Health Care,1363.2, 30-Oct-2012
1259,Revenue,CCHD,Bed Purchasing - Elderly - South,Nursing Homes,Four Seasons Health Care,1067.16, 02-Oct-2012
1260,Revenue,CCHD,Bed Purchasing - Elderly - South,Nursing Homes,Four Seasons Health Care,1067.16, 30-Oct-2012
1261,Revenue,CCHD,Bed Purchasing - Elderly - South,Nursing Homes,Four Seasons Health Care,1327.2, 02-Oct-2012
1262,Revenue,CCHD,Bed Purchasing - Elderly - South,Nursing Homes,Four Seasons Health Care,1327.2, 30-Oct-2012
1263,Revenue,CCHD,Frenchay Hospital Purchasing,Nursing Homes,Four Seasons Health Care,1071.6, 02-Oct-2012
1264,Revenue,CCHD,Frenchay Hospital Purchasing,Nursing Homes,Four Seasons Health Care,1071.6, 30-Oct-2012
1265,Revenue,CCHD,Bed Purchasing - Elderly MH - South,Residential Homes,Four Seasons Health Care,1084.52, 02-Oct-2012
1266,Revenue,CCHD,Bed Purchasing - Elderly MH - South,Residential Homes,Four Seasons Health Care,1084.52, 30-Oct-2012
1267,Revenue,CCHD,Bed Purchasing - Elderly - South,Nursing Homes,Four Seasons Health Care,1363.2, 02-Oct-2012
1268,Revenue,CCHD,Bed Purchasing - Elderly - South,Nursing Homes,Four Seasons Health Care,1363.2, 30-Oct-2012
1269,Revenue,CCHD,Bed Purchasing - Elderly - South,Nursing Homes,Four Seasons Health Care,2818.71, 02-Oct-2012
1270,Revenue,CCHD,Bed Purchasing - Elderly - South,Nursing Homes,Four Seasons Health Care,917.72, 02-Oct-2012
1271,Revenue,CCHD,Bed Purchasing - Elderly - South,Nursing Homes,Four Seasons Health Care,917.72, 30-Oct-2012
1272,Revenue,CCHD,Bed Purchasing - Elderly - South,Nursing Homes,Four Seasons Health Care,1361.8, 02-Oct-2012
1273,Revenue,CCHD,Bed Purchasing - Elderly - South,Nursing Homes,Four Seasons Health Care,1361.8, 30-Oct-2012
1274,Revenue,CCHD,Frenchay Hospital Purchasing,Nursing Homes,Four Seasons Health Care,1371.2, 02-Oct-2012
1275,Revenue,CCHD,Frenchay Hospital Purchasing,Nursing Homes,Four Seasons Health Care,1371.2, 30-Oct-2012
1276,Revenue,CCHD,Bed Purchasing - Elderly MH - South,Nursing Homes,Four Seasons Health Care,1212.44, 02-Oct-2012
1277,Revenue,CCHD,Bed Purchasing - Elderly MH - South,Nursing Homes,Four Seasons Health Care,1212.44, 30-Oct-2012
1278,Revenue,CCHD,Bed purchasing - Elderly MH - North,Nursing Homes,Four Seasons Health Care,987.64, 02-Oct-2012
1279,Revenue,CCHD,Bed purchasing - Elderly MH - North,Nursing Homes,Four Seasons Health Care,846.55, 30-Oct-2012
1280,Revenue,CCHD,Bed Purchasing - Elderly - South,Nursing Homes,Four Seasons Health Care,1590.03, 02-Oct-2012
1281,Revenue,CCHD,Bed Purchasing - Elderly - South,Nursing Homes,Four Seasons Health Care,1535.2, 02-Oct-2012
1282,Revenue,CCHD,Bed Purchasing - Elderly - North,Nursing Homes,Four Seasons Health Care,956.44, 02-Oct-2012
1283,Revenue,CCHD,Bed Purchasing - Elderly - North,Nursing Homes,Four Seasons Health Care,956.44, 30-Oct-2012
1284,Revenue,CCHD,Frenchay Hospital Purchasing,Nursing Homes,Four Seasons Health Care,1535.2, 02-Oct-2012
1285,Revenue,CCHD,Frenchay Hospital Purchasing,Nursing Homes,Four Seasons Health Care,1363.2, 30-Oct-2012
1286,Revenue,CCHD,Frenchay Hospital Purchasing,Nursing Homes,Four Seasons Health Care,1271.88, 02-Oct-2012
1287,Revenue,CCHD,Frenchay Hospital Purchasing,Nursing Homes,Four Seasons Health Care,1271.88, 30-Oct-2012
1288,Revenue,CCHD,Southmead Hospital Purchasing,Residential Homes,Four Seasons Health Care,1230.28, 02-Oct-2012
1289,Revenue,CCHD,Southmead Hospital Purchasing,Residential Homes,Four Seasons Health Care,1230.28, 30-Oct-2012
1290,Revenue,CCHD,Bed Purchasing - Elderly - South,Nursing Homes,Four Seasons Health Care,1535.2, 02-Oct-2012
1291,Revenue,CCHD,Bed Purchasing - Elderly - South,Nursing Homes,Four Seasons Health Care,1535.2, 30-Oct-2012
1292,Revenue,CCHD,Bed purchasing - Elderly MH - North,Residential Homes,Four Seasons Health Care,1152.2, 02-Oct-2012
1293,Revenue,CCHD,Bed Purchasing - Elderly - North,Nursing Homes,Four Seasons Health Care,1535.2, 02-Oct-2012
1294,Revenue,CCHD,Bed Purchasing - Elderly - North,Nursing Homes,Four Seasons Health Care,1535.2, 30-Oct-2012
1295,Revenue,CCHD,South Glos Users in South Glos Homes,Nursing Homes,Four Seasons Health Care,2251.64, 02-Oct-2012
1296,Revenue,CCHD,Bed Purchasing - Elderly - North,Residential Homes,Four Seasons Health Care,1026.48, 02-Oct-2012
1297,Revenue,CCHD,Bed Purchasing - Elderly - North,Residential Homes,Four Seasons Health Care,1026.48, 30-Oct-2012
1298,Revenue,CCHD,South Glos Users in South Glos Homes,Nursing Homes,Four Seasons Health Care,6258.02, 02-Oct-2012
1299,Revenue,CCHD,South Glos Users in South Glos Homes,Nursing Homes,Four Seasons Health Care,729.84, 02-Oct-2012
1300,Revenue,CCHD,Frenchay Hospital Purchasing,Nursing Homes,Four Seasons Health Care,1363.2, 30-Oct-2012
1301,Revenue,CCHD,Frenchay Hospital Purchasing,Nursing Homes,Four Seasons Health Care,876.35, 30-Oct-2012
1302,Revenue,CCHD,Bed purchasing - Elderly MH - North,Nursing Homes,Four Seasons Health Care,30937.53, 02-Oct-2012
1303,Revenue,CCHD,Bed purchasing - Elderly MH - North,Nursing Homes,Four Seasons Health Care,17572.29, 02-Oct-2012
1304,Revenue,CCHD,Bed purchasing - Elderly MH - North,Nursing Homes,Four Seasons Health Care,1392.44, 02-Oct-2012
1305,Revenue,CCHD,Frenchay Hospital Purchasing,Nursing Homes,Four Seasons Health Care,3070.4, 02-Oct-2012
1306,Revenue,CCHD,Frenchay Hospital Purchasing,Nursing Homes,Four Seasons Health Care,1535.2, 30-Oct-2012
1307,Revenue,CCHD,Bed purchasing - Elderly MH - North,Nursing Homes,Four Seasons Health Care,1327.2, 02-Oct-2012
1308,Revenue,CCHD,Bed purchasing - Elderly MH - North,Nursing Homes,Four Seasons Health Care,1327.2, 30-Oct-2012
1309,Revenue,CCHD,Frenchay Hospital Purchasing,Nursing Homes,Four Seasons Health Care,1308.64, 30-Oct-2012
1310,Revenue,CCHD,Frenchay Hospital Purchasing,Nursing Homes,Four Seasons Health Care,1290.64, 30-Oct-2012
1311,Revenue,CCHD,Bed Purchasing - Elderly - North,Nursing Homes,Four Seasons Health Care,1363.2, 02-Oct-2012
1312,Revenue,CCHD,Bed Purchasing - Elderly - North,Nursing Homes,Four Seasons Health Care,1363.2, 30-Oct-2012
1313,Revenue,CCHD,Southmead Hospital Purchasing,Nursing Homes,Four Seasons Health Care,1363.2, 02-Oct-2012
1314,Revenue,CCHD,Southmead Hospital Purchasing,Nursing Homes,Four Seasons Health Care,1363.2, 30-Oct-2012
1315,Revenue,CCHD,Bed Purchasing - Elderly - North,Nursing Homes,Four Seasons Health Care,1363.2, 02-Oct-2012
1316,Revenue,CCHD,Bed Purchasing - Elderly - North,Nursing Homes,Four Seasons Health Care,1363.2, 30-Oct-2012
1317,Revenue,CCHD,Bed Purchasing - Elderly - North,Nursing Homes,Four Seasons Health Care,1287.44, 02-Oct-2012
1318,Revenue,CCHD,Bed Purchasing - Elderly - North,Nursing Homes,Four Seasons Health Care,1287.44, 30-Oct-2012
1319,Revenue,CCHD,Bed purchasing - Elderly MH - North,Nursing Homes,Four Seasons Health Care,1457.48, 02-Oct-2012
1320,Revenue,CCHD,Bed purchasing - Elderly MH - North,Nursing Homes,Four Seasons Health Care,1457.48, 30-Oct-2012
1321,Revenue,CCHD,Bed Purchasing - Elderly - North,Nursing Homes,Four Seasons Health Care,1264.2, 02-Oct-2012
1322,Revenue,CCHD,Bed Purchasing - Elderly - North,Nursing Homes,Four Seasons Health Care,1264.2, 30-Oct-2012
1323,Revenue,CCHD,Bed Purchasing - Elderly - North,Nursing Homes,Four Seasons Health Care,1096.56, 02-Oct-2012
1324,Revenue,CCHD,Bed Purchasing - Elderly - North,Nursing Homes,Four Seasons Health Care,1096.56, 30-Oct-2012
1325,Revenue,CCHD,Southmead Hospital Purchasing,Nursing Homes,Four Seasons Health Care,1356.56, 02-Oct-2012
1326,Revenue,CCHD,Southmead Hospital Purchasing,Nursing Homes,Four Seasons Health Care,1356.56, 30-Oct-2012
1327,Revenue,CCHD,Frenchay Hospital Purchasing,Residential Homes,Four Seasons Health Care,3687.96, 30-Oct-2012
1328,Revenue,CCHD,Frenchay Hospital Purchasing,Nursing Homes,Four Seasons Health Care,1284.4, 02-Oct-2012
1329,Revenue,CCHD,Frenchay Hospital Purchasing,Nursing Homes,Four Seasons Health Care,1284.4, 30-Oct-2012
1330,Revenue,CCHD,Bed purchasing - Elderly MH - North,Nursing Homes,Four Seasons Health Care,1435.64, 02-Oct-2012
1331,Revenue,CCHD,Bed purchasing - Elderly MH - North,Nursing Homes,Four Seasons Health Care,1435.64, 30-Oct-2012
1332,Revenue,CCHD,Frenchay Hospital Purchasing,Nursing Homes,Four Seasons Health Care,1343.4, 02-Oct-2012
1333,Revenue,CCHD,Frenchay Hospital Purchasing,Nursing Homes,Four Seasons Health Care,1343.4, 30-Oct-2012
1334,Revenue,CCHD,Bed Purchasing - Elderly - North,Nursing Homes,Four Seasons Health Care,1027.36, 02-Oct-2012
1335,Revenue,CCHD,Bed Purchasing - Elderly - North,Nursing Homes,Four Seasons Health Care,1027.36, 30-Oct-2012
1336,Revenue,CCHD,Bed Purchasing - Elderly - North,Residential Homes,Four Seasons Health Care,670.04, 02-Oct-2012
1337,Revenue,CCHD,Bed Purchasing - Elderly - North,Residential Homes,Four Seasons Health Care,670.04, 30-Oct-2012
1338,Revenue,CCHD,South Glos Users in South Glos Homes,Nursing Homes,Four Seasons Health Care,1987.66, 02-Oct-2012
1339,Revenue,CCHD,Frenchay Hospital Purchasing,Nursing Homes,Four Seasons Health Care,1522.72, 02-Oct-2012
1340,Revenue,CCHD,Frenchay Hospital Purchasing,Nursing Homes,Four Seasons Health Care,1522.72, 30-Oct-2012
1341,Revenue,CCHD,Bed purchasing - Elderly MH - North,Residential Homes,Four Seasons Health Care,1306.04, 30-Oct-2012
1342,Revenue,CCHD,Bed purchasing - Elderly MH - North,Residential Homes,Four Seasons Health Care,699.66, 30-Oct-2012
1343,Revenue,CCHD,Bed Purchasing - Elderly - North,Nursing Homes,Four Seasons Health Care,1499.2, 02-Oct-2012
1344,Revenue,CCHD,Bed Purchasing - Elderly - North,Nursing Homes,Four Seasons Health Care,1499.2, 30-Oct-2012
1345,Revenue,CCHD,Bed Purchasing - Elderly - North,Nursing Homes,Four Seasons Health Care,1363.2, 02-Oct-2012
1346,Revenue,CCHD,Bed Purchasing - Elderly - North,Nursing Homes,Four Seasons Health Care,1363.2, 30-Oct-2012
1347,Revenue,CCHD,Bed Purchasing - Elderly - North,Nursing Homes,Four Seasons Health Care,1431.8, 02-Oct-2012
1348,Revenue,CCHD,Bed Purchasing - Elderly - North,Nursing Homes,Four Seasons Health Care,1431.8, 30-Oct-2012
1349,Revenue,CCHD,Southmead Hospital Purchasing,Residential Homes,Four Seasons Health Care,705.16, 02-Oct-2012
1350,Revenue,CCHD,Southmead Hospital Purchasing,Residential Homes,Four Seasons Health Care,705.16, 30-Oct-2012
1351,Revenue,CCHD,Southmead Hospital Purchasing,Nursing Homes,Four Seasons Health Care,1442.32, 02-Oct-2012
1352,Revenue,CCHD,Southmead Hospital Purchasing,Nursing Homes,Four Seasons Health Care,1442.32, 30-Oct-2012
1353,Revenue,CCHD,Bed Purchasing - Elderly - North,Nursing Homes,Four Seasons Health Care,1535.2, 02-Oct-2012
1354,Revenue,CCHD,Bed Purchasing - Elderly - North,Nursing Homes,Four Seasons Health Care,1535.2, 30-Oct-2012
1355,Revenue,CCHD,Frenchay Hospital Purchasing,Nursing Homes,Four Seasons Health Care,1211.32, 02-Oct-2012
1356,Revenue,CCHD,Frenchay Hospital Purchasing,Nursing Homes,Four Seasons Health Care,1211.32, 30-Oct-2012
1357,Revenue,CCHD,Southmead Hospital Purchasing,Nursing Homes,Four Seasons Health Care,1535.2, 02-Oct-2012
1358,Revenue,CCHD,Southmead Hospital Purchasing,Nursing Homes,Four Seasons Health Care,1535.2, 30-Oct-2012
1359,Revenue,CCHD,Southmead Hospital Purchasing,Nursing Homes,Four Seasons Health Care,1347.32, 02-Oct-2012
1360,Revenue,CCHD,Southmead Hospital Purchasing,Nursing Homes,Four Seasons Health Care,1347.32, 30-Oct-2012
1361,Revenue,CCHD,Bed Purchasing - Elderly - North,Nursing Homes,Four Seasons Health Care,1535.2, 02-Oct-2012
1362,Revenue,CCHD,Bed Purchasing - Elderly - North,Nursing Homes,Four Seasons Health Care,1535.2, 30-Oct-2012
1363,Revenue,CCHD,Bed purchasing - Elderly MH - North,Residential Homes,Four Seasons Health Care,1197.16, 02-Oct-2012
1364,Revenue,CCHD,Bed purchasing - Elderly MH - North,Residential Homes,Four Seasons Health Care,1197.16, 30-Oct-2012
1365,Revenue,CCHD,Southmead Hospital Purchasing,Nursing Homes,Four Seasons Health Care,3070.4, 02-Oct-2012
1366,Revenue,CCHD,Southmead Hospital Purchasing,Nursing Homes,Four Seasons Health Care,2106.72, 30-Oct-2012
1367,Revenue,CCHD,South Glos Users in South Glos Homes,Nursing Homes,Four Seasons Health Care,667.73, 30-Oct-2012
1368,Revenue,CCHD,Southmead Hospital Purchasing,Residential Homes,Four Seasons Health Care,1239.2, 02-Oct-2012
1369,Revenue,CCHD,Southmead Hospital Purchasing,Residential Homes,Four Seasons Health Care,1239.2, 30-Oct-2012
1370,Revenue,CCHD,Southmead Hospital Purchasing,Nursing Homes,Four Seasons Health Care,940.68, 02-Oct-2012
1371,Revenue,CCHD,Southmead Hospital Purchasing,Nursing Homes,Four Seasons Health Care,940.68, 30-Oct-2012
1372,Revenue,CCHD,Bed purchasing - Elderly MH - North,Residential Homes,Four Seasons Health Care,1366.04, 02-Oct-2012
1373,Revenue,CCHD,Bed purchasing - Elderly MH - North,Residential Homes,Four Seasons Health Care,1366.04, 30-Oct-2012
1374,Revenue,CCHD,Bed Purchasing - Elderly - North,Nursing Homes,Four Seasons Health Care,1346.6, 02-Oct-2012
1375,Revenue,CCHD,Bed Purchasing - Elderly - North,Nursing Homes,Four Seasons Health Care,1346.6, 30-Oct-2012
1376,Revenue,CCHD,Southmead Hospital Purchasing,Nursing Homes,Four Seasons Health Care,1207.08, 02-Oct-2012
1377,Revenue,CCHD,Southmead Hospital Purchasing,Nursing Homes,Four Seasons Health Care,1207.08, 30-Oct-2012
1378,Revenue,CCHD,Bed purchasing - Elderly MH - North,Nursing Homes,Four Seasons Health Care,1025.24, 02-Oct-2012
1379,Revenue,CCHD,Bed purchasing - Elderly MH - North,Nursing Homes,Four Seasons Health Care,1025.24, 30-Oct-2012
1380,Revenue,CCHD,Bed Purchasing - Elderly - North,Residential Homes,Four Seasons Health Care,1263.2, 02-Oct-2012
1381,Revenue,CCHD,Bed Purchasing - Elderly - North,Residential Homes,Four Seasons Health Care,1263.2, 30-Oct-2012
1382,Revenue,CCHD,Frenchay Hospital Purchasing,Residential Homes,Four Seasons Health Care,1239.2, 02-Oct-2012
1383,Revenue,CCHD,Frenchay Hospital Purchasing,Residential Homes,Four Seasons Health Care,1239.2, 30-Oct-2012
1384,Revenue,CCHD,Frenchay Hospital Purchasing,Nursing Homes,Four Seasons Health Care,1204.44, 02-Oct-2012
1385,Revenue,CCHD,Frenchay Hospital Purchasing,Nursing Homes,Four Seasons Health Care,1204.44, 30-Oct-2012
1386,Revenue,CCHD,Bed Purchasing - Elderly - North,Nursing Homes,Four Seasons Health Care,1300.48, 02-Oct-2012
1387,Revenue,CCHD,Bed Purchasing - Elderly - North,Nursing Homes,Four Seasons Health Care,1300.48, 30-Oct-2012
1388,Revenue,CCHD,Frenchay Hospital Purchasing,Nursing Homes,Four Seasons Health Care,1363.2, 02-Oct-2012
1389,Revenue,CCHD,Frenchay Hospital Purchasing,Nursing Homes,Four Seasons Health Care,1363.2, 30-Oct-2012
1390,Revenue,CCHD,Bed Purchasing - Elderly - North,Nursing Homes,Four Seasons Health Care,1273.72, 02-Oct-2012
1391,Revenue,CCHD,Bed Purchasing - Elderly - North,Nursing Homes,Four Seasons Health Care,1273.72, 30-Oct-2012
1392,Revenue,CCHD,Southmead Hospital Purchasing,Nursing Homes,Four Seasons Health Care,1303.36, 02-Oct-2012
1393,Revenue,CCHD,Southmead Hospital Purchasing,Nursing Homes,Four Seasons Health Care,1303.36, 30-Oct-2012
1394,Revenue,CCHD,Frenchay Hospital Purchasing,Nursing Homes,Four Seasons Health Care,1294.16, 02-Oct-2012
1395,Revenue,CCHD,Frenchay Hospital Purchasing,Nursing Homes,Four Seasons Health Care,1294.16, 30-Oct-2012
1396,Revenue,CCHD,Frenchay Hospital Purchasing,Nursing Homes,Four Seasons Health Care,1363.2, 02-Oct-2012
1397,Revenue,CCHD,Frenchay Hospital Purchasing,Nursing Homes,Four Seasons Health Care,1606.63, 02-Oct-2012
1398,Revenue,CCHD,Frenchay Hospital Purchasing,Nursing Homes,Four Seasons Health Care,1363.2, 02-Oct-2012
1399,Revenue,CCHD,Frenchay Hospital Purchasing,Nursing Homes,Four Seasons Health Care,1363.2, 30-Oct-2012
1400,Revenue,CCHD,Frenchay Hospital Purchasing,Nursing Homes,Four Seasons Health Care,920, 30-Oct-2012
1401,Revenue,CCHD,Southmead Hospital Purchasing,Nursing Homes,Four Seasons Health Care,696.96, 02-Oct-2012
1402,Revenue,CCHD,Southmead Hospital Purchasing,Nursing Homes,Four Seasons Health Care,605.72, 30-Oct-2012
1403,Revenue,CCHD,Bed Purchasing - Elderly - North,Nursing Homes,Four Seasons Health Care,1070.48, 02-Oct-2012
1404,Revenue,CCHD,Bed Purchasing - Elderly - North,Nursing Homes,Four Seasons Health Care,1070.48, 30-Oct-2012
1405,Revenue,CCHD,Frenchay Hospital Purchasing,Nursing Homes,Four Seasons Health Care,1363.2, 02-Oct-2012
1406,Revenue,CCHD,Frenchay Hospital Purchasing,Nursing Homes,Four Seasons Health Care,1363.2, 30-Oct-2012
1407,Revenue,CCHD,Southmead Hospital Purchasing,Nursing Homes,Four Seasons Health Care,758.2, 02-Oct-2012
1408,Revenue,CCHD,Southmead Hospital Purchasing,Nursing Homes,Four Seasons Health Care,758.2, 30-Oct-2012
1409,Revenue,CCHD,Frenchay Hospital Purchasing,Nursing Homes,Four Seasons Health Care,1363.2, 02-Oct-2012
1410,Revenue,CCHD,Frenchay Hospital Purchasing,Nursing Homes,Four Seasons Health Care,1363.2, 30-Oct-2012
1411,Revenue,CCHD,Frenchay Hospital Purchasing,Nursing Homes,Four Seasons Health Care,1379.2, 02-Oct-2012
1412,Revenue,CCHD,Frenchay Hospital Purchasing,Nursing Homes,Four Seasons Health Care,1379.2, 30-Oct-2012
1413,Revenue,CCHD,Bed Purchasing - Elderly - South,Nursing Homes,Four Seasons Health Care,1060.72, 02-Oct-2012
1414,Revenue,CCHD,Bed Purchasing - Elderly - South,Nursing Homes,Four Seasons Health Care,1060.72, 30-Oct-2012
1415,Revenue,CCHD,Southmead Hospital Purchasing,Nursing Homes,Four Seasons Health Care,1286.4, 02-Oct-2012
1416,Revenue,CCHD,Southmead Hospital Purchasing,Nursing Homes,Four Seasons Health Care,1286.4, 30-Oct-2012
1417,Revenue,CCHD,Southmead Hospital Purchasing,Residential Homes,Four Seasons Health Care,1118.04, 02-Oct-2012
1418,Revenue,CCHD,Southmead Hospital Purchasing,Residential Homes,Four Seasons Health Care,1118.04, 30-Oct-2012
1419,Revenue,CCHD,Southmead Hospital Purchasing,Nursing Homes,Four Seasons Health Care,1363.2, 02-Oct-2012
1420,Revenue,CCHD,Southmead Hospital Purchasing,Nursing Homes,Four Seasons Health Care,1363.2, 30-Oct-2012
1421,Revenue,CCHD,Frenchay Hospital Purchasing,Nursing Homes,Four Seasons Health Care,1329.52, 02-Oct-2012
1422,Revenue,CCHD,Frenchay Hospital Purchasing,Nursing Homes,Four Seasons Health Care,1329.52, 30-Oct-2012
1423,Revenue,CCHD,Southmead Hospital Purchasing,Nursing Homes,Four Seasons Health Care,1336.84, 02-Oct-2012
1424,Revenue,CCHD,Southmead Hospital Purchasing,Nursing Homes,Four Seasons Health Care,1336.84, 30-Oct-2012
1425,Revenue,CCHD,Bed purchasing - Phys Dis - North,Nursing Homes,Four Seasons Health Care,1367.76, 02-Oct-2012
1426,Revenue,CCHD,Bed purchasing - Phys Dis - North,Nursing Homes,Four Seasons Health Care,1367.76, 30-Oct-2012
1427,Revenue,CCHD,South Glos Users in South Glos Homes,Nursing Homes,Four Seasons Health Care,621.14, 02-Oct-2012
1428,Revenue,CCHD,Southmead Hospital Purchasing,Nursing Homes,Four Seasons Health Care,1292.36, 02-Oct-2012
1429,Revenue,CCHD,Southmead Hospital Purchasing,Nursing Homes,Four Seasons Health Care,1292.36, 30-Oct-2012
1430,Revenue,CCHD,Bed Purchasing - Elderly - North,Residential Homes,Four Seasons Health Care,952, 02-Oct-2012
1431,Revenue,CCHD,Bed Purchasing - Elderly - North,Residential Homes,Four Seasons Health Care,748, 02-Oct-2012
1432,Revenue,CCHD,Bed Purchasing - Elderly - North,Residential Homes,Four Seasons Health Care,748, 30-Oct-2012
1433,Revenue,CCHD,South Glos Users in South Glos Homes,Nursing Homes,Four Seasons Health Care,2624.33, 02-Oct-2012
1434,Revenue,CCHD,Bed purchasing - Elderly MH - North,Residential Homes,Four Seasons Health Care,1396.2, 02-Oct-2012
1435,Revenue,CCHD,Bed purchasing - Elderly MH - North,Residential Homes,Four Seasons Health Care,1396.2, 30-Oct-2012
1436,Revenue,CCHD,Southmead Hospital Purchasing,Residential Homes,Four Seasons Health Care,1163.68, 02-Oct-2012
1437,Revenue,CCHD,Southmead Hospital Purchasing,Residential Homes,Four Seasons Health Care,1163.68, 30-Oct-2012
1438,Revenue,CCHD,Frenchay Hospital Purchasing,Nursing Homes,Four Seasons Health Care,1225.56, 02-Oct-2012
1439,Revenue,CCHD,Frenchay Hospital Purchasing,Nursing Homes,Four Seasons Health Care,1225.56, 30-Oct-2012
1440,Revenue,CCHD,Southmead Hospital Purchasing,Residential Homes,Four Seasons Health Care,645.44, 02-Oct-2012
1441,Revenue,CCHD,South Glos Users in South Glos Homes,Nursing Homes,Four Seasons Health Care,916.19, 02-Oct-2012
1442,Revenue,CCHD,Bed purchasing - Elderly PWLD - South,Residential Homes,Four Seasons Health Care,1239.2, 02-Oct-2012
1443,Revenue,CCHD,Bed Purchasing - Elderly - South,Residential Homes,Four Seasons Health Care,1239.2, 30-Oct-2012
1444,Revenue,CCHD,Bed Purchasing - Elderly - South,Residential Homes,Four Seasons Health Care,11583, 30-Oct-2012
1445,Revenue,CCHD,Frenchay Hospital Purchasing,Nursing Homes,Four Seasons Health Care,1363.2, 02-Oct-2012
1446,Revenue,CCHD,Frenchay Hospital Purchasing,Nursing Homes,Four Seasons Health Care,1363.2, 30-Oct-2012
1447,Revenue,CCHD,Southmead Hospital Purchasing,Nursing Homes,Four Seasons Health Care,1103.76, 02-Oct-2012
1448,Revenue,CCHD,Southmead Hospital Purchasing,Nursing Homes,Four Seasons Health Care,1103.76, 30-Oct-2012
1449,Revenue,CCHD,Frenchay Hospital Purchasing,Nursing Homes,Four Seasons Health Care,1168.45, 30-Oct-2012
1450,Revenue,CCHD,Bed Purchasing - Elderly - South,Nursing Homes,Four Seasons Health Care,1286.52, 02-Oct-2012
1451,Revenue,CCHD,Bed Purchasing - Elderly - South,Nursing Homes,Four Seasons Health Care,1286.52, 30-Oct-2012
1452,Revenue,CCHD,Bed Purchasing - Elderly - South,Nursing Homes,Four Seasons Health Care,1352.48, 02-Oct-2012
1453,Revenue,CCHD,Bed Purchasing - Elderly - South,Nursing Homes,Four Seasons Health Care,1352.48, 30-Oct-2012
1454,Revenue,CCHD,Southmead Hospital Purchasing,Nursing Homes,Four Seasons Health Care,1363.2, 02-Oct-2012
1455,Revenue,CCHD,South Glos Users in South Glos Homes,Nursing Homes,Four Seasons Health Care,854.07, 02-Oct-2012
1456,Revenue,CCHD,Southmead Hospital Purchasing,Nursing Homes,Four Seasons Health Care,1363.2, 30-Oct-2012
1457,Revenue,CCHD,Southmead Hospital Purchasing,Nursing Homes,Four Seasons Health Care,1138.92, 02-Oct-2012
1458,Revenue,CCHD,Southmead Hospital Purchasing,Nursing Homes,Four Seasons Health Care,1138.92, 30-Oct-2012
1459,Revenue,CCHD,Bed Purchasing - Elderly - South,Residential Homes,Four Seasons Health Care,865.28, 02-Oct-2012
1460,Revenue,CCHD,Bed Purchasing - Elderly - South,Residential Homes,Four Seasons Health Care,865.28, 30-Oct-2012
1461,Revenue,CCHD,Southmead Hospital Purchasing,Nursing Homes,Four Seasons Health Care,1304.96, 02-Oct-2012
1462,Revenue,CCHD,Southmead Hospital Purchasing,Nursing Homes,Four Seasons Health Care,1304.96, 30-Oct-2012
1463,Revenue,CCHD,Southmead Hospital Purchasing,Residential Homes,Four Seasons Health Care,1386, 02-Oct-2012
1464,Revenue,CCHD,Southmead Hospital Purchasing,Residential Homes,Four Seasons Health Care,1386, 30-Oct-2012
1465,Revenue,CCHD,Frenchay Hospital Purchasing,Nursing Homes,Four Seasons Health Care,769.44, 02-Oct-2012
1466,Revenue,CCHD,Frenchay Hospital Purchasing,Nursing Homes,Four Seasons Health Care,769.44, 30-Oct-2012
1467,Revenue,CCHD,Bed Purchasing - Elderly - North,Residential Homes,Four Seasons Health Care,985.28, 02-Oct-2012
1468,Revenue,CCHD,Bed Purchasing - Elderly - South,Nursing Homes,Four Seasons Health Care,947.2, 02-Oct-2012
1469,Revenue,CCHD,Bed Purchasing - Elderly - South,Nursing Homes,Four Seasons Health Care,947.2, 30-Oct-2012
1470,Revenue,CCHD,Bed Purchasing - Elderly - South,Residential Homes,Four Seasons Health Care,1239.2, 02-Oct-2012
1471,Revenue,CCHD,Bed Purchasing - Elderly - South,Residential Homes,Four Seasons Health Care,885.14, 02-Oct-2012
1472,Revenue,CCHD,Bed Purchasing - Elderly - South,Residential Homes,Four Seasons Health Care,1859.65, 30-Oct-2012
1473,Revenue,CCHD,Bed Purchasing - Elderly - South,Residential Homes,Four Seasons Health Care,1084.8, 30-Oct-2012
1474,Revenue,CCHD,Bed purchasing - Elderly S117 - South,Nursing Homes,Four Seasons Health Care,1840, 02-Oct-2012
1475,Revenue,CCHD,Bed purchasing - Elderly S117 - South,Nursing Homes,Four Seasons Health Care,1840, 30-Oct-2012
1476,Revenue,CCHD,Frenchay Hospital Purchasing,Residential Homes,Four Seasons Health Care,1102.84, 02-Oct-2012
1477,Revenue,CCHD,Frenchay Hospital Purchasing,Residential Homes,Four Seasons Health Care,1102.84, 30-Oct-2012
1478,Revenue,CCHD,Bed Purchasing - Elderly MH - South,Nursing Homes,Four Seasons Health Care,1174.8, 02-Oct-2012
1479,Revenue,CCHD,Bed Purchasing - Elderly MH - South,Nursing Homes,Four Seasons Health Care,1174.8, 30-Oct-2012
1480,Revenue,CCHD,Southmead Hospital Purchasing,Residential Homes,Four Seasons Health Care,1323.96, 02-Oct-2012
1481,Revenue,CCHD,Southmead Hospital Purchasing,Residential Homes,Four Seasons Health Care,1323.96, 30-Oct-2012
1482,Revenue,CCHD,Southmead Hospital Purchasing,Nursing Homes,Four Seasons Health Care,1363.2, 02-Oct-2012
1483,Revenue,CCHD,Southmead Hospital Purchasing,Nursing Homes,Four Seasons Health Care,1363.2, 30-Oct-2012
1484,Revenue,CCHD,Bed Purchasing - Elderly MH - South,Residential Homes,Four Seasons Health Care,936.64, 02-Oct-2012
1485,Revenue,CCHD,Bed Purchasing - Elderly MH - South,Residential Homes,Four Seasons Health Care,936.64, 30-Oct-2012
1486,Revenue,CCHD,Southmead Hospital Purchasing,Nursing Homes,Four Seasons Health Care,1363.2, 02-Oct-2012
1487,Revenue,CCHD,Southmead Hospital Purchasing,Nursing Homes,Four Seasons Health Care,1363.2, 30-Oct-2012
1488,Revenue,CCHD,Frenchay Hospital Purchasing,Nursing Homes,Four Seasons Health Care,1109.56, 02-Oct-2012
1489,Revenue,CCHD,Frenchay Hospital Purchasing,Nursing Homes,Four Seasons Health Care,1109.56, 30-Oct-2012
1490,Revenue,CCHD,Southmead Hospital Purchasing,Nursing Homes,Four Seasons Health Care,991.8, 02-Oct-2012
1491,Revenue,CCHD,Southmead Hospital Purchasing,Nursing Homes,Four Seasons Health Care,991.8, 30-Oct-2012
1492,Revenue,CCHD,Southmead Hospital Purchasing,Nursing Homes,Four Seasons Health Care,1637.2, 30-Oct-2012
1493,Revenue,CCHD,Southmead Hospital Purchasing,Nursing Homes,Four Seasons Health Care,1309.76, 30-Oct-2012
1494,Revenue,CCHD,Bed purchasing - Elderly MH - North,Residential Homes,Four Seasons Health Care,1057.17, 30-Oct-2012
1495,Revenue,CCHD,Bed Purchasing - Elderly - North,Residential Homes,Four Seasons Health Care,2042.86, 02-Oct-2012
1496,Revenue,CCHD,Bed Purchasing - Elderly - North,Residential Homes,Four Seasons Health Care,1363.6, 30-Oct-2012
1497,Revenue,CCHD,Bed Purchasing - Elderly - North,Residential Homes,Four Seasons Health Care,1217.5, 30-Oct-2012
1498,Revenue,CCHD,Frenchay Hospital Purchasing,Residential Homes,Four Seasons Health Care,1232.16, 02-Oct-2012
1499,Revenue,CCHD,Frenchay Hospital Purchasing,Residential Homes,Four Seasons Health Care,1232.16, 30-Oct-2012
1500,Revenue,CCHD,Bed Purchasing - Elderly - North,Nursing Homes,Four Seasons Health Care,1263.48, 02-Oct-2012
1501,Revenue,CCHD,Bed Purchasing - Elderly - North,Nursing Homes,Four Seasons Health Care,1263.48, 30-Oct-2012
1502,Revenue,CCHD,Bed Purchasing - Elderly - South,Residential Homes,Four Seasons Health Care,1206.36, 02-Oct-2012
1503,Revenue,CCHD,Bed Purchasing - Elderly - South,Residential Homes,Four Seasons Health Care,1206.36, 30-Oct-2012
1504,Revenue,CCHD,Bed Purchasing - Elderly - South,Nursing Homes,Four Seasons Health Care,1171.6, 02-Oct-2012
1505,Revenue,CCHD,Bed Purchasing - Elderly - South,Nursing Homes,Four Seasons Health Care,1171.6, 30-Oct-2012
1506,Revenue,CCHD,Bed Purchasing - Elderly S117- North,Residential Homes,Four Seasons Health Care,2011.04, 02-Oct-2012
1507,Revenue,CCHD,Bed Purchasing - Elderly S117- North,Residential Homes,Four Seasons Health Care,2011.04, 30-Oct-2012
1508,Revenue,CCHD,Frenchay Hospital Purchasing,Residential Homes,Four Seasons Health Care,1515.84, 02-Oct-2012
1509,Revenue,CCHD,Frenchay Hospital Purchasing,Residential Homes,Four Seasons Health Care,1515.84, 30-Oct-2012
1510,Revenue,CCHD,Bed purchasing - Phys Dis - North,Nursing Homes,Four Seasons Health Care,1691.52, 02-Oct-2012
1511,Revenue,CCHD,Bed purchasing - Phys Dis - North,Nursing Homes,Four Seasons Health Care,845.76, 30-Oct-2012
1512,Revenue,CCHD,Home Care - Elderly - South,Other Small Contracts,Freedom Social Care Recruitment,1242.44, 09-Oct-2012
1513,Revenue,CCHD,Home Care - Elderly - North,Other Small Contracts,Freedom Social Care Recruitment,3765.73, 09-Oct-2012
1514,Revenue,CCHD,Day Care - South,Private & Voluntary Day Care,Freedom Social Care Recruitment,171.76, 09-Oct-2012
1515,Revenue,CCHD,Day Care - North,Private & Voluntary Day Care,Freedom Social Care Recruitment,47.34, 09-Oct-2012
1516,Revenue,CCHD,Home care - Elderly MH - North,Other Small Contracts,Freedom Social Care Recruitment,149.91, 09-Oct-2012
1517,Revenue,CCHD,Elderly MH Day Care North,Private & Voluntary Day Care,Freedom Social Care Recruitment,173.58, 09-Oct-2012
1518,Revenue,CCHD,Home Care - Elderly - South,Other Small Contracts,Freedom Social Care Recruitment,1128.14, 09-Oct-2012
1519,Revenue,CCHD,Home Care - Elderly - North,Other Small Contracts,Freedom Social Care Recruitment,3757.98, 09-Oct-2012
1520,Revenue,CCHD,Day Care - South,Private & Voluntary Day Care,Freedom Social Care Recruitment,136.78, 09-Oct-2012
1521,Revenue,CCHD,Day Care - North,Private & Voluntary Day Care,Freedom Social Care Recruitment,47.34, 09-Oct-2012
1522,Revenue,CCHD,Home care - Elderly MH - North,Other Small Contracts,Freedom Social Care Recruitment,161.75, 09-Oct-2012
1523,Revenue,CCHD,Elderly MH Day Care North,Private & Voluntary Day Care,Freedom Social Care Recruitment,132.04, 09-Oct-2012
1524,Revenue,CCHD,Home Care - Elderly - South,Other Small Contracts,Freedom Social Care Recruitment,1290.18, 10-Oct-2012
1525,Revenue,CCHD,Home Care - Elderly - North,Other Small Contracts,Freedom Social Care Recruitment,2039.82, 10-Oct-2012
1526,Revenue,CCHD,Day Care - South,Private & Voluntary Day Care,Freedom Social Care Recruitment,63.12, 10-Oct-2012
1527,Revenue,CCHD,Day Care - North,Private & Voluntary Day Care,Freedom Social Care Recruitment,63.12, 10-Oct-2012
1528,Revenue,CCHD,Home care - Elderly MH - North,Other Small Contracts,Freedom Social Care Recruitment,145.97, 10-Oct-2012
1529,Revenue,CCHD,Elderly MH Day Care North,Private & Voluntary Day Care,Freedom Social Care Recruitment,173.58, 10-Oct-2012
1530,Revenue,CCHD,Home Care - Elderly - South,Other Small Contracts,Freedom Social Care Recruitment,1369.05, 10-Oct-2012
1531,Revenue,CCHD,Home Care - Elderly - North,Other Small Contracts,Freedom Social Care Recruitment,3241.11, 10-Oct-2012
1532,Revenue,CCHD,Day Care - South,Private & Voluntary Day Care,Freedom Social Care Recruitment,67.07, 10-Oct-2012
1533,Revenue,CCHD,Day Care - North,Private & Voluntary Day Care,Freedom Social Care Recruitment,47.34, 10-Oct-2012
1534,Revenue,CCHD,Home care - Elderly MH - North,Other Small Contracts,Freedom Social Care Recruitment,145.97, 10-Oct-2012
1535,Revenue,CCHD,Elderly MH Day Care North,Private & Voluntary Day Care,Freedom Social Care Recruitment,173.57, 10-Oct-2012
1536,Revenue,CCHD,Home Care - Elderly - South,Other Small Contracts,Freedom Social Care Recruitment,1483.46, 10-Oct-2012
1537,Revenue,CCHD,Home Care - Elderly - North,Other Small Contracts,Freedom Social Care Recruitment,3201.65, 10-Oct-2012
1538,Revenue,CCHD,Day Care - South,Private & Voluntary Day Care,Freedom Social Care Recruitment,63.12, 10-Oct-2012
1539,Revenue,CCHD,Day Care - North,Private & Voluntary Day Care,Freedom Social Care Recruitment,63.12, 10-Oct-2012
1540,Revenue,CCHD,Home care - Elderly MH - North,Other Small Contracts,Freedom Social Care Recruitment,153.86, 10-Oct-2012
1541,Revenue,CCHD,Elderly MH Day Care North,Private & Voluntary Day Care,Freedom Social Care Recruitment,177.52, 10-Oct-2012
1542,Revenue,CCHD,Home Care - Elderly - South,Other Small Contracts,Freedom Social Care Recruitment,1207.35, 10-Oct-2012
1543,Revenue,CCHD,Home Care - Elderly - North,Other Small Contracts,Freedom Social Care Recruitment,2842.72, 10-Oct-2012
1544,Revenue,CCHD,Day Care - South,Private & Voluntary Day Care,Freedom Social Care Recruitment,31.56, 10-Oct-2012
1545,Revenue,CCHD,Home care - Elderly MH - North,Other Small Contracts,Freedom Social Care Recruitment,15.78, 10-Oct-2012
1546,Revenue,CCHD,Home Care - Elderly - South,Other Small Contracts,Freedom Social Care Recruitment,1104.75, 25-Oct-2012
1547,Revenue,CCHD,Home Care - Elderly - North,Other Small Contracts,Freedom Social Care Recruitment,2826.97, 25-Oct-2012
1548,Revenue,CCHD,Day Care - South,Private & Voluntary Day Care,Freedom Social Care Recruitment,63.12, 25-Oct-2012
1549,Revenue,CCHD,Home care - Elderly MH - North,Other Small Contracts,Freedom Social Care Recruitment,15.77, 25-Oct-2012
1550,Revenue,CCHD,Home Care - Elderly - South,Other Small Contracts,Freedom Social Care Recruitment,1179.7, 26-Oct-2012
1551,Revenue,CCHD,Home Care - Elderly - North,Other Small Contracts,Freedom Social Care Recruitment,2783.59, 26-Oct-2012
1552,Revenue,CCHD,Day Care - South,Private & Voluntary Day Care,Freedom Social Care Recruitment,63.12, 26-Oct-2012
1553,Revenue,CCHD,Home care - Elderly MH - North,Other Small Contracts,Freedom Social Care Recruitment,15.76, 26-Oct-2012
1554,Revenue,CCHD,Home Care - Elderly - South,Other Small Contracts,Freedom Social Care Recruitment,1148.15, 26-Oct-2012
1555,Revenue,CCHD,Home Care - Elderly - North,Other Small Contracts,Freedom Social Care Recruitment,2763.89, 26-Oct-2012
1556,Revenue,CCHD,Day Care - South,Private & Voluntary Day Care,Freedom Social Care Recruitment,63.1, 26-Oct-2012
1557,Revenue,CCHD,Home Care - Elderly - South,Other Small Contracts,Freedom Social Care Recruitment,946.9, 15-Oct-2012
1558,Revenue,CCHD,Home Care - Elderly - North,Other Small Contracts,Freedom Social Care Recruitment,2331.9, 15-Oct-2012
1559,Revenue,CCHD,Day Care - South,Private & Voluntary Day Care,Freedom Social Care Recruitment,31.56, 15-Oct-2012
1560,Revenue,CCHD,Home care - Elderly MH - North,Other Small Contracts,Freedom Social Care Recruitment,15.78, 15-Oct-2012
1561,Revenue,CCHD,Home Care - Elderly - South,Other Small Contracts,Freedom Social Care Recruitment,954.81, 24-Oct-2012
1562,Revenue,CCHD,Home Care - Elderly - North,Other Small Contracts,Freedom Social Care Recruitment,2579.53, 24-Oct-2012
1563,Revenue,CCHD,Day Care - South,Private & Voluntary Day Care,Freedom Social Care Recruitment,63.12, 24-Oct-2012
1564,Revenue,CCHD,Home care - Elderly MH - North,Other Small Contracts,Freedom Social Care Recruitment,15.78, 24-Oct-2012
1565,Revenue,CCHD,Home Care - Elderly - South,Other Small Contracts,Freedom Social Care Recruitment,963.8, 16-Oct-2012
1566,Revenue,CCHD,Home Care - Elderly - North,Other Small Contracts,Freedom Social Care Recruitment,2514.02, 16-Oct-2012
1567,Revenue,CCHD,Day Care - South,Private & Voluntary Day Care,Freedom Social Care Recruitment,23.7, 16-Oct-2012
1568,Revenue,CCHD,Home care - Elderly MH - North,Other Small Contracts,Freedom Social Care Recruitment,15.8, 16-Oct-2012
1569,Revenue,CCHD,Home Care - Elderly - South,Other Small Contracts,Freedom Social Care Recruitment,876.9, 12-Oct-2012
1570,Revenue,CCHD,Home Care - Elderly - North,Other Small Contracts,Freedom Social Care Recruitment,2536.61, 12-Oct-2012
1571,Revenue,CCHD,Day Care - South,Private & Voluntary Day Care,Freedom Social Care Recruitment,59.25, 12-Oct-2012
1572,Revenue,CCHD,Home care - Elderly MH - North,Other Small Contracts,Freedom Social Care Recruitment,15.8, 12-Oct-2012
1573,Revenue,CCHD,Home Care - Elderly - South,Other Small Contracts,Freedom Social Care Recruitment,861.1, 10-Oct-2012
1574,Revenue,CCHD,Home Care - Elderly - North,Other Small Contracts,Freedom Social Care Recruitment,2449.71, 10-Oct-2012
1575,Revenue,CCHD,Day Care - South,Private & Voluntary Day Care,Freedom Social Care Recruitment,43.45, 10-Oct-2012
1576,Revenue,CCHD,Home Care - Elderly - South,Other Small Contracts,Freedom Social Care Recruitment,1435.89, 10-Oct-2012
1577,Revenue,CCHD,Home Care - Elderly - North,Other Small Contracts,Freedom Social Care Recruitment,3270.87, 10-Oct-2012
1578,Revenue,CCHD,Day Care - South,Private & Voluntary Day Care,Freedom Social Care Recruitment,31.56, 10-Oct-2012
1579,Revenue,CCHD,Day Care - North,Private & Voluntary Day Care,Freedom Social Care Recruitment,47.34, 10-Oct-2012
1580,Revenue,CCHD,Home care - Elderly MH - North,Other Small Contracts,Freedom Social Care Recruitment,161.75, 10-Oct-2012
1581,Revenue,CCHD,Elderly MH Day Care North,Private & Voluntary Day Care,Freedom Social Care Recruitment,173.57, 10-Oct-2012
1582,Revenue,CCHD,Freeways,Residential Homes,Freeways Trust Limited,44356.49, 02-Oct-2012
1583,Revenue,CCHD,Freeways,Residential Homes,Freeways Trust Limited,44356.49, 17-Oct-2012
1584,Revenue,CCHD,Purchase of Non-Res Care - PS,Private & Voluntary Day Care,Freeways Trust Limited,950.64, 08-Oct-2012
1585,Revenue,CCHD,Supported Living - PS,Private & Voluntary Home Care,Freeways Trust Limited,1208.16, 24-Oct-2012
1586,Revenue,CCHD,Bed purchasing - Under 65s PWLD - North,Residential Homes,Freeways Trust Ltd,2791.88, 02-Oct-2012
1587,Revenue,CCHD,Bed purchasing - Under 65s PWLD - North,Residential Homes,Freeways Trust Ltd,2791.88, 30-Oct-2012
1588,Revenue,CCHD,Bed purchasing - S28A Under 65 - South,Residential Homes,Freeways Trust Ltd,2876.4, 02-Oct-2012
1589,Revenue,CCHD,Bed purchasing - S28A Under 65 - South,Residential Homes,Freeways Trust Ltd,2876.4, 30-Oct-2012
1590,Revenue,CCHD,Bed purchasing - Under 65s PWLD - North,Residential Homes,Freeways Trust Ltd,2232.52, 02-Oct-2012
1591,Revenue,CCHD,Bed purchasing - Under 65s PWLD - North,Residential Homes,Freeways Trust Ltd,2232.52, 30-Oct-2012
1592,Revenue,CCHD,Bed purchasing - Under 65s PWLD - North,Residential Homes,Freeways Trust Ltd,2657.64, 02-Oct-2012
1593,Revenue,CCHD,Bed purchasing - Under 65s PWLD - North,Residential Homes,Freeways Trust Ltd,2657.64, 30-Oct-2012
1594,Revenue,CCHD,Bed purchasing - Under 65s PWLD - North,Residential Homes,Freeways Trust Ltd,2232.52, 02-Oct-2012
1595,Revenue,CCHD,Bed purchasing - Under 65s PWLD - North,Residential Homes,Freeways Trust Ltd,2232.52, 30-Oct-2012
1596,Revenue,CCHD,Bed purchasing - Under 65s PWLD - North,Residential Homes,Freeways Trust Ltd,2666.28, 02-Oct-2012
1597,Revenue,CCHD,Bed purchasing - Under 65s PWLD - North,Residential Homes,Freeways Trust Ltd,2666.28, 30-Oct-2012
1598,Revenue,CCHD,Bed Purchasing - Under 65s PWLD - South,Residential Homes,Freeways Trust Ltd,3259.12, 02-Oct-2012
1599,Revenue,CCHD,Bed Purchasing - Under 65s PWLD - South,Residential Homes,Freeways Trust Ltd,3259.12, 30-Oct-2012
1600,Revenue,CCHD,Bed purchasing - Elderly PWLD - North,Residential Homes,Freeways Trust Ltd,2219.24, 02-Oct-2012
1601,Revenue,CCHD,Bed purchasing - Elderly PWLD - North,Residential Homes,Freeways Trust Ltd,2219.24, 30-Oct-2012
1602,Revenue,CCHD,Bed Purchasing - Under 65s PWLD - South,Residential Homes,Freeways Trust Ltd,2364.28, 02-Oct-2012
1603,Revenue,CCHD,Bed Purchasing - Under 65s PWLD - South,Residential Homes,Freeways Trust Ltd,2364.28, 30-Oct-2012
1604,Revenue,CCHD,Bed purchasing - Under 65s PWLD - North,Residential Homes,Freeways Trust Ltd,2666.28, 02-Oct-2012
1605,Revenue,CCHD,Bed purchasing - Under 65s PWLD - North,Residential Homes,Freeways Trust Ltd,2666.28, 30-Oct-2012
1606,Revenue,CCHD,Bed purchasing - Elderly PWLD - North,Residential Homes,Freeways Trust Ltd,2492.24, 02-Oct-2012
1607,Revenue,CCHD,Bed purchasing - Elderly PWLD - North,Residential Homes,Freeways Trust Ltd,2492.24, 30-Oct-2012
1608,Revenue,CCHD,Section 117 Placements MH Younger,Residential Homes,Freeways Trust Ltd,3292.4, 02-Oct-2012
1609,Revenue,CCHD,Section 117 Placements MH Younger,Residential Homes,Freeways Trust Ltd,3292.4, 30-Oct-2012
1610,Revenue,CCHD,Bed Purchasing - Under 65s PWLD - South,Residential Homes,Freeways Trust Ltd,3349.08, 02-Oct-2012
1611,Revenue,CCHD,Bed Purchasing - Under 65s PWLD - South,Residential Homes,Freeways Trust Ltd,3349.08, 30-Oct-2012
1612,Revenue,CCHD,Bed Purchasing - Elderly - South,Nursing Homes,Frenchay Park Nursing Home,604.6, 02-Oct-2012
1613,Revenue,CCHD,Bed Purchasing - Elderly - South,Nursing Homes,Frenchay Park Nursing Home,604.6, 30-Oct-2012
1614,Revenue,CCHD,Woodleaze,Maintenance by Contractor,Geoff Lewis Flooring Limited,1104.68, 08-Oct-2012
1615,Revenue,CCHD,Training - Adult Services,Training Expenses,Gizware Systems Limited,500, 17-Oct-2012
1616,Revenue,CCHD,Bed Purchasing - Under 65s PWLD - South,Residential Homes,Glasallt Fawr,4505.4, 02-Oct-2012
1617,Revenue,CCHD,Bed Purchasing - Under 65s PWLD - South,Residential Homes,Glasallt Fawr,4505.4, 30-Oct-2012
1618,Revenue,CCHD,Bed Purchasing - Elderly - North,Nursing Homes,Glebe House Nursing Home,1381.88, 02-Oct-2012
1619,Revenue,CCHD,Bed Purchasing - Elderly - North,Nursing Homes,Glebe House Nursing Home,1381.88, 30-Oct-2012
1620,Revenue,CCHD,Bed purchasing - Elderly MH - North,Residential Homes,Glebe House Nursing Home,782.8, 02-Oct-2012
1621,Revenue,CCHD,Bed purchasing - Elderly MH - North,Residential Homes,Glebe House Nursing Home,782.8, 30-Oct-2012
1622,Revenue,CCHD,Bed Purchasing - Elderly - South,Residential Homes,Glebe House Nursing Home,1963.52, 02-Oct-2012
1623,Revenue,CCHD,Bed Purchasing - Elderly - South,Residential Homes,Glebe House Nursing Home,1963.52, 30-Oct-2012
1624,Revenue,CCHD,Southmead Hospital Purchasing,Nursing Homes,Glebe House Nursing Home,1295.2, 02-Oct-2012
1625,Revenue,CCHD,Southmead Hospital Purchasing,Nursing Homes,Glebe House Nursing Home,1295.2, 30-Oct-2012
1626,Revenue,CCHD,Bed Purchasing - Elderly - North,Residential Homes,Glebe House Nursing Home,2529.76, 02-Oct-2012
1627,Revenue,CCHD,Bed Purchasing - Elderly - North,Residential Homes,Glebe House Nursing Home,2529.76, 30-Oct-2012
1628,Revenue,CCHD,South Glos Users in South Glos Homes,Nursing Homes,Glebe House Nursing Home,3059.13, 30-Oct-2012
1629,Revenue,CCHD,Bed purchasing - Phys Dis - South,Nursing Homes,Glenside Centre For Brain Injury,7072.36, 02-Oct-2012
1630,Revenue,CCHD,Bed purchasing - Phys Dis - South,Nursing Homes,Glenside Centre For Brain Injury,7072.36, 30-Oct-2012
1631,Revenue,CCHD,Bed Purchasing - Under 65s PWLD - South,Residential Homes,Gordena Care Home,2063.36, 02-Oct-2012
1632,Revenue,CCHD,Bed Purchasing - Under 65s PWLD - South,Residential Homes,Gordena Care Home,2063.36, 30-Oct-2012
1633,Revenue,CCHD,Bed purchasing - Elderly PWLD - South,Residential Homes,Gordena Care Home,4691.96, 02-Oct-2012
1634,Revenue,CCHD,Bed purchasing - Elderly PWLD - South,Residential Homes,Gordena Care Home,4691.96, 30-Oct-2012
1635,Revenue,CCHD,Bed purchasing - Elderly PWLD - South,Residential Homes,Gordena Care Home,2904.2, 02-Oct-2012
1636,Revenue,CCHD,Bed purchasing - Elderly PWLD - South,Residential Homes,Gordena Care Home,2904.2, 30-Oct-2012
1637,Revenue,CCHD,Bed Purchasing - Under 65s PWLD - South,Residential Homes,Gordena Care Home,1894.04, 02-Oct-2012
1638,Revenue,CCHD,Bed Purchasing - Under 65s PWLD - South,Residential Homes,Gordena Care Home,1894.04, 30-Oct-2012
1639,Revenue,CCHD,Bed Purchasing - Under 65s PWLD - South,Residential Homes,Gordena Care Limited,4119.84, 02-Oct-2012
1640,Revenue,CCHD,Bed Purchasing - Under 65s PWLD - South,Residential Homes,Gordena Care Limited,4119.84, 30-Oct-2012
1641,Revenue,CCHD,Bed purchasing - S28A Under 65 - South,Residential Homes,Gordena Care Limited,4018.24, 02-Oct-2012
1642,Revenue,CCHD,Bed purchasing - S28A Under 65 - South,Residential Homes,Gordena Care Limited,4018.24, 30-Oct-2012
1643,Revenue,CCHD,Bed purchasing - Under 65s PWLD - North,Residential Homes,Gordena Care Limited,3762.44, 02-Oct-2012
1644,Revenue,CCHD,Bed purchasing - Under 65s PWLD - North,Residential Homes,Gordena Care Limited,3762.44, 30-Oct-2012
1645,Revenue,CCHD,Home Care - Elderly - South,Other Small Contracts,Greenbanks Homecare (Western) Limited,2676.33, 24-Oct-2012
1646,Revenue,CCHD,Home Care - Elderly - North,Other Small Contracts,Greenbanks Homecare (Western) Limited,220.08, 24-Oct-2012
1647,Revenue,CCHD,Day Care - South,Private & Voluntary Day Care,Greenbanks Homecare (Western) Limited,168.99, 24-Oct-2012
1648,Revenue,CCHD,Day Care - North,Private & Voluntary Day Care,Greenbanks Homecare (Western) Limited,62.88, 24-Oct-2012
1649,Revenue,CCHD,Carer`s Grant - South,Carers Breaks & Services,Greenbanks Homecare (Western) Limited,113.97, 24-Oct-2012
1650,Revenue,CCHD,Home care - Elderly MH - North,Other Small Contracts,Greenbanks Homecare (Western) Limited,459.81, 24-Oct-2012
1651,Revenue,CCHD,Elderly MH Day Care North,Private & Voluntary Day Care,Greenbanks Homecare (Western) Limited,15.72, 24-Oct-2012
1652,Revenue,CCHD,Home Care - Elderly - South,Other Small Contracts,Greenbanks Homecare (Western) Limited,2648.82, 24-Oct-2012
1653,Revenue,CCHD,Home Care - Elderly - North,Other Small Contracts,Greenbanks Homecare (Western) Limited,184.71, 24-Oct-2012
1654,Revenue,CCHD,Day Care - South,Private & Voluntary Day Care,Greenbanks Homecare (Western) Limited,168.99, 24-Oct-2012
1655,Revenue,CCHD,Day Care - North,Private & Voluntary Day Care,Greenbanks Homecare (Western) Limited,55.02, 24-Oct-2012
1656,Revenue,CCHD,Carer`s Grant - South,Carers Breaks & Services,Greenbanks Homecare (Western) Limited,110.04, 24-Oct-2012
1657,Revenue,CCHD,Home care - Elderly MH - North,Other Small Contracts,Greenbanks Homecare (Western) Limited,436.23, 24-Oct-2012
1658,Revenue,CCHD,Home Care - Elderly - South,Other Small Contracts,Greenbanks Homecare (Western) Limited,2358, 24-Oct-2012
1659,Revenue,CCHD,Home Care - Elderly - North,Other Small Contracts,Greenbanks Homecare (Western) Limited,212.22, 24-Oct-2012
1660,Revenue,CCHD,Day Care - South,Private & Voluntary Day Care,Greenbanks Homecare (Western) Limited,172.92, 24-Oct-2012
1661,Revenue,CCHD,Day Care - North,Private & Voluntary Day Care,Greenbanks Homecare (Western) Limited,51.09, 24-Oct-2012
1662,Revenue,CCHD,Carer`s Grant - South,Carers Breaks & Services,Greenbanks Homecare (Western) Limited,110.04, 24-Oct-2012
1663,Revenue,CCHD,Home care - Elderly MH - North,Other Small Contracts,Greenbanks Homecare (Western) Limited,420.51, 24-Oct-2012
1664,Revenue,CCHD,Home Care - Elderly - South,Other Small Contracts,Greenbanks Homecare (Western) Limited,2695.98, 24-Oct-2012
1665,Revenue,CCHD,Home Care - Elderly - North,Other Small Contracts,Greenbanks Homecare (Western) Limited,188.64, 24-Oct-2012
1666,Revenue,CCHD,Day Care - South,Private & Voluntary Day Care,Greenbanks Homecare (Western) Limited,172.92, 24-Oct-2012
1667,Revenue,CCHD,Day Care - North,Private & Voluntary Day Care,Greenbanks Homecare (Western) Limited,55.02, 24-Oct-2012
1668,Revenue,CCHD,Carer`s Grant - South,Carers Breaks & Services,Greenbanks Homecare (Western) Limited,113.97, 24-Oct-2012
1669,Revenue,CCHD,Home care - Elderly MH - North,Other Small Contracts,Greenbanks Homecare (Western) Limited,357.63, 24-Oct-2012
1670,Revenue,CCHD,Elderly MH Day Care North,Private & Voluntary Day Care,Greenbanks Homecare (Western) Limited,15.72, 24-Oct-2012
1671,Revenue,CCHD,Home Care - Elderly - South,Other Small Contracts,Greenbanks Homecare (Western) Limited,2346.21, 24-Oct-2012
1672,Revenue,CCHD,Home Care - Elderly - North,Other Small Contracts,Greenbanks Homecare (Western) Limited,208.29, 24-Oct-2012
1673,Revenue,CCHD,Day Care - South,Private & Voluntary Day Care,Greenbanks Homecare (Western) Limited,161.13, 24-Oct-2012
1674,Revenue,CCHD,Day Care - North,Private & Voluntary Day Care,Greenbanks Homecare (Western) Limited,55.02, 24-Oct-2012
1675,Revenue,CCHD,Carer`s Grant - South,Carers Breaks & Services,Greenbanks Homecare (Western) Limited,110.04, 24-Oct-2012
1676,Revenue,CCHD,Home care - Elderly MH - North,Other Small Contracts,Greenbanks Homecare (Western) Limited,448.02, 24-Oct-2012
1677,Revenue,CCHD,Elderly MH Day Care North,Private & Voluntary Day Care,Greenbanks Homecare (Western) Limited,15.72, 24-Oct-2012
1678,Revenue,CCHD,Home Care - Elderly - South,Other Small Contracts,Greenbanks Homecare (Western) Limited,2208.66, 25-Oct-2012
1679,Revenue,CCHD,Home Care - Elderly - North,Other Small Contracts,Greenbanks Homecare (Western) Limited,224.01, 25-Oct-2012
1680,Revenue,CCHD,Day Care - South,Private & Voluntary Day Care,Greenbanks Homecare (Western) Limited,168.99, 25-Oct-2012
1681,Revenue,CCHD,Day Care - North,Private & Voluntary Day Care,Greenbanks Homecare (Western) Limited,47.16, 25-Oct-2012
1682,Revenue,CCHD,Carer`s Grant - South,Carers Breaks & Services,Greenbanks Homecare (Western) Limited,110.04, 25-Oct-2012
1683,Revenue,CCHD,Home care - Elderly MH - North,Other Small Contracts,Greenbanks Homecare (Western) Limited,349.77, 25-Oct-2012
1684,Revenue,CCHD,Elderly MH Day Care North,Private & Voluntary Day Care,Greenbanks Homecare (Western) Limited,19.65, 25-Oct-2012
1685,Revenue,CCHD,Home Care - Elderly - South,Other Small Contracts,Greenbanks Homecare (Western) Limited,2220.45, 25-Oct-2012
1686,Revenue,CCHD,Home Care - Elderly - North,Other Small Contracts,Greenbanks Homecare (Western) Limited,224.01, 25-Oct-2012
1687,Revenue,CCHD,Day Care - South,Private & Voluntary Day Care,Greenbanks Homecare (Western) Limited,172.92, 25-Oct-2012
1688,Revenue,CCHD,Day Care - North,Private & Voluntary Day Care,Greenbanks Homecare (Western) Limited,62.88, 25-Oct-2012
1689,Revenue,CCHD,Carer`s Grant - South,Carers Breaks & Services,Greenbanks Homecare (Western) Limited,110.04, 25-Oct-2012
1690,Revenue,CCHD,Home care - Elderly MH - North,Other Small Contracts,Greenbanks Homecare (Western) Limited,349.77, 25-Oct-2012
1691,Revenue,CCHD,Elderly MH Day Care North,Private & Voluntary Day Care,Greenbanks Homecare (Western) Limited,15.72, 25-Oct-2012
1692,Revenue,CCHD,Home Care - Elderly - South,Other Small Contracts,Greenbanks Homecare (Western) Limited,2244.03, 25-Oct-2012
1693,Revenue,CCHD,Home Care - Elderly - North,Other Small Contracts,Greenbanks Homecare (Western) Limited,204.36, 25-Oct-2012
1694,Revenue,CCHD,Day Care - South,Private & Voluntary Day Care,Greenbanks Homecare (Western) Limited,180.9, 25-Oct-2012
1695,Revenue,CCHD,Day Care - North,Private & Voluntary Day Care,Greenbanks Homecare (Western) Limited,62.88, 25-Oct-2012
1696,Revenue,CCHD,Carer`s Grant - South,Carers Breaks & Services,Greenbanks Homecare (Western) Limited,113.97, 25-Oct-2012
1697,Revenue,CCHD,Home care - Elderly MH - North,Other Small Contracts,Greenbanks Homecare (Western) Limited,400.86, 25-Oct-2012
1698,Revenue,CCHD,Elderly MH Day Care North,Private & Voluntary Day Care,Greenbanks Homecare (Western) Limited,31.44, 25-Oct-2012
1699,Revenue,CCHD,Home Care - Elderly - South,Other Small Contracts,Greenbanks Homecare (Western) Limited,2165.43, 25-Oct-2012
1700,Revenue,CCHD,Home Care - Elderly - North,Other Small Contracts,Greenbanks Homecare (Western) Limited,192.57, 25-Oct-2012
1701,Revenue,CCHD,Day Care - South,Private & Voluntary Day Care,Greenbanks Homecare (Western) Limited,176.85, 25-Oct-2012
1702,Revenue,CCHD,Day Care - North,Private & Voluntary Day Care,Greenbanks Homecare (Western) Limited,62.88, 25-Oct-2012
1703,Revenue,CCHD,Carer`s Grant - South,Carers Breaks & Services,Greenbanks Homecare (Western) Limited,110.04, 25-Oct-2012
1704,Revenue,CCHD,Home care - Elderly MH - North,Other Small Contracts,Greenbanks Homecare (Western) Limited,282.96, 25-Oct-2012
1705,Revenue,CCHD,Elderly MH Day Care North,Private & Voluntary Day Care,Greenbanks Homecare (Western) Limited,19.65, 25-Oct-2012
1706,Revenue,CCHD,Home Care - Elderly - South,Other Small Contracts,Greenbanks Homecare (Western) Limited,2240.1, 25-Oct-2012
1707,Revenue,CCHD,Home Care - Elderly - North,Other Small Contracts,Greenbanks Homecare (Western) Limited,216.15, 25-Oct-2012
1708,Revenue,CCHD,Day Care - South,Private & Voluntary Day Care,Greenbanks Homecare (Western) Limited,168.99, 25-Oct-2012
1709,Revenue,CCHD,Day Care - North,Private & Voluntary Day Care,Greenbanks Homecare (Western) Limited,47.16, 25-Oct-2012
1710,Revenue,CCHD,Carer`s Grant - South,Carers Breaks & Services,Greenbanks Homecare (Western) Limited,110.04, 25-Oct-2012
1711,Revenue,CCHD,Home care - Elderly MH - North,Other Small Contracts,Greenbanks Homecare (Western) Limited,314.4, 25-Oct-2012
1712,Revenue,CCHD,Elderly MH Day Care North,Private & Voluntary Day Care,Greenbanks Homecare (Western) Limited,15.72, 25-Oct-2012
1713,Revenue,CCHD,Home Care - Elderly - South,Other Small Contracts,Greenbanks Homecare (Western) Limited,2181.15, 25-Oct-2012
1714,Revenue,CCHD,Home Care - Elderly - North,Other Small Contracts,Greenbanks Homecare (Western) Limited,216.15, 25-Oct-2012
1715,Revenue,CCHD,Day Care - South,Private & Voluntary Day Care,Greenbanks Homecare (Western) Limited,133.62, 25-Oct-2012
1716,Revenue,CCHD,Day Care - North,Private & Voluntary Day Care,Greenbanks Homecare (Western) Limited,51.09, 25-Oct-2012
1717,Revenue,CCHD,Carer`s Grant - South,Carers Breaks & Services,Greenbanks Homecare (Western) Limited,110.04, 25-Oct-2012
1718,Revenue,CCHD,Home care - Elderly MH - North,Other Small Contracts,Greenbanks Homecare (Western) Limited,412.65, 25-Oct-2012
1719,Revenue,CCHD,Elderly MH Day Care North,Private & Voluntary Day Care,Greenbanks Homecare (Western) Limited,11.79, 25-Oct-2012
1720,Revenue,CCHD,Home Care - Elderly - South,Other Small Contracts,Greenbanks Homecare (Western) Limited,2283.33, 25-Oct-2012
1721,Revenue,CCHD,Home Care - Elderly - North,Other Small Contracts,Greenbanks Homecare (Western) Limited,216.15, 25-Oct-2012
1722,Revenue,CCHD,Day Care - South,Private & Voluntary Day Care,Greenbanks Homecare (Western) Limited,172.92, 25-Oct-2012
1723,Revenue,CCHD,Carer`s Grant - South,Carers Breaks & Services,Greenbanks Homecare (Western) Limited,47.16, 25-Oct-2012
1724,Revenue,CCHD,Home care - Elderly MH - North,Other Small Contracts,Greenbanks Homecare (Western) Limited,255.45, 25-Oct-2012
1725,Revenue,CCHD,Elderly MH Day Care North,Private & Voluntary Day Care,Greenbanks Homecare (Western) Limited,23.58, 25-Oct-2012
1726,Revenue,CCHD,Home Care - Elderly - South,Other Small Contracts,Greenbanks Homecare (Western) Limited,2279.4, 25-Oct-2012
1727,Revenue,CCHD,Home Care - Elderly - North,Other Small Contracts,Greenbanks Homecare (Western) Limited,192.57, 25-Oct-2012
1728,Revenue,CCHD,Day Care - South,Private & Voluntary Day Care,Greenbanks Homecare (Western) Limited,125.76, 25-Oct-2012
1729,Revenue,CCHD,Carer`s Grant - South,Carers Breaks & Services,Greenbanks Homecare (Western) Limited,110.04, 25-Oct-2012
1730,Revenue,CCHD,Home care - Elderly MH - North,Other Small Contracts,Greenbanks Homecare (Western) Limited,404.79, 25-Oct-2012
1731,Revenue,CCHD,Elderly MH Day Care North,Private & Voluntary Day Care,Greenbanks Homecare (Western) Limited,23.58, 25-Oct-2012
1732,Revenue,CCHD,Bed Purchasing - Elderly - South,Residential Homes,Gwendoline House,1480.12, 02-Oct-2012
1733,Revenue,CCHD,Bed Purchasing - Elderly - South,Residential Homes,Gwendoline House,1480.12, 30-Oct-2012
1734,Revenue,CCHD,Bed Purchasing - Elderly - South,Residential Homes,Gwendoline House,1158.88, 02-Oct-2012
1735,Revenue,CCHD,Bed Purchasing - Elderly - South,Residential Homes,Gwendoline House,1158.88, 30-Oct-2012
1736,Revenue,CCHD,Bed Purchasing - Elderly MH - South,Residential Homes,Gwendoline House,1263.36, 02-Oct-2012
1737,Revenue,CCHD,Bed Purchasing - Elderly MH - South,Residential Homes,Gwendoline House,1263.36, 30-Oct-2012
1738,Revenue,CCHD,Southmead Hospital Purchasing,Residential Homes,Gwendoline House,1239.2, 02-Oct-2012
1739,Revenue,CCHD,Southmead Hospital Purchasing,Residential Homes,Gwendoline House,1239.2, 30-Oct-2012
1740,Revenue,CCHD,Bed Purchasing - Elderly - South,Residential Homes,Gwendoline House,1418.24, 02-Oct-2012
1741,Revenue,CCHD,Bed Purchasing - Elderly - South,Residential Homes,Gwendoline House,1418.24, 30-Oct-2012
1742,Revenue,CCHD,Bed Purchasing - Elderly - South,Residential Homes,Gwendoline House,1123.12, 02-Oct-2012
1743,Revenue,CCHD,Bed Purchasing - Elderly - South,Residential Homes,Gwendoline House,1123.12, 30-Oct-2012
1744,Revenue,CCHD,Bed Purchasing - Elderly - South,Residential Homes,Gwendoline House,1558.44, 02-Oct-2012
1745,Revenue,CCHD,Bed Purchasing - Elderly - South,Residential Homes,Gwendoline House,1558.44, 30-Oct-2012
1746,Revenue,CCHD,Home Care - Elderly - South,Private & Voluntary Home Care,Hanover Housing Association,1241.75, 30-Oct-2012
1747,Revenue,CCHD,Bed Purchasing - Elderly - South,Residential Homes,Harefield Hall,2391.34, 02-Oct-2012
1748,Revenue,CCHD,Bed Purchasing - Elderly - South,Residential Homes,Harefield Hall,1115.96, 30-Oct-2012
1749,Revenue,CCHD,Bed Purchasing - Elderly MH - South,Residential Homes,Harefield Hall,1091.48, 02-Oct-2012
1750,Revenue,CCHD,Bed Purchasing - Elderly MH - South,Residential Homes,Harefield Hall,1091.48, 30-Oct-2012
1751,Revenue,CCHD,Woodleaze,Equipment Maintenance,Harvey Servicing & Engineering Limited,427.5, 23-Oct-2012
1752,Revenue,CCHD,Charlton,Equipment Maintenance,Harvey Servicing & Engineering Limited,540, 22-Oct-2012
1753,Revenue,CCHD,Newton House,Equipment Maintenance,Harvey Servicing & Engineering Limited,500.5, 10-Oct-2012
1754,Revenue,CCHD,Southmead Hospital Purchasing,Nursing Homes,Haven Lodge,1371.08, 02-Oct-2012
1755,Revenue,CCHD,Southmead Hospital Purchasing,Nursing Homes,Haven Lodge,1371.08, 30-Oct-2012
1756,Revenue,CCHD,Southmead Hospital Purchasing,Nursing Homes,Hc-One Ltd,1602.76, 02-Oct-2012
1757,Revenue,CCHD,Southmead Hospital Purchasing,Nursing Homes,Hc-One Ltd,1602.76, 30-Oct-2012
1758,Revenue,CCHD,Bed purchasing - Elderly PWLD - South,Nursing Homes,Hc-One Ltd,3832.4, 02-Oct-2012
1759,Revenue,CCHD,Bed purchasing - Elderly MH - North,Nursing Homes,Hc-One Ltd,1467.2, 02-Oct-2012
1760,Revenue,CCHD,Bed purchasing - Elderly MH - North,Nursing Homes,Hc-One Ltd,1209.16, 02-Oct-2012
1761,Revenue,CCHD,Bed purchasing - Elderly MH - North,Nursing Homes,Hc-One Ltd,1467.2, 02-Oct-2012
1762,Revenue,CCHD,Bed purchasing - Elderly MH - North,Nursing Homes,Hc-One Ltd,1156.96, 02-Oct-2012
1763,Revenue,CCHD,Bed Purchasing - Elderly S117- North,Nursing Homes,Hc-One Ltd,1929.2, 02-Oct-2012
1764,Revenue,CCHD,Frenchay Hospital Purchasing,Residential Homes,Hc-One Ltd,1479.76, 02-Oct-2012
1765,Revenue,CCHD,Frenchay Hospital Purchasing,Nursing Homes,Hc-One Ltd,1175.76, 02-Oct-2012
1766,Revenue,CCHD,Day Care - North,Private & Voluntary Day Care,Headway Bristol,857.52, 26-Oct-2012
1767,Revenue,CCHD,Day Care - South,Private & Voluntary Day Care,Headway Bristol,1271.13, 29-Oct-2012
1768,Revenue,CCHD,Day Care - North,Private & Voluntary Day Care,Headway Bristol,714.6, 26-Oct-2012
1769,Revenue,CCHD,Day Care - South,Private & Voluntary Day Care,Headway Bristol,893.25, 29-Oct-2012
1770,Revenue,CCHD,Day Care - South,Private & Voluntary Day Care,Headway Bristol,678.87, 29-Oct-2012
1771,Revenue,CCHD,Day Care - South,Private & Voluntary Day Care,Headway Bristol,2371.81, 29-Oct-2012
1772,Revenue,CCHD,Day Care - North,Private & Voluntary Day Care,Headway Bristol,857.52, 26-Oct-2012
1773,Revenue,CCHD,Supported Living - PS,Private & Voluntary Home Care,HFT,3722.08, 02-Oct-2012
1774,Revenue,CCHD,Supported Living - PS,Private & Voluntary Home Care,HFT,3722.08, 03-Oct-2012
1775,Revenue,CCHD,Supported Living - PS,Private & Voluntary Home Care,HFT,3722.08, 31-Oct-2012
1776,Revenue,CCHD,Southmead Hospital Purchasing,Residential Homes,Highgate Studios,1167.44, 02-Oct-2012
1777,Revenue,CCHD,Southmead Hospital Purchasing,Residential Homes,Highgate Studios,1167.44, 30-Oct-2012
1778,Revenue,CCHD,Bed purchasing - Under 65s PWLD - North,Residential Homes,Holmleigh Care Homes Ltd,3962.92, 02-Oct-2012
1779,Revenue,CCHD,Bed purchasing - Under 65s PWLD - North,Residential Homes,Holmleigh Care Homes Ltd,3962.92, 30-Oct-2012
1780,Revenue,CCHD,Bed Purchasing - Under 65s PWLD - South,Residential Homes,Holmleigh Care Homes Ltd,4980.72, 02-Oct-2012
1781,Revenue,CCHD,Bed Purchasing - Under 65s PWLD - South,Residential Homes,Holmleigh Care Homes Ltd,4980.72, 30-Oct-2012
1782,Revenue,CCHD,South Glos Users in South Glos Homes,Nursing Homes,Holmwood House,714.31, 02-Oct-2012
1783,Revenue,CCHD,Bed purchasing - Under 65s PWLD - North,Residential Homes,Home Farm Trust Ltd  5-6 Brook Office Pa,2784.12, 02-Oct-2012
1784,Revenue,CCHD,Bed purchasing - Under 65s PWLD - North,Residential Homes,Home Farm Trust Ltd  5-6 Brook Office Pa,2784.12, 30-Oct-2012
1785,Revenue,CCHD,Bed purchasing - Elderly PWLD - South,Residential Homes,Home Farm Trust Ltd  5-6 Brook Office Pa,4285, 02-Oct-2012
1786,Revenue,CCHD,Bed purchasing - Elderly PWLD - South,Residential Homes,Home Farm Trust Ltd  5-6 Brook Office Pa,4285, 30-Oct-2012
1787,Revenue,CCHD,Bed purchasing - Under 65s PWLD - North,Residential Homes,Home Farm Trust Ltd  5-6 Brook Office Pa,3367.08, 02-Oct-2012
1788,Revenue,CCHD,Bed purchasing - Under 65s PWLD - North,Residential Homes,Home Farm Trust Ltd  5-6 Brook Office Pa,3367.08, 30-Oct-2012
1789,Revenue,CCHD,Bed Purchasing - Under 65s PWLD - South,Residential Homes,Home Farm Trust Ltd  5-6 Brook Office Pa,4463, 02-Oct-2012
1790,Revenue,CCHD,Bed Purchasing - Under 65s PWLD - South,Residential Homes,Home Farm Trust Ltd  5-6 Brook Office Pa,4463, 30-Oct-2012
1791,Revenue,CCHD,Bed purchasing - Under 65s PWLD - North,Residential Homes,Home From Home Care Ltd,9029.56, 02-Oct-2012
1792,Revenue,CCHD,Bed purchasing - Under 65s PWLD - North,Residential Homes,Home From Home Care Ltd,9029.56, 30-Oct-2012
1793,Revenue,CCHD,Bed purchasing - Phys Dis - North,Residential Homes,Homeleigh,6215.08, 02-Oct-2012
1794,Revenue,CCHD,Bed purchasing - Phys Dis - North,Residential Homes,Homeleigh,6215.08, 30-Oct-2012
